Workbook

Sheet TXOSTENA
A1: =SUMSQ(D27:I27,D39:F40,D59:I59,D72:F72,D82:F83,E91:H91) -> 1.113525579e+10
A2: ORDAINKETA EPEAREN INFORMAZIOA
C3: Toki entitatea: | D3: ARRASATE
C4: Ekitaldia: | D4: 2021
C5: Hiruhilekoa: | D5: Hiruhilabetea 4
A9: 1. Hiruhilekoan egindako ordainketak. Ordainketa epea obligazioa onartu zenetik hasita.
A12: 1.1. Sailkapen ekonomikoaren arabera
A13: Hiruhileko ordainketak | D13: Ordainketa epea | F13: Hiruhilekoan egindako ordainketak
D14: (egunak batez beste) | F14: Legezko epearen barruan | H14: Legezko epetik kanpo
D15: Guztira | E15: Epez kanpokoena | F15: Ordainketa kopurua | G15: Zenbateko osoa | H15: Ordainketa kopurua | I15: Zenbateko osoa
A16: Gastuak ondasun arruntetan eta zerbitzuetan | D16: =IF(G16+I16=0,0,(D17*(G17+I17)+D18*(G18+I18)+D19*(G19+I19)+D20*(G20+I20)+D21*(G21+I21))/(G16+I16)) -> 3.379317844 | E16: =IF(I16=0,0,(E17*I17+E18*I18+E19*I19+E20*I20+E21*I21)/I16) -> 55.22732003 | F16: =SUM(F17:F21) -> 2391 | G16: =SUM(G17:G21) -> 3162721.94 | H16: =SUM(H17:H21) -> 3 | I16: =SUM(I17:I21) -> 221.01
B17: 20 - | C17: Errentamenduak eta kanonak | D17: =IF(F17+H17=0,0,SUMIF(xehet1!S:S,20,xehet1!T:T)/SUMIF(xehet1!S:S,20,xehet1!D:D)) -> 3.329367838 | E17: =IF(H17=0,0,SUMIF(xehet1!V:V,220,xehet1!T:T)/SUMIF(xehet1!V:V,220,xehet1!D:D)) -> 0 | F17: =COUNTIF(xehet1!V:V,120) -> 17 | G17: =SUMIF(xehet1!V:V,120,xehet1!D:D) -> 27270.24 | H17: =COUNTIF(xehet1!V:V,220) -> 0 | I17: =SUMIF(xehet1!V:V,220,xehet1!D:D) -> 0
B18: 21 - | C18: Konponketa, mantenimendua eta kontserbazioa | D18: =IF(F18+H18=0,0,SUMIF(xehet1!S:S,21,xehet1!T:T)/SUMIF(xehet1!S:S,21,xehet1!D:D)) -> 4.837075946 | E18: =IF(H18=0,0,SUMIF(xehet1!V:V,221,xehet1!T:T)/SUMIF(xehet1!V:V,221,xehet1!D:D)) -> 50 | F18: =COUNTIF(xehet1!V:V,121) -> 403 | G18: =SUMIF(xehet1!V:V,121,xehet1!D:D) -> 167765.49 | H18: =COUNTIF(xehet1!V:V,221) -> 1 | I18: =SUMIF(xehet1!V:V,221,xehet1!D:D) -> 180
B19: 22 - | C19: Materiala, hornidura eta beste batzuk | D19: =IF(F19+H19=0,0,SUMIF(xehet1!S:S,22,xehet1!T:T)/SUMIF(xehet1!S:S,22,xehet1!D:D)) -> 3.294598086 | E19: =IF(H19=0,0,SUMIF(xehet1!V:V,222,xehet1!T:T)/SUMIF(xehet1!V:V,222,xehet1!D:D)) -> 78.17093392 | F19: =COUNTIF(xehet1!V:V,122) -> 1899 | G19: =SUMIF(xehet1!V:V,122,xehet1!D:D) -> 2955748.19 | H19: =COUNTIF(xehet1!V:V,222) -> 2 | I19: =SUMIF(xehet1!V:V,222,xehet1!D:D) -> 41.01
B20: 23 - | C20: Kalte-ordaina zerbitzuagatik | D20: =IF(F20+H20=0,0,SUMIF(xehet1!S:S,23,xehet1!T:T)/SUMIF(xehet1!S:S,23,xehet1!D:D)) -> 3.961658634 | E20: =IF(H20=0,0,SUMIF(xehet1!V:V,223,xehet1!T:T)/SUMIF(xehet1!V:V,223,xehet1!D:D)) -> 0 | F20: =COUNTIF(xehet1!V:V,123) -> 72 | G20: =SUMIF(xehet1!V:V,123,xehet1!D:D) -> 11938.02 | H20: =COUNTIF(xehet1!V:V,223) -> 0 | I20: =SUMIF(xehet1!V:V,223,xehet1!D:D) -> 0
B21: 2X - | C21: Bestelakoak | D21: =IF(F21+H21=0,0,SUMIF(xehet1!S:S,29,xehet1!T:T)/SUMIF(xehet1!S:S,29,xehet1!D:D)) -> 0 | E21: =IF(H21=0,0,SUMIF(xehet1!V:V,229,xehet1!T:T)/SUMIF(xehet1!V:V,229,xehet1!D:D)) -> 0 | F21: =COUNTIF(xehet1!V:V,129) -> 0 | G21: =SUMIF(xehet1!V:V,129,xehet1!D:D) -> 0 | H21: =COUNTIF(xehet1!V:V,229) -> 0 | I21: =SUMIF(xehet1!V:V,229,xehet1!D:D) -> 0
A22: Inbertsio errealak | D22: =D23 -> 9.557529889 | E22: 0 | F22: 78 | G22: 2436822.61 | H22: 0 | I22: 0
B23: 6X - | C23: Inbertsio errealak | D23: =IF(F23+H23=0,0,SUMIF(xehet1!S:S,69,xehet1!T:T)/SUMIF(xehet1!S:S,69,xehet1!D:D)) -> 9.557529889 | E23: =IF(H23=0,0,SUMIF(xehet1!V:V,269,xehet1!T:T)/SUMIF(xehet1!V:V,269,xehet1!D:D)) -> 0 | F23: =COUNTIF(xehet1!V:V,169) -> 78 | G23: =SUMIF(xehet1!V:V,169,xehet1!D:D) -> 2436822.61 | H23: =COUNTIF(xehet1!V:V,269) -> 0 | I23: =SUMIF(xehet1!V:V,269,xehet1!D:D) -> 0
A24: Aurrekontuari aplikatu gabeko ordainketak* | D24: =D25 -> 0 | E24: 0 | F24: 0 | G24: 0 | H24: 0 | I24: 0
B25: Aurrekontura aplikatzeko dauden ordainketak
A26: Guztira | D26: =IF(G26+I26=0,0,(D16*(G16+I16)+D22*(G22+I22)+D24*(G24+I24))/(G26+I26)) -> 6.067860184 | E26: =IF(I26=0,0,(E16*I16+E22*I22+E24*I24)/I26) -> 55.22732003 | F26: =F16+F22+F24 -> 2469 | G26: =G16+G22+G24 -> 5599544.55 | H26: =H16+H22+H24 -> 3 | I26: =I16+I22+I24 -> 221.01
A27: * 2. eta 6. kapituluari dagozkion fakturak soilik | D27: =IF(SUM(xehet1!D:D)=0,0,SUM(xehet1!T:T)/SUM(xehet1!D:D))-IF((G16+I16+G22+I22)=0,0,(D16*(G16+I16)+D22*(G22+I22))/(G16+I16+G22+I22)) -> 0 | E27: =IF(SUMIF(xehet1!V:V,">199",xehet1!D:D)=0,0,SUMIF(xehet1!V:V,">199",xehet1!T:T)/SUMIF(xehet1!V:V,">199",xehet1!D:D))-IF(I16+I22=0,0,(E16*I16+E22*I22)/(I16+I22)) -> 0 | F27: =COUNTIF(xehet1!P:P,"<=30")-F26+F25 -> 0 | G27: =SUMIF(xehet1!P:P,"<=30",xehet1!D:D)-G26+G25 -> -3.725290298e-09 | H27: =COUNTIF(xehet1!P:P,">30")-H26+H25 -> 0 | I27: =SUMIF(xehet1!P:P,">30",xehet1!D:D)-I26+I25 -> 0
A30: 1.2. Epearen arabera
A31: Egun kopurua | D31: Egindako ordainketak
D32: Faktura kopurua | E32: % | F32: Zenbateko osoa | G32: %
B33: 30 egun edo gutxiago | D33: =COUNTIF(xehet1!P:P,"<=30")+F25 -> 2469 | E33: =IF($D$38=0,0,D33*100/$D$38) -> 99.87864078 | F33: =SUMIF(xehet1!P:P,"<=30",xehet1!D:D)+G25 -> 5599544.55 | G33: =IF($F$38=0,0,F33*100/$F$38) -> 99.99605323
B34: 31etik 40 egunetara | D34: =COUNTIF(xehet1!P:P,"<=40")-D33+F25+IF(AND(E25>30,E25<=40),H25) -> 0 | E34: =IF($D$38=0,0,D34*100/$D$38) -> 0 | F34: =SUMIF(xehet1!P:P,"<=40",xehet1!D:D)-F33+G25+IF(AND(E25>30,E25<=40),I25) -> 0 | G34: =IF($F$38=0,0,F34*100/$F$38) -> 0
B35: 41etik 50 egunetara | D35: =COUNTIF(xehet1!P:P,"<=50")-SUM(D33:D34)+F25+IF(E25<=50,H25) -> 1 | E35: =IF($D$38=0,0,D35*100/$D$38) -> 0.04045307443 | F35: =SUMIF(xehet1!P:P,"<=50",xehet1!D:D)-SUM(F33:F34)+G25+IF(E25<=50,I25) -> 180 | G35: =IF($F$38=0,0,F35*100/$F$38) -> 0.003214420284
B36: 51tik 60 egunetara | D36: =COUNTIF(xehet1!P:P,"<=60")-SUM(D33:D35)+F25+IF(E25<=60,H25) -> 0 | E36: =IF($D$38=0,0,D36*100/$D$38) -> 0 | F36: =SUMIF(xehet1!P:P,"<=60",xehet1!D:D)-SUM(F33:F35)+G25+IF(E25<=60,I25) -> 0 | G36: =IF($F$38=0,0,F36*100/$F$38) -> 0
B37: 60 egun baino gehiago | D37: =COUNTIF(xehet1!P:P,">60")+IF(E25>60,H25) -> 2 | E37: =IF($D$38=0,0,D37*100/$D$38) -> 0.08090614887 | F37: =SUMIF(xehet1!P:P,">60",xehet1!D:D)+IF(E25>60,I25) -> 41.01 | G37: =IF($F$38=0,0,F37*100/$F$38) -> 0.000732352088
A38: Guztira | D38: =SUM(D33:D37) -> 2472 | E38: =SUM(E33:E37) -> 100 | F38: =SUM(F33:F37) -> 5599765.56 | G38: =SUM(G33:G37) -> 100
D39: =COUNT(xehet1!D:D)-D38+F25+H25 -> 0 | F39: =SUM(xehet1!D:D)-F38+G25+I25 -> 9.313225746e-10
D40: =F26+H26-D38 -> 0 | F40: =G26+I26-F38 -> 0
A42: 2. Ordaindu gabe gelditu diren fakturak. Epea obligazioa onartu zenetik hasita.
A45: Hiruhilekoa amaitzean ordaindu gabe dauden fakturak eta ordainagiriak | D45: Epea | F45: Hiruhilekoa amaitzean ordaintzeko daudenak
D46: (egunak batez beste) | F46: Legezko epearen barruan | H46: Legezko epetik kanpo
D47: Guztira | E47: Epez kanpokoena | F47: Eragiketa kopurua | G47: Zenbateko osoa | H47: Eragiketa kopurua | I47: Zenbateko osoa
A48: Gastuak ondasun arruntetan eta zerbitzuetan | D48: =IF(G48+I48=0,0,(D49*(G49+I49)+D50*(G50+I50)+D51*(G51+I51)+D52*(G52+I52)+D53*(G53+I53))/(G48+I48)) -> 0.5659480061 | E48: =IF(I48=0,0,(E49*I49+E50*I50+E51*I51+E52*I52+E53*I53)/I48) -> 239.8436321 | F48: =SUM(F49:F53) -> 656 | G48: =SUM(G49:G53) -> 1053345.11 | H48: =SUM(H49:H53) -> 7 | I48: =SUM(I49:I53) -> 1853.13
B49: 20 - | C49: Errentamenduak eta kanonak | D49: =IF(F49+H49=0,0,SUMIF(xehet2!S:S,20,xehet2!T:T)/SUMIF(xehet2!S:S,20,xehet2!D:D)) -> 0 | E49: =IF(H49=0,0,SUMIF(xehet2!V:V,220,xehet2!T:T)/SUMIF(xehet2!V:V,220,xehet2!D:D)) -> 0 | F49: =COUNTIF(xehet2!V:V,120) -> 1 | G49: =SUMIF(xehet2!V:V,120,xehet2!D:D) -> 5808 | H49: =COUNTIF(xehet2!V:V,220) -> 0 | I49: =SUMIF(xehet2!V:V,220,xehet2!D:D) -> 0
B50: 21 - | C50: Konponketak, mantenimendua eta artapena | D50: =IF(F50+H50=0,0,SUMIF(xehet2!S:S,21,xehet2!T:T)/SUMIF(xehet2!S:S,21,xehet2!D:D)) -> 4.327031125 | E50: =IF(H50=0,0,SUMIF(xehet2!V:V,221,xehet2!T:T)/SUMIF(xehet2!V:V,221,xehet2!D:D)) -> 241.7165659 | F50: =COUNTIF(xehet2!V:V,121) -> 122 | G50: =SUMIF(xehet2!V:V,121,xehet2!D:D) -> 98381.56 | H50: =COUNTIF(xehet2!V:V,221) -> 4 | I50: =SUMIF(xehet2!V:V,221,xehet2!D:D) -> 1757.41
B51: 22 - | C51: Materiala, hornidurak eta bestelakoak | D51: =IF(F51+H51=0,0,SUMIF(xehet2!S:S,22,xehet2!T:T)/SUMIF(xehet2!S:S,22,xehet2!D:D)) -> 0.1728178161 | E51: =IF(H51=0,0,SUMIF(xehet2!V:V,222,xehet2!T:T)/SUMIF(xehet2!V:V,222,xehet2!D:D)) -> 205.4567489 | F51: =COUNTIF(xehet2!V:V,122) -> 529 | G51: =SUMIF(xehet2!V:V,122,xehet2!D:D) -> 948202.92 | H51: =COUNTIF(xehet2!V:V,222) -> 3 | I51: =SUMIF(xehet2!V:V,222,xehet2!D:D) -> 95.72
B52: 23 - | C52: Kalte-ordainak zerbitzuagatik | D52: =IF(F52+H52=0,0,SUMIF(xehet2!S:S,23,xehet2!T:T)/SUMIF(xehet2!S:S,23,xehet2!D:D)) -> 0 | E52: =IF(H52=0,0,SUMIF(xehet2!V:V,223,xehet2!T:T)/SUMIF(xehet2!V:V,223,xehet2!D:D)) -> 0 | F52: =COUNTIF(xehet2!V:V,123) -> 4 | G52: =SUMIF(xehet2!V:V,123,xehet2!D:D) -> 952.63 | H52: =COUNTIF(xehet2!V:V,223) -> 0 | I52: =SUMIF(xehet2!V:V,223,xehet2!D:D) -> 0
B53: 2X - | C53: Bestelakoak | D53: =IF(F53+H53=0,0,SUMIF(xehet2!S:S,29,xehet2!T:T)/SUMIF(xehet2!S:S,29,xehet2!D:D)) -> 0 | E53: =IF(H53=0,0,SUMIF(xehet2!V:V,229,xehet2!T:T)/SUMIF(xehet2!V:V,229,xehet2!D:D)) -> 0 | F53: =COUNTIF(xehet2!V:V,129) -> 0 | G53: =SUMIF(xehet2!V:V,129,xehet2!D:D) -> 0 | H53: =COUNTIF(xehet2!V:V,229) -> 0 | I53: =SUMIF(xehet2!V:V,229,xehet2!D:D) -> 0
A54: Inbertsio errealak | D54: =D55 -> 134.8740443 | E54: 2631.151087 | F54: 18 | G54: 226495.62 | H54: 2 | I54: 12237.3
B55: 6X - | C55: Inbertsio errealak | D55: =IF(F55+H55=0,0,SUMIF(xehet2!S:S,69,xehet2!T:T)/SUMIF(xehet2!S:S,69,xehet2!D:D)) -> 134.8740443 | E55: =IF(H55=0,0,SUMIF(xehet2!V:V,269,xehet2!T:T)/SUMIF(xehet2!V:V,269,xehet2!D:D)) -> 2631.151087 | F55: =COUNTIF(xehet2!V:V,169) -> 18 | G55: =SUMIF(xehet2!V:V,169,xehet2!D:D) -> 226495.62 | H55: =COUNTIF(xehet2!V:V,269) -> 2 | I55: =SUMIF(xehet2!V:V,269,xehet2!D:D) -> 12237.3
A56: Aurrekontuari aplikatu gabeko fakturak* | D56: =D57 -> 0 | E56: 0 | F56: 0 | G56: 0 | H56: 0 | I56: 0
B57: Aurrekontura aplikatzeko daudenak
A58: Guztira | D58: =IF(G58+I58=0,0,(D48*(G48+I48)+D54*(G54+I54)+D56*(G56+I56))/(G58+I58)) -> 25.34606382 | E58: =IF(I58=0,0,(E48*I48+E54*I54+E56*I56)/I58) -> 2316.653688 | F58: =F48+F54+F56 -> 674 | G58: =G48+G54+G56 -> 1279840.73 | H58: =H48+H54+H56 -> 9 | I58: =I48+I54+I56 -> 14090.43
A59: * 2. eta 6. kapituluari dagozkion fakturak soilik | D59: =IF(SUM(xehet2!D:D)=0,0,SUM(xehet2!T:T)/SUM(xehet2!D:D))-IF((G48+I48+G54+I54)=0,0,(D48*(G48+I48)+D54*(G54+I54))/(G48+I48+G54+I54)) -> 0 | E59: =IF(SUMIF(xehet2!V:V,">199",xehet2!D:D)=0,0,SUMIF(xehet2!V:V,">199",xehet2!T:T)/SUMIF(xehet2!V:V,">199",xehet2!D:D))-IF(I48+I54=0,0,(E48*I48+E54*I54)/(I48+I54)) -> 0 | F59: =COUNTIF(xehet2!P:P,"<=30")-F58+F57 -> 0 | G59: =SUMIF(xehet2!P:P,"<=30",xehet2!D:D)-G58+G57 -> 4.656612873e-10 | H59: =COUNTIF(xehet2!P:P,">30")-H58+H57 -> 0 | I59: =SUMIF(xehet2!P:P,">30",xehet2!D:D)-I58+I57 -> 0
A63: 3. Hiruhilekoa amaitzean obligazioa onartu gabe duten fakturak eta ordainagiriak
A66: 3.1. Erregistroan idatzi zirenetik hiru hilabetetik gora daramatenak
A67: Hiru hilabete ondoren obligazioa onartu gabe duten fakturak eta ordainagiriak | D67: Epea (egunak batez beste) | E67: Kopurua | F67: Zenbateko osoa
B68: Gastuak ondasun arruntetan eta zerbitzuetan | D68: =IF(E68=0,0,SUMIF(xehet32!T:T,22,xehet32!R:R)/SUMIF(xehet32!T:T,22,xehet32!D:D)) -> 0 | E68: =COUNTIF(xehet32!T:T,22) -> 0 | F68: =SUMIF(xehet32!T:T,22,xehet32!D:D) -> 0
B69: Inbertsio errealak | D69: =IF(E69=0,0,SUMIF(xehet32!T:T,26,xehet32!R:R)/SUMIF(xehet32!T:T,26,xehet32!D:D)) -> 0 | E69: =COUNTIF(xehet32!T:T,26) -> 0 | F69: =SUMIF(xehet32!T:T,26,xehet32!D:D) -> 0
B70: Aurrekontura aplikatzeko daudenak | D70: =IF(E70=0,0,SUMIF(xehet32!T:T,29,xehet32!R:R)/SUMIF(xehet32!T:T,29,xehet32!D:D)) -> 0 | E70: =COUNTIF(xehet32!T:T,29) -> 0 | F70: =SUMIF(xehet32!T:T,29,xehet32!D:D) -> 0
A71: Guztira | D71: =IF(F71=0,0,(D68*F68+D69*F69+D70*F70)/F71) -> 0 | E71: =SUM(E68:E70) -> 0 | F71: =SUM(F68:F70) -> 0
D72: =IF(D73=0,0,(SUMIF(xehet32!O:O,">90",xehet32!R:R)/SUMIF(xehet32!O:O,">90",xehet32!D:D)))-IF(D71="",0,D71) -> 0 | E72: =COUNTIF(xehet32!O:O,">90")-E71 -> 0 | F72: =SUMIF(xehet32!O:O,">90",xehet32!D:D)-F71 -> 0
D73: =SUMIF(xehet32!O:O,">90",xehet32!D:D) -> 0
A74: 3.2. Erregistroan idatzi zirenetik daramatzaten egunak
A75: Obligazioa onartu gabe duten fakturak eta ordainagiriak | D75: Obligaziorik onartu gabeko fakturak
D76: Faktura kopurua | E76: % | F76: Zenbateko osoa | G76: %
B77: 30 egun edo gutxiago | D77: =COUNTIF(xehet32!O:O,"<=30") -> 31 | E77: =IF($D$81=0,0,D77*100/$D$81) -> 91.17647059 | F77: =SUMIF(xehet32!O:O,"<=30",xehet32!D:D) -> 104613.2 | G77: =IF($F$81=0,0,F77*100/$F$81) -> 99.13714187
B78: 31 eta 60 egun bitartean | D78: =COUNTIF(xehet32!O:O,"<=60")-D77 -> 3 | E78: =IF($D$81=0,0,D78*100/$D$81) -> 8.823529412 | F78: =SUMIF(xehet32!O:O,"<=60",xehet32!D:D)-F77 -> 910.52 | G78: =IF($F$81=0,0,F78*100/$F$81) -> 0.8628581327
B79: 61 eta 90 egun bitartean | D79: =COUNTIF(xehet32!O:O,"<=90")-SUM(D77:D78) -> 0 | E79: =IF($D$81=0,0,D79*100/$D$81) -> 0 | F79: =SUMIF(xehet32!O:O,"<=90",xehet32!D:D)-SUM(F77:F78) -> 0 | G79: =IF($F$81=0,0,F79*100/$F$81) -> 0
B80: 90 egun baino gehiago | D80: =COUNTIF(xehet32!O:O,">90") -> 0 | E80: =IF($D$81=0,0,D80*100/$D$81) -> 0 | F80: =SUMIF(xehet32!O:O,">90",xehet32!D:D) -> 0 | G80: =IF($F$81=0,0,F80*100/$F$81) -> 0
A81: Guztira | D81: =SUM(D77:D80) -> 34 | E81: =SUM(E77:E80) -> 100 | F81: =SUM(F77:F80) -> 105523.72 | G81: =SUM(G77:G80) -> 100
D82: =COUNT(xehet32!D:D)-D81 -> 0 | F82: =SUM(xehet32!D:D)-F81 -> 0
D83: =E71-D80 -> 0 | F83: =F71-F80 -> 0
A85: 4. Entitatearen ordainketen batez besteko epea (OBBE)
A88: Hiruhilekoaren OBBE | D88: Ordaindutako eragiketak | F88: Ordaindu gabeko eragiketak | H88: OBBE
D89: Ratioa | E89: Zenbatekoa | F89: Ratioa | G89: Zenbatekoa
A90: =D3 -> ARRASATE | D90: =IF((SUM(xehet1!D:D)+G24+I24)=0,0,(SUM(xehet1!T:T)+D24*(G24+I24))/(SUM(xehet1!D:D)+G24+I24)) -> 6.067860184 | E90: =SUM(xehet1!D:D)+G24+I24 -> 5599765.56 | F90: =IF((SUM(xehet2!D:D)+G56+I56)=0,0,(SUM(xehet2!T:T)+D56*(G56+I56))/(SUM(xehet2!D:D)+G56+I56)) -> 25.34606382 | G90: =SUM(xehet2!D:D)+G56+I56 -> 1293931.16 | H90: =IF(E90=0,F90,IF(G90=0,D90,(D90*E90+F90*G90)/(E90+G90))) -> 9.686335061
E91: =E90-F38 -> 0 | G91: =G90-G58-I58-F81 -> -105523.72 | H91: =IF(H92=0,0,(SUM(xehet1!U:U)+SUM(xehet2!U:U)+SUM(xehet32!S:S)+D24*(G24+I24)+D56*(G56+I56))/(SUM(xehet1!D:D)+SUM(xehet2!D:D)+SUM(xehet32!D:D)+G24+I24+G56+I56))-IF(H90="",0,H90) -> -17.54953306
A92: OBBEari buruzko oharrak: | H92: =(SUM(xehet1!D:D)+SUM(xehet2!D:D)+SUM(xehet32!D:D)+G24+I24+G56+I56) -> 6999220.44

Sheet xehet1
A1: Hiruhilekoan ordaindutako fakturak
A3: Espte zkia | B3: Fra data | C3: Fra zkia | D3: Zenbatekoa | E3: Hirugar. Kodea | F3: Hirugarrena | G3: Azalpena | H3: ADO-17 | I3: ADO-12 | J3: Partida | K3: Erregto data | L3: Desz Data | M3: O-ren data | N3: P-ren data | O3: Epea R-O | P3: Epea O-P | Q3: Epea R-P | R3: OBBE | S3: Artik | T3: ponderazioa 1 | U3: ponderazioa 2 | V3: Epean
A4: 2021-FAKT-004658-00 | B4: 2021/09/01 | C4: A 09 - 2021 | D4: 100 | E4: 4012 | F4: HH. MERCEDARIAS DE LA CARIDAD | G4: IRAILEKO ALOKAIRUA - JOSE LUIS IÑARRA PASEALEKUA 34, HARREMAN. | H4: 17 2021-99-004609-000 | I4: 12 2021-003767-008 | J4: 1 0403.201.231.00.01 2021 | K4: 2021/10/25 | L4: 2021/11/03 | M4: 2021/11/03 | N4: 2021/11/05 | O4: 9 | P4: 2 | Q4: 11 | R4: -19 | S4: 20 | T4: 200 | U4: -1900 | V4: =IF(P4>30,200+S4,100+S4) -> 120
A5: 2021-FAKT-004292-00 | B5: 2021/09/27 | C5: 212504 | D5: 249.26 | E5: 11711 | F5: MAQUELSA | G5: 752 RENTING RICOH MP8000SP ID:826 -N DE SERIE: MQ140331666 PERIODO: SEPTIEMBRE | H5: 17 2021-99-004239-000 | I5: 12 2021-003317-023 | J5: 1 0600.204.920.00.01 2021 | K5: 2021/09/27 | L5: 2021/09/29 | M5: 2021/09/29 | N5: 2021/10/01 | O5: 2 | P5: 2 | Q5: 4 | R5: -26 | S5: 20 | T5: 498.52 | U5: -6480.76 | V5: 120
A6: 2021-FAKT-004346-00 | B6: 2021/09/30 | C6: 038/2021 | D6: 5808 | E6: 16390 | F6: GALEA ELECTRIC SL | G6: SERVICIO DE MEDICION DE LA VELOCIDAD DE CIRCULACION DE VEHICULOS A MOTOR Y ELAB | H6: 17 2021-99-004389-000 | I6: 12 2021-003441-010 | J6: 1 0104.202.132.00.01 2021 | K6: 2021/09/30 | L6: 2021/10/14 | M6: 2021/10/14 | N6: 2021/10/20 | O6: 14 | P6: 6 | Q6: 20 | R6: -10 | S6: 20 | T6: 34848 | U6: -58080 | V6: 120
A7: 2021-FAKT-004444-00 | B7: 2021/10/01 | C7: 20210009 | D7: 1331 | E7: 2568 | F7: CANAS ESTEBAN MELCHOR | G7: URRIKO ALOKAIRUA. MARKULETE INDUSTRIALDEA, 2 | H7: 17 2021-99-004304-000 | I7: 12 2021-003394-034 | J7: 1 0200.201.334.00.01 2021 | K7: 2021/10/05 | L7: 2021/10/06 | M7: 2021/10/07 | N7: 2021/10/08 | O7: 2 | P7: 1 | Q7: 3 | R7: -27 | S7: 20 | T7: 1331 | U7: -35937 | V7: 120
A8: 2021-FAKT-004470-00 | B8: 2021/10/01 | C8: 00000040 | D8: 1463.62 | E8: 536 | F8: FERNANDEZ ZUBIAGA RAFAEL | G8: URRIKO ALOKAIRUA - MAALAKO ARRABALA. | H8: 17 2021-99-004315-000 | I8: 12 2021-003394-111 | J8: 1 0410.201.337.21.01 2021 | K8: 2021/10/05 | L8: 2021/10/07 | M8: 2021/10/07 | N8: 2021/10/08 | O8: 2 | P8: 1 | Q8: 3 | R8: -27 | S8: 20 | T8: 1463.62 | U8: -39517.74 | V8: 120
A9: 2021-FAKT-004561-00 | B9: 2021/10/01 | C9: A 10 - 2021 | D9: 100 | E9: 4012 | F9: HH. MERCEDARIAS DE LA CARIDAD | G9: URRIKO ALOKAIRUA: HARREMAN - JOSE LUIS IÑARRA PASEALEKUA 34. | H9: 17 2021-99-004506-000 | I9: 12 2021-003539-004 | J9: 1 0403.201.231.00.01 2021 | K9: 2021/10/14 | L9: 2021/10/22 | M9: 2021/10/22 | N9: 2021/10/26 | O9: 8 | P9: 4 | Q9: 12 | R9: -18 | S9: 20 | T9: 400 | U9: -1800 | V9: 120
A10: 2021-FAKT-004696-00 | B10: 2021/10/26 | C10: 042/2021 | D10: 5808 | E10: 16390 | F10: GALEA ELECTRIC SL | G10: SERVICIO DE MEDICION DE LA VELOCIDAD DE CIRCULACION DE VEHICULOS A MOTOR Y ELAB | H10: 17 2021-99-004645-000 | I10: 12 2021-003855-004 | J10: 1 0104.202.132.00.01 2021 | K10: 2021/10/29 | L10: 2021/11/05 | M10: 2021/11/11 | N10: 2021/11/12 | O10: 13 | P10: 1 | Q10: 14 | R10: -16 | S10: 20 | T10: 5808 | U10: -92928 | V10: 120
A11: 2021-FAKT-004676-00 | B11: 2021/10/27 | C11: 212876 | D11: 271.04 | E11: 11711 | F11: MAQUELSA | G11: 752 RENTING RICOH MP8000SP ID:826 -N DE SERIE: MQ140331666 PERIODO: OCTUBRE | H11: 17 2021-99-004600-000 | I11: 12 2021-003767-006 | J11: 1 0600.204.920.00.01 2021 | K11: 2021/10/27 | L11: 2021/10/28 | M11: 2021/11/03 | N11: 2021/11/05 | O11: 7 | P11: 2 | Q11: 9 | R11: -21 | S11: 20 | T11: 542.08 | U11: -5691.84 | V11: 120
A12: 2021-FAKT-004733-00 | B12: 2021/11/01 | C12: 00000044 | D12: 1463.62 | E12: 536 | F12: FERNANDEZ ZUBIAGA RAFAEL | G12: AZAROKO ALOKAIRUA - MAALAKO ARRABALAN | H12: 17 2021-99-004607-000 | I12: 12 2021-003775-007 | J12: 1 0410.201.337.21.01 2021 | K12: 2021/11/02 | L12: 2021/11/03 | M12: 2021/11/04 | N12: 2021/11/05 | O12: 2 | P12: 1 | Q12: 3 | R12: -27 | S12: 20 | T12: 1463.62 | U12: -39517.74 | V12: 120
A13: 2021-FAKT-004781-00 | B13: 2021/11/01 | C13: 20210010 | D13: 1331 | E13: 2568 | F13: CANAS ESTEBAN MELCHOR | G13: UZTAILEKO ALOKAIRUA - MARKULETE INDUSTRIALDEA, 2. | H13: 17 2021-99-004634-000 | I13: 12 2021-003775-010 | J13: 1 0200.201.334.00.01 2021 | K13: 2021/11/03 | L13: 2021/11/04 | M13: 2021/11/04 | N13: 2021/11/05 | O13: 1 | P13: 1 | Q13: 2 | R13: -28 | S13: 20 | T13: 1331 | U13: -37268 | V13: 120
A14: 2021-FAKT-004845-00 | B14: 2021/11/01 | C14: A 11-2021 | D14: 100 | E14: 4012 | F14: HH. MERCEDARIAS DE LA CARIDAD | G14: ALOKAIRUA: HARREMAN, JOSE LUIS IÑARRA PASAEALEKUA 34. | H14: 17 2021-99-004899-000 | I14: 12 2021-003966-027 | J14: 1 0403.201.231.00.01 2021 | K14: 2021/11/05 | L14: 2021/11/23 | M14: 2021/11/23 | N14: 2021/11/25 | O14: 18 | P14: 2 | Q14: 20 | R14: -10 | S14: 20 | T14: 200 | U14: -1000 | V14: 120
A15: 2021-FAKT-005069-00 | B15: 2021/11/26 | C15: 213198 | D15: 271.04 | E15: 11711 | F15: MAQUELSA | G15: 752 RENTING RICOH MP8000SP ID:826 -N DE SERIE: MQ140331666 PERIODO: NOVIEMBRE | H15: 17 2021-99-004955-000 | I15: 12 2021-004177-007 | J15: 1 0600.204.920.00.01 2021 | K15: 2021/11/26 | L15: 2021/11/30 | M15: 2021/11/30 | N15: 2021/12/03 | O15: 4 | P15: 3 | Q15: 7 | R15: -23 | S15: 20 | T15: 813.12 | U15: -6233.92 | V15: 120
A16: 2021-FAKT-005078-00 | B16: 2021/11/26 | C16: 046/2021 | D16: 5808 | E16: 16390 | F16: GALEA ELECTRIC SL | G16: SERVICIO DE MEDICION DE LA VELOCIDAD DE CIRCULACION DE VEHICULOS A MOTOR Y ELAB | H16: 17 2021-99-005073-000 | I16: 12 2021-004323-012 | J16: 1 0104.202.132.00.01 2021 | K16: 2021/11/26 | L16: 2021/12/13 | M16: 2021/12/16 | N16: 2021/12/21 | O16: 20 | P16: 5 | Q16: 25 | R16: -5 | S16: 20 | T16: 29040 | U16: -29040 | V16: 120
A17: 2021-FAKT-005136-00 | B17: 2021/12/01 | C17: 00000048 | D17: 1463.62 | E17: 536 | F17: FERNANDEZ ZUBIAGA RAFAEL | G17: ABENDUKO ALOKAIRUA: MAALAKO ERREBALA. | H17: 17 2021-99-004988-000 | I17: 12 2021-004206-035 | J17: 1 0410.201.337.21.01 2021 | K17: 2021/12/01 | L17: 2021/12/02 | M17: 2021/12/02 | N17: 2021/12/03 | O17: 1 | P17: 1 | Q17: 2 | R17: -28 | S17: 20 | T17: 1463.62 | U17: -40981.36 | V17: 120
A18: 2021-FAKT-005772-00 | B18: 2021/12/01 | C18: A 12-2021 | D18: 100 | E18: 4012 | F18: HH. MERCEDARIAS DE LA CARIDAD | G18: JOSE LUIS IÑARRA PASEALEKUA 34 - HARREMAN. ALOKAIRUA. ABENDUA | H18: 17 2021-99-005135-000 | I18: 12 2021-004290-030 | J18: 1 0403.201.231.00.01 2021 | K18: 2021/12/07 | L18: 2021/12/15 | M18: 2021/12/15 | N18: 2021/12/17 | O18: 8 | P18: 2 | Q18: 10 | R18: -20 | S18: 20 | T18: 200 | U18: -2000 | V18: 120
A19: 2021-FAKT-005771-00 | B19: 2021/12/01 | C19: 20210011 | D19: 1331 | E19: 2568 | F19: CANAS ESTEBAN MELCHOR | G19: MARKULETE INDUSTRIALDEA, 2-KO ALOKAIRUA. ABENDUA. | H19: 17 2021-99-005029-000 | I19: 12 2021-004225-081 | J19: 1 0200.201.334.00.01 2021 | K19: 2021/12/07 | L19: 2021/12/09 | M19: 2021/12/09 | N19: 2021/12/17 | O19: 2 | P19: 8 | Q19: 10 | R19: -20 | S19: 20 | T19: 10648 | U19: -26620 | V19: 120
A20: 2021-FAKT-006061-00 | B20: 2021/12/27 | C20: 213531 | D20: 271.04 | E20: 11711 | F20: MAQUELSA | G20: ABENDUKO RENTING-AK | H20: 17 2021-99-005326-000 | I20: 12 2021-004578-012 | J20: 1 0600.204.920.00.01 2021 | K20: 2021/12/27 | L20: 2021/12/28 | M20: 2021/12/28 | N20: 2021/12/30 | O20: 1 | P20: 2 | Q20: 3 | R20: -27 | S20: 20 | T20: 542.08 | U20: -7318.08 | V20: 120
A21: 2021-FAKT-004918-00 | B21: 2021/02/28 | C21: 108000243 | D21: 416.51 | E21: 13069 | F21: ELKOR ELECTRICIDAD, S.A. | G21: REVISION DEL C.D.T. POLIDEPORTIVO MUSAKOLA | H21: 17 2021-99-004944-000 | I21: 12 2021-004177-001 | J21: 1 1200.211.342.10.00 2021 | K21: 2021/11/11 | L21: 2021/11/29 | M21: 2021/11/30 | N21: 2021/12/03 | O21: 19 | P21: 3 | Q21: 22 | R21: -8 | S21: 21 | T21: 1249.53 | U21: -3332.08 | V21: 121
A22: 2021-FAKT-004272-00 | B22: 2021/05/07 | C22: T456 350 | D22: 381.85 | E22: 11636 | F22: EUSKOAUTO 2003 SL | G22: 7993HNN TOYOTA PRIUS 388.909 KMS | H22: 17 2021-99-004270-000 | I22: 12 2021-003388-008 | J22: 1 0104.213.132.00.00 2021 | K22: 2021/09/23 | L22: 2021/10/06 | M22: 2021/10/06 | N22: 2021/10/08 | O22: 13 | P22: 2 | Q22: 15 | R22: -15 | S22: 21 | T22: 763.7 | U22: -5727.75 | V22: 121
A23: 2021-FAKT-004286-00 | B23: 2021/06/01 | C23: 2021124 | D23: 200.76 | E23: 17038 | F23: FERNANDEZ FONTURBEL MARIA TERESA | G23: KONPONKETA 1862FZT | H23: 17 2021-99-004236-000 | I23: 12 2021-003317-020 | J23: 1 0800.213.153.40.00 2021 | K23: 2021/09/24 | L23: 2021/09/29 | M23: 2021/09/29 | N23: 2021/10/01 | O23: 5 | P23: 2 | Q23: 7 | R23: -23 | S23: 21 | T23: 401.52 | U23: -4617.48 | V23: 121
A24: 2021-FAKT-004896-00 | B24: 2021/06/05 | C24: 20210216 | D24: 226.84 | E24: 121 | F24: ELECTRO URONDO, S.L. | G24: INT NIVEL POZO C/SONDA PROT. | H24: 17 2021-99-005125-000 | I24: 12 2021-004290-012 | J24: 1 0805.210.161.00.00 2021 | K24: 2021/11/10 | L24: 2021/12/15 | M24: 2021/12/15 | N24: 2021/12/17 | O24: 35 | P24: 2 | Q24: 37 | R24: 7 | S24: 21 | T24: 453.68 | U24: 1587.88 | V24: 121
A25: 2021-FAKT-004521-00 | B25: 2021/06/08 | C25: 33973 | D25: 337.95 | E25: 17548 | F25: HIERROS BELOKI SL | G25: TUBO SOLDADO REDONDO, TUBO ISO NEGRO SIN ROSCAR | H25: 17 2021-99-004415-000 | I25: 12 2021-003447-025 | J25: 1 0808.210.133.00.01 2021 | K25: 2021/10/07 | L25: 2021/10/15 | M25: 2021/10/15 | N25: 2021/10/22 | O25: 8 | P25: 7 | Q25: 15 | R25: -15 | S25: 21 | T25: 2365.65 | U25: -5069.25 | V25: 121
A26: 2021-FAKT-004524-00 | B26: 2021/07/05 | C26: 34308 | D26: 764.68 | E26: 17548 | F26: HIERROS BELOKI SL | G26: MATERIALA | H26: 17 2021-99-004416-000 | I26: 12 2021-003447-026 | J26: 1 0810.211.164.00.00 2021 | K26: 2021/10/07 | L26: 2021/10/15 | M26: 2021/10/15 | N26: 2021/10/22 | O26: 8 | P26: 7 | Q26: 15 | R26: -15 | S26: 21 | T26: 5352.76 | U26: -11470.2 | V26: 121
A27: 2021-FAKT-004522-00 | B27: 2021/07/05 | C27: 34307 | D27: 1089 | E27: 17548 | F27: HIERROS BELOKI SL | G27: MATERIALA | H27: 17 2021-99-004644-001 | I27: 12 2021-003855-001 | J27: 1 0808.210.133.00.01 2021 | K27: 2021/10/07 | L27: 2021/11/05 | M27: 2021/11/11 | N27: 2021/11/12 | O27: 35 | P27: 1 | Q27: 36 | R27: 6 | S27: 21 | T27: 1089 | U27: 6534 | V27: 121
A28: 2021-FAKT-004522-00 | B28: 2021/07/05 | C28: 34307 | D28: 91.48 | E28: 17548 | F28: HIERROS BELOKI SL | G28: MATERIALA | H28: 17 2021-99-004644-002 | I28: 12 2021-003855-002 | J28: 1 0800.210.153.30.00 2021 | K28: 2021/10/07 | L28: 2021/11/05 | M28: 2021/11/11 | N28: 2021/11/12 | O28: 35 | P28: 1 | Q28: 36 | R28: 6 | S28: 21 | T28: 91.48 | U28: 548.88 | V28: 121
A29: 2021-FAKT-004522-00 | B29: 2021/07/05 | C29: 34307 | D29: 273.79 | E29: 17548 | F29: HIERROS BELOKI SL | G29: MATERIALA | H29: 17 2021-99-004644-003 | I29: 12 2021-003855-003 | J29: 1 0810.211.164.00.00 2021 | K29: 2021/10/07 | L29: 2021/11/05 | M29: 2021/11/11 | N29: 2021/11/12 | O29: 35 | P29: 1 | Q29: 36 | R29: 6 | S29: 21 | T29: 273.79 | U29: 1642.74 | V29: 121
A30: 2021-FAKT-003354-00 | B30: 2021/07/15 | C30: FV2109019 | D30: 31.7 | E30: 7113 | F30: SEIN BATU S.L. | G30: MATERIALA | H30: 17 2021-99-004275-001 | I30: 12 2021-003388-013 | J30: 1 1200.211.342.10.00 2021 | K30: 2021/07/19 | L30: 2021/10/06 | M30: 2021/10/06 | N30: 2021/10/08 | O30: 79 | P30: 2 | Q30: 81 | R30: 51 | S30: 21 | T30: 63.4 | U30: 1616.7 | V30: 121
A31: 2021-FAKT-005036-00 | B31: 2021/07/16 | C31: 116 | D31: 309.39 | E31: 2922 | F31: GIPUZKOAKO URAK,S.A. | G31: DEPUR M3 AGUA RESIDUAL K=55 FECHA: 15/04/2021 | H31: 17 2021-99-004942-000 | I31: 12 2021-004006-010 | J31: 1 0805.210.161.00.00 2021 | K31: 2021/11/23 | L31: 2021/11/26 | M31: 2021/11/29 | N31: 2021/11/30 | O31: 6 | P31: 1 | Q31: 7 | R31: -23 | S31: 21 | T31: 309.39 | U31: -7115.97 | V31: 121
A32: 2021-FAKT-005037-00 | B32: 2021/07/16 | C32: 118 | D32: 249.1 | E32: 2922 | F32: GIPUZKOAKO URAK,S.A. | G32: DEPUR M3 AGUA RESIDUAL K=45 FECHA: 21/04/2021 | H32: 17 2021-99-004943-000 | I32: 12 2021-004006-011 | J32: 1 0805.210.161.00.00 2021 | K32: 2021/11/23 | L32: 2021/11/26 | M32: 2021/11/29 | N32: 2021/11/30 | O32: 6 | P32: 1 | Q32: 7 | R32: -23 | S32: 21 | T32: 249.1 | U32: -5729.3 | V32: 121
A33: 2021-FAKT-004285-00 | B33: 2021/07/23 | C33: 5/2021 | D33: 72.6 | E33: 13299 | F33: AZKARRAGAURIZAR JAUREGI HELENA | G33: SANTAMARINA BIBLIOLUDOTEKA - DISEINUAN ALDAKETAK | H33: 17 2021-99-004235-000 | I33: 12 2021-003317-019 | J33: 1 0202.211.332.10.00 2021 | K33: 2021/09/24 | L33: 2021/09/29 | M33: 2021/09/29 | N33: 2021/10/01 | O33: 5 | P33: 2 | Q33: 7 | R33: -23 | S33: 21 | T33: 145.2 | U33: -1669.8 | V33: 121
A34: 2021-FAKT-003630-00 | B34: 2021/07/30 | C34: 21/00413 | D34: 481.58 | E34: 4122 | F34: ARRASATE KRISTALDEGIA, S.L. | G34: MARQUESINA FRENTE NOTARIA | H34: 17 2021-99-004194-000 | I34: 12 2021-003311-006 | J34: 1 0800.211.441.10.00 2021 | K34: 2021/07/30 | L34: 2021/09/28 | M34: 2021/09/28 | N34: 2021/10/01 | O34: 60 | P34: 3 | Q34: 63 | R34: 33 | S34: 21 | T34: 1444.74 | U34: 15892.14 | V34: 121
A35: 2021-FAKT-004021-00 | B35: 2021/07/30 | C35: 21.614 | D35: 70.36 | E35: 15603 | F35: CENTRAL DE ENREJADOS SL | G35: METROS INOXIDABLE 18/8 Nº 70 ANCHO 100 | H35: 17 2021-99-004293-000 | I35: 12 2021-003388-034 | J35: 1 1200.211.342.10.00 2021 | K35: 2021/09/01 | L35: 2021/10/06 | M35: 2021/10/06 | N35: 2021/10/08 | O35: 35 | P35: 2 | Q35: 37 | R35: 7 | S35: 21 | T35: 140.72 | U35: 492.52 | V35: 121
A36: 2021-FAKT-003671-00 | B36: 2021/07/31 | C36: FV2109786 | D36: 105.23 | E36: 7113 | F36: SEIN BATU S.L. | G36: VENTOSA, LLAVE CORREA, FAIRY | H36: 17 2021-99-004276-000 | I36: 12 2021-003388-015 | J36: 1 1200.211.342.10.00 2021 | K36: 2021/08/03 | L36: 2021/10/06 | M36: 2021/10/06 | N36: 2021/10/08 | O36: 64 | P36: 2 | Q36: 66 | R36: 36 | S36: 21 | T36: 210.46 | U36: 3788.28 | V36: 121
A37: 2021-FAKT-004386-00 | B37: 2021/07/31 | C37: 1369 | D37: 22.53 | E37: 17696 | F37: TALLERES CHAPIME SL | G37: PLACA DE MATRICULA | H37: 17 2021-99-004385-000 | I37: 12 2021-003429-008 | J37: 1 1200.211.342.10.00 2021 | K37: 2021/10/04 | L37: 2021/10/13 | M37: 2021/10/13 | N37: 2021/10/18 | O37: 9 | P37: 5 | Q37: 14 | R37: -16 | S37: 21 | T37: 112.65 | U37: -360.48 | V37: 121
A38: 2021-FAKT-004000-00 | B38: 2021/07/31 | C38: 2021000881 | D38: 1347.34 | E38: 2872 | F38: GALVANIZADOS LACUNZA, S.A. | G38: HERRAJES, LLANTAS, SOPORTES DE PERFIL | H38: 17 2021-99-004468-000 | I38: 12 2021-003514-041 | J38: 1 0810.211.164.00.00 2021 | K38: 2021/09/01 | L38: 2021/10/20 | M38: 2021/10/21 | N38: 2021/10/26 | O38: 50 | P38: 5 | Q38: 55 | R38: 25 | S38: 21 | T38: 6736.7 | U38: 33683.5 | V38: 121
A39: 2021-FAKT-003792-00 | B39: 2021/08/16 | C39: 21485 | D39: 6267.8 | E39: 16582 | F39: URAK SOLUCIONES TECNICAS AL AGUA SL | G39: COLOCACION DE SISTEMA DE REGULACION Y COTROL AUTOMATICO | H39: 17 2021-99-004250-000 | I39: 12 2021-003394-001 | J39: 1 0805.210.161.00.00 2021 | K39: 2021/08/31 | L39: 2021/10/05 | M39: 2021/10/07 | N39: 2021/10/08 | O39: 37 | P39: 1 | Q39: 38 | R39: 8 | S39: 21 | T39: 6267.8 | U39: 50142.4 | V39: 121
A40: 2021-FAKT-004268-00 | B40: 2021/08/25 | C40: 5077-21 | D40: 10769.25 | E40: 13576 | F40: TXUKUN LOREZAINTZA SL | G40: ARRASATEKO "NATURA BIDEEN" DESBROZE ETA GARBIKETA LANAK, 2021EKO UDARAN | H40: 17 2021-99-004461-001 | I40: 12 2021-003471-000 | J40: 1 0510.210.172.00.01 2021 | K40: 2021/09/23 | L40: 2021/10/14 | M40: 2021/10/14 | N40: 2021/10/26 | O40: 21 | P40: 12 | Q40: 33 | R40: 3 | S40: 21 | T40: 129231 | U40: 32307.75 | V40: 121
A41: 2021-FAKT-004268-00 | B41: 2021/08/25 | C41: 5077-21 | D41: 720.91 | E41: 13576 | F41: TXUKUN LOREZAINTZA SL | G41: ARRASATEKO "NATURA BIDEEN" DESBROZE ETA GARBIKETA LANAK, 2021EKO UDARAN | H41: 17 2021-99-004461-002 | I41: 12 2021-003472-000 | J41: 1 0510.210.172.00.01 2021 | K41: 2021/09/23 | L41: 2021/10/14 | M41: 2021/10/14 | N41: 2021/10/26 | O41: 21 | P41: 12 | Q41: 33 | R41: 3 | S41: 21 | T41: 8650.92 | U41: 2162.73 | V41: 121
A42: 2021-FAKT-004161-00 | B42: 2021/08/26 | C42: 177/21 | D42: 1156.76 | E42: 14105 | F42: ESCAYOLAS DEL HOYO, S.L. | G42: ARREGLO F. TECHO PISCINA CUBIERTA | H42: 17 2021-99-004185-000 | I42: 12 2021-003322-006 | J42: 1 1200.211.342.10.00 2021 | K42: 2021/09/13 | L42: 2021/09/27 | M42: 2021/09/30 | N42: 2021/10/08 | O42: 17 | P42: 8 | Q42: 25 | R42: -5 | S42: 21 | T42: 9254.08 | U42: -5783.8 | V42: 121
A43: 2021-FAKT-004579-00 | B43: 2021/08/27 | C43: 21/BE0001639 | D43: 1977.22 | E43: 14091 | F43: PREMIRA ENERGIA NORTE S.L. | G43: REPSOL BIENERGY E+10 | H43: 17 2021-99-004467-000 | I43: 12 2021-003514-040 | J43: 1 0810.211.164.00.00 2021 | K43: 2021/10/15 | L43: 2021/10/20 | M43: 2021/10/21 | N43: 2021/10/26 | O43: 6 | P43: 5 | Q43: 11 | R43: -19 | S43: 21 | T43: 9886.1 | U43: -37567.18 | V43: 121
A44: 2021-FAKT-003790-00 | B44: 2021/08/31 | C44: 36 | D44: 87.66 | E44: 57 | F44: CRISTALERIA ERRASTI | G44: KIROLDEGIA-SUSTITUCION RODAMIENTOS PUERTAS CORREDERAS CRISTAL RECEPCION | H44: 17 2021-99-004215-000 | I44: 12 2021-003311-029 | J44: 1 1200.211.342.10.00 2021 | K44: 2021/08/31 | L44: 2021/09/28 | M44: 2021/09/28 | N44: 2021/10/01 | O44: 28 | P44: 3 | Q44: 31 | R44: 1 | S44: 21 | T44: 262.98 | U44: 87.66 | V44: 121
A45: 2021-FAKT-004024-00 | B45: 2021/08/31 | C45: 11012954 | D45: 3.17 | E45: 6594 | F45: BERDIN,S.L. | G45: 4 ROLLOS CINTA AISLANTE | H45: 17 2021-99-004216-000 | I45: 12 2021-003311-030 | J45: 1 1200.211.342.10.00 2021 | K45: 2021/09/01 | L45: 2021/09/28 | M45: 2021/09/28 | N45: 2021/10/01 | O45: 27 | P45: 3 | Q45: 30 | R45: 0 | S45: 21 | T45: 9.51 | U45: 0 | V45: 121
A46: 2021-FAKT-004042-00 | B46: 2021/08/31 | C46: FVR00-1056914 | D46: 32.85 | E46: 12927 | F46: CEPIN, S.L. | G46: SILICONA NEUTRA, SIAKREPP CINTA 29X45, BOLSA TKROM 42X50 | H46: 17 2021-99-004217-000 | I46: 12 2021-003311-031 | J46: 1 1200.211.342.10.00 2021 | K46: 2021/09/03 | L46: 2021/09/28 | M46: 2021/09/28 | N46: 2021/10/01 | O46: 25 | P46: 3 | Q46: 28 | R46: -2 | S46: 21 | T46: 98.55 | U46: -65.7 | V46: 121
A47: 2021-FAKT-004136-00 | B47: 2021/08/31 | C47: FV2110474 | D47: 69.37 | E47: 7113 | F47: SEIN BATU S.L. | G47: CINTA 3M VINILO ROJA | H47: 17 2021-99-004277-000 | I47: 12 2021-003388-016 | J47: 1 1200.211.342.10.00 2021 | K47: 2021/09/09 | L47: 2021/10/06 | M47: 2021/10/06 | N47: 2021/10/08 | O47: 27 | P47: 2 | Q47: 29 | R47: -1 | S47: 21 | T47: 138.74 | U47: -69.37 | V47: 121
A48: 2021-FAKT-004131-00 | B48: 2021/08/31 | C48: 768 | D48: 490.35 | E48: 11776 | F48: AREA 7 S.L. | G48: MUSAKOLA PISCINAS ETA KIROLDEGIA -DETECTOR OPTICO | H48: 17 2021-99-004294-000 | I48: 12 2021-003388-035 | J48: 1 1200.211.342.10.00 2021 | K48: 2021/09/08 | L48: 2021/10/06 | M48: 2021/10/06 | N48: 2021/10/08 | O48: 28 | P48: 2 | Q48: 30 | R48: 0 | S48: 21 | T48: 980.7 | U48: 0 | V48: 121
A49: 2021-FAKT-004983-00 | B49: 2021/08/31 | C49: 349 | D49: 1632.86 | E49: 2096 | F49: HPC IBERICA S.A. - MOBILIARIO URBANO | G49: SUPERFICIE ELASTICA TRAMPOLIN | H49: 17 2021-99-004932-000 | I49: 12 2021-003998-014 | J49: 1 0800.210.153.30.00 2021 | K49: 2021/11/19 | L49: 2021/11/25 | M49: 2021/11/25 | N49: 2021/11/30 | O49: 6 | P49: 5 | Q49: 11 | R49: -19 | S49: 21 | T49: 8164.3 | U49: -31024.34 | V49: 121
A50: 2021-FAKT-004144-00 | B50: 2021/09/01 | C50: P21091145 | D50: 238.37 | E50: 3273 | F50: SARENET | G50: RELAY ZERBITZUAREN HILEROKO KUOTA (SARRERA) - 300 BUZOI ARTE PERIODO FACTUR | H50: 17 2021-99-004200-000 | I50: 12 2021-003311-012 | J50: 1 0600.215.920.00.00 2021 | K50: 2021/09/10 | L50: 2021/09/28 | M50: 2021/09/28 | N50: 2021/10/01 | O50: 18 | P50: 3 | Q50: 21 | R50: -9 | S50: 21 | T50: 715.11 | U50: -2145.33 | V50: 121
A51: 2021-FAKT-004075-00 | B51: 2021/09/06 | C51: 075/21 | D51: 529.98 | E51: 2245 | F51: EXCAVACIONES ARRASATE, S.L. | G51: LIMPIEZA DE ARQUETA EN LAUAXETA | H51: 17 2021-99-004371-000 | I51: 12 2021-003423-014 | J51: 1 0808.210.153.00.00 2021 | K51: 2021/09/06 | L51: 2021/10/13 | M51: 2021/10/13 | N51: 2021/10/18 | O51: 37 | P51: 5 | Q51: 42 | R51: 12 | S51: 21 | T51: 2649.9 | U51: 6359.76 | V51: 121
A52: 2021-FAKT-004159-00 | B52: 2021/09/08 | C52: 21535 | D52: 271.04 | E52: 16582 | F52: URAK SOLUCIONES TECNICAS AL AGUA SL | G52: 1 CABEZAL COMPLETO MOD. L PARA BOMBA K, REACTIVOS | H52: 17 2021-99-004372-000 | I52: 12 2021-003423-015 | J52: 1 0805.210.161.00.00 2021 | K52: 2021/09/13 | L52: 2021/10/13 | M52: 2021/10/13 | N52: 2021/10/18 | O52: 30 | P52: 5 | Q52: 35 | R52: 5 | S52: 21 | T52: 1355.2 | U52: 1355.2 | V52: 121
A53: 2021-FAKT-004181-00 | B53: 2021/09/10 | C53: 11013444 | D53: 385.13 | E53: 6594 | F53: BERDIN,S.L. | G53: MATERIALA | H53: 17 2021-99-004203-000 | I53: 12 2021-003311-015 | J53: 1 0800.212.165.00.00 2021 | K53: 2021/09/14 | L53: 2021/09/28 | M53: 2021/09/28 | N53: 2021/10/01 | O53: 14 | P53: 3 | Q53: 17 | R53: -13 | S53: 21 | T53: 1155.39 | U53: -5006.69 | V53: 121
A54: 2021-FAKT-004183-00 | B54: 2021/09/10 | C54: 11013447 | D54: 48.71 | E54: 6594 | F54: BERDIN,S.L. | G54: UNTERRUPTOR CREPUSCULAR | H54: 17 2021-99-004204-000 | I54: 12 2021-003311-016 | J54: 1 0514.211.172.30.00 2021 | K54: 2021/09/14 | L54: 2021/09/28 | M54: 2021/09/28 | N54: 2021/10/01 | O54: 14 | P54: 3 | Q54: 17 | R54: -13 | S54: 21 | T54: 146.13 | U54: -633.23 | V54: 121
A55: 2021-FAKT-004184-00 | B55: 2021/09/10 | C55: 11013446 | D55: 187.04 | E55: 6594 | F55: BERDIN,S.L. | G55: DIFERENCIAL REARMABLES C/CONTACTO | H55: 17 2021-99-004205-000 | I55: 12 2021-003311-017 | J55: 1 0800.212.165.00.00 2021 | K55: 2021/09/14 | L55: 2021/09/28 | M55: 2021/09/28 | N55: 2021/10/01 | O55: 14 | P55: 3 | Q55: 17 | R55: -13 | S55: 21 | T55: 561.12 | U55: -2431.52 | V55: 121
A56: 2021-FAKT-004186-00 | B56: 2021/09/10 | C56: 11013449 | D56: 3.13 | E56: 6594 | F56: BERDIN,S.L. | G56: CAJA DERIVACION | H56: 17 2021-99-004206-000 | I56: 12 2021-003311-018 | J56: 1 0800.211.920.00.00 2021 | K56: 2021/09/14 | L56: 2021/09/28 | M56: 2021/09/28 | N56: 2021/10/01 | O56: 14 | P56: 3 | Q56: 17 | R56: -13 | S56: 21 | T56: 9.39 | U56: -40.69 | V56: 121
A57: 2021-FAKT-004187-00 | B57: 2021/09/10 | C57: 11013451 | D57: 47.98 | E57: 6594 | F57: BERDIN,S.L. | G57: BLISTER PILAS, LAMPARA COMP.NO INTEG | H57: 17 2021-99-004207-000 | I57: 12 2021-003311-019 | J57: 1 0800.212.165.00.00 2021 | K57: 2021/09/14 | L57: 2021/09/28 | M57: 2021/09/28 | N57: 2021/10/01 | O57: 14 | P57: 3 | Q57: 17 | R57: -13 | S57: 21 | T57: 143.94 | U57: -623.74 | V57: 121
A58: 2021-FAKT-004188-00 | B58: 2021/09/10 | C58: 11013450 | D58: 43.45 | E58: 6594 | F58: BERDIN,S.L. | G58: CAJAS DERIVACION | H58: 17 2021-99-004208-000 | I58: 12 2021-003311-020 | J58: 1 0902.211.323.00.00 2021 | K58: 2021/09/14 | L58: 2021/09/28 | M58: 2021/09/28 | N58: 2021/10/01 | O58: 14 | P58: 3 | Q58: 17 | R58: -13 | S58: 21 | T58: 130.35 | U58: -564.85 | V58: 121
A59: 2021-FAKT-004185-00 | B59: 2021/09/10 | C59: 11013448 | D59: 656.03 | E59: 6594 | F59: BERDIN,S.L. | G59: MATERIALA | H59: 17 2021-99-004218-000 | I59: 12 2021-003317-001 | J59: 1 0906.211.172.20.00 2021 | K59: 2021/09/14 | L59: 2021/09/29 | M59: 2021/09/29 | N59: 2021/10/01 | O59: 15 | P59: 2 | Q59: 17 | R59: -13 | S59: 21 | T59: 1312.06 | U59: -8528.39 | V59: 121
A60: 2021-FAKT-004141-00 | B60: 2021/09/10 | C60: 40 | D60: 72.66 | E60: 57 | F60: CRISTALERIA ERRASTI | G60: KIROLDEGIA-GRIFO PRESTO XL | H60: 17 2021-99-004220-000 | I60: 12 2021-003317-003 | J60: 1 1200.211.342.10.00 2021 | K60: 2021/09/10 | L60: 2021/09/29 | M60: 2021/09/29 | N60: 2021/10/01 | O60: 19 | P60: 2 | Q60: 21 | R60: -9 | S60: 21 | T60: 145.32 | U60: -653.94 | V60: 121
A61: 2021-FAKT-004191-00 | B61: 2021/09/14 | C61: A 21000782 | D61: 254.1 | E61: 3877 | F61: JUBAR ATEAK, S.L. | G61: 6 UD. SUMINISTRO EMISOR | H61: 17 2021-99-004209-000 | I61: 12 2021-003311-021 | J61: 1 0800.210.153.30.00 2021 | K61: 2021/09/15 | L61: 2021/09/28 | M61: 2021/09/28 | N61: 2021/10/01 | O61: 13 | P61: 3 | Q61: 16 | R61: -14 | S61: 21 | T61: 762.3 | U61: -3557.4 | V61: 121
A62: 2021-FAKT-004212-00 | B62: 2021/09/15 | C62: FV2111100 | D62: 6.1 | E62: 7113 | F62: SEIN BATU S.L. | G62: MATERIALA | H62: 17 2021-99-004158-002 | I62: 12 2021-003078-017 | J62: 1 0800.210.153.30.00 2021 | K62: 2021/09/17 | L62: 2021/09/27 | M62: 2021/09/27 | N62: 2021/10/01 | O62: 10 | P62: 4 | Q62: 14 | R62: -16 | S62: 21 | T62: 24.4 | U62: -97.6 | V62: 121
A63: 2021-FAKT-004212-00 | B63: 2021/09/15 | C63: FV2111100 | D63: 78.14 | E63: 7113 | F63: SEIN BATU S.L. | G63: MATERIALA | H63: 17 2021-99-004158-003 | I63: 12 2021-003078-018 | J63: 1 0800.212.165.00.00 2021 | K63: 2021/09/17 | L63: 2021/09/27 | M63: 2021/09/27 | N63: 2021/10/01 | O63: 10 | P63: 4 | Q63: 14 | R63: -16 | S63: 21 | T63: 312.56 | U63: -1250.24 | V63: 121
A64: 2021-FAKT-004212-00 | B64: 2021/09/15 | C64: FV2111100 | D64: 29.96 | E64: 7113 | F64: SEIN BATU S.L. | G64: MATERIALA | H64: 17 2021-99-004158-007 | I64: 12 2021-003078-022 | J64: 1 0805.210.161.00.00 2021 | K64: 2021/09/17 | L64: 2021/09/27 | M64: 2021/09/27 | N64: 2021/10/01 | O64: 10 | P64: 4 | Q64: 14 | R64: -16 | S64: 21 | T64: 119.84 | U64: -479.36 | V64: 121
A65: 2021-FAKT-004221-00 | B65: 2021/09/15 | C65: F21/181 | D65: 1.79 | E65: 3839 | F65: ZANGUITU MADINA YOSEBA Y OTROS C.B | G65: MATERIALA | H65: 17 2021-99-004214-001 | I65: 12 2021-003311-026 | J65: 1 0805.210.161.00.00 2021 | K65: 2021/09/20 | L65: 2021/09/28 | M65: 2021/09/28 | N65: 2021/10/01 | O65: 8 | P65: 3 | Q65: 11 | R65: -19 | S65: 21 | T65: 5.37 | U65: -34.01 | V65: 121
A66: 2021-FAKT-004221-00 | B66: 2021/09/15 | C66: F21/181 | D66: 153.02 | E66: 3839 | F66: ZANGUITU MADINA YOSEBA Y OTROS C.B | G66: MATERIALA | H66: 17 2021-99-004214-002 | I66: 12 2021-003311-027 | J66: 1 0901.211.323.00.00 2021 | K66: 2021/09/20 | L66: 2021/09/28 | M66: 2021/09/28 | N66: 2021/10/01 | O66: 8 | P66: 3 | Q66: 11 | R66: -19 | S66: 21 | T66: 459.06 | U66: -2907.38 | V66: 121
A67: 2021-FAKT-004221-00 | B67: 2021/09/15 | C67: F21/181 | D67: 21 | E67: 3839 | F67: ZANGUITU MADINA YOSEBA Y OTROS C.B | G67: MATERIALA | H67: 17 2021-99-004214-003 | I67: 12 2021-003311-028 | J67: 1 0906.211.172.20.00 2021 | K67: 2021/09/20 | L67: 2021/09/28 | M67: 2021/09/28 | N67: 2021/10/01 | O67: 8 | P67: 3 | Q67: 11 | R67: -19 | S67: 21 | T67: 63 | U67: -399 | V67: 121
A68: 2021-FAKT-004287-00 | B68: 2021/09/15 | C68: 21FVEO00258 | D68: 94.45 | E68: 572 | F68: CANTERA Y CALERA DE KOBATE, S.L. | G68: ARENA FINA, GRAVA 12/18 | H68: 17 2021-99-004237-000 | I68: 12 2021-003317-021 | J68: 1 0805.210.161.00.00 2021 | K68: 2021/09/24 | L68: 2021/09/29 | M68: 2021/09/29 | N68: 2021/10/01 | O68: 5 | P68: 2 | Q68: 7 | R68: -23 | S68: 21 | T68: 188.9 | U68: -2172.35 | V68: =IF(P68>30,200+S68,100+S68) -> 121
A69: 2021-FAKT-004194-00 | B69: 2021/09/15 | C69: 1868 | D69: 181.76 | E69: 190 | F69: OMU CERAMICAS | G69: 4 SACOS CEMENTO GRIS1 SACO COLA 252 GRIS10 PLACA PYL BA13 2000X12001 SACO PERLI | H69: 17 2021-99-004149-001 | I69: 12 2021-003078-006 | J69: 1 0808.210.153.00.00 2021 | K69: 2021/09/15 | L69: 2021/09/27 | M69: 2021/09/27 | N69: 2021/10/01 | O69: 12 | P69: 4 | Q69: 16 | R69: -14 | S69: 21 | T69: 727.04 | U69: -2544.64 | V69: 121
A70: 2021-FAKT-004210-00 | B70: 2021/09/15 | C70: FV2111096 | D70: 456.22 | E70: 7113 | F70: SEIN BATU S.L. | G70: MATERIALA | H70: 17 2021-99-004278-000 | I70: 12 2021-003388-017 | J70: 1 1200.211.342.10.00 2021 | K70: 2021/09/17 | L70: 2021/10/06 | M70: 2021/10/06 | N70: 2021/10/08 | O70: 19 | P70: 2 | Q70: 21 | R70: -9 | S70: 21 | T70: 912.44 | U70: -4105.98 | V70: 121
A71: 2021-FAKT-004500-00 | B71: 2021/09/15 | C71: 20210325 | D71: 298.98 | E71: 121 | F71: ELECTRO URONDO, S.L. | G71: REPARACION BOMBA | H71: 17 2021-99-004590-000 | I71: 12 2021-003742-017 | J71: 1 0805.210.161.00.00 2021 | K71: 2021/10/06 | L71: 2021/10/28 | M71: 2021/10/28 | N71: 2021/11/05 | O71: 22 | P71: 8 | Q71: 30 | R71: 0 | S71: 21 | T71: 2391.84 | U71: 0 | V71: 121
A72: 2021-FAKT-004265-00 | B72: 2021/09/16 | C72: 3530 | D72: 72.96 | E72: 2842 | F72: CALDERERIA UDALA, S.L. | G72: CHAPA GALVANIZADA 455X300X2 455X300X3 CHAPA INOX | H72: 17 2021-99-004181-000 | I72: 12 2021-003160-022 | J72: 1 0800.210.153.30.00 2021 | K72: 2021/09/22 | L72: 2021/09/27 | M72: 2021/09/27 | N72: 2021/10/01 | O72: 5 | P72: 4 | Q72: 9 | R72: -21 | S72: 21 | T72: 291.84 | U72: -1532.16 | V72: 121
A73: 2021-FAKT-004232-00 | B73: 2021/09/16 | C73: 743 /2021 | D73: 27.41 | E73: 644 | F73: AUTO ELECTRICIDAD SAN ANDRES, S.L. | G73: KONPONKETA: TOYOTA LAND CRUISER 5101-HWM | H73: 17 2021-99-004242-000 | I73: 12 2021-003317-026 | J73: 1 0104.213.132.00.00 2021 | K73: 2021/09/20 | L73: 2021/09/29 | M73: 2021/09/29 | N73: 2021/10/01 | O73: 9 | P73: 2 | Q73: 11 | R73: -19 | S73: 21 | T73: 54.82 | U73: -520.79 | V73: 121
A74: 2021-FAKT-004225-00 | B74: 2021/09/17 | C74: 11013935 | D74: 62.92 | E74: 6594 | F74: BERDIN,S.L. | G74: BASTIDOR VENTANA, PULSADOR, CABLE | H74: 17 2021-99-004162-000 | I74: 12 2021-003160-003 | J74: 1 0902.211.323.00.00 2021 | K74: 2021/09/20 | L74: 2021/09/27 | M74: 2021/09/27 | N74: 2021/10/01 | O74: 7 | P74: 4 | Q74: 11 | R74: -19 | S74: 21 | T74: 251.68 | U74: -1195.48 | V74: 121
A75: 2021-FAKT-004226-00 | B75: 2021/09/17 | C75: 11013937 | D75: 1.2 | E75: 6594 | F75: BERDIN,S.L. | G75: MARCO BASICO 2 MODULOS | H75: 17 2021-99-004163-000 | I75: 12 2021-003160-004 | J75: 1 0902.211.323.00.00 2021 | K75: 2021/09/20 | L75: 2021/09/27 | M75: 2021/09/27 | N75: 2021/10/01 | O75: 7 | P75: 4 | Q75: 11 | R75: -19 | S75: 21 | T75: 4.8 | U75: -22.8 | V75: 121
A76: 2021-FAKT-004228-00 | B76: 2021/09/17 | C76: 11013938 | D76: 75.12 | E76: 6594 | F76: BERDIN,S.L. | G76: DETECTOR TECHO EMPOTRABLE | H76: 17 2021-99-004165-000 | I76: 12 2021-003160-006 | J76: 1 0902.211.323.00.00 2021 | K76: 2021/09/20 | L76: 2021/09/27 | M76: 2021/09/27 | N76: 2021/10/01 | O76: 7 | P76: 4 | Q76: 11 | R76: -19 | S76: 21 | T76: 300.48 | U76: -1427.28 | V76: 121
A77: 2021-FAKT-004229-00 | B77: 2021/09/17 | C77: 11013940 | D77: 53.75 | E77: 6594 | F77: BERDIN,S.L. | G77: MATERIALA | H77: 17 2021-99-004166-000 | I77: 12 2021-003160-007 | J77: 1 0902.211.323.00.00 2021 | K77: 2021/09/20 | L77: 2021/09/27 | M77: 2021/09/27 | N77: 2021/10/01 | O77: 7 | P77: 4 | Q77: 11 | R77: -19 | S77: 21 | T77: 215 | U77: -1021.25 | V77: 121
A78: 2021-FAKT-004235-00 | B78: 2021/09/17 | C78: 21/00458 | D78: 237.4 | E78: 4122 | F78: ARRASATE KRISTALDEGIA, S.L. | G78: ROLLO VINILO MORADO | H78: 17 2021-99-004229-000 | I78: 12 2021-003317-013 | J78: 1 0800.211.441.10.00 2021 | K78: 2021/09/20 | L78: 2021/09/29 | M78: 2021/09/29 | N78: 2021/10/01 | O78: 9 | P78: 2 | Q78: 11 | R78: -19 | S78: 21 | T78: 474.8 | U78: -4510.6 | V78: 121
A79: 2021-FAKT-004230-00 | B79: 2021/09/17 | C79: 11013939 | D79: 41.75 | E79: 6594 | F79: BERDIN,S.L. | G79: PANEL LED | H79: 17 2021-99-004295-000 | I79: 12 2021-003388-036 | J79: 1 1200.211.342.10.00 2021 | K79: 2021/09/20 | L79: 2021/10/06 | M79: 2021/10/06 | N79: 2021/10/08 | O79: 16 | P79: 2 | Q79: 18 | R79: -12 | S79: 21 | T79: 83.5 | U79: -501 | V79: 121
A80: 2021-FAKT-004254-00 | B80: 2021/09/20 | C80: 21/00459 | D80: 319.44 | E80: 4122 | F80: ARRASATE KRISTALDEGIA, S.L. | G80: BEDOÑABE IKASTOLA.- ZARPA EXTRA PARA VIDRIO SEGURIDAD, JUNTA GOMA | H80: 17 2021-99-004177-000 | I80: 12 2021-003160-018 | J80: 1 0902.211.323.00.00 2021 | K80: 2021/09/21 | L80: 2021/09/27 | M80: 2021/09/27 | N80: 2021/10/01 | O80: 6 | P80: 4 | Q80: 10 | R80: -20 | S80: 21 | T80: 1277.76 | U80: -6388.8 | V80: 121
A81: 2021-FAKT-004257-00 | B81: 2021/09/20 | C81: 848 | D81: 393.25 | E81: 11776 | F81: AREA 7 S.L. | G81: ETXALUZE JUBILATUEN ETXEA (ABAROA) - AVERIA DE INCENDIO | H81: 17 2021-99-004230-000 | I81: 12 2021-003317-014 | J81: 1 0807.212.136.00.00 2021 | K81: 2021/09/22 | L81: 2021/09/29 | M81: 2021/09/29 | N81: 2021/10/01 | O81: 7 | P81: 2 | Q81: 9 | R81: -21 | S81: 21 | T81: 786.5 | U81: -8258.25 | V81: 121
A82: 2021-FAKT-004288-00 | B82: 2021/09/22 | C82: 6769 | D82: 591.69 | E82: 13307 | F82: PERSIANAS KAR | G82: PERTSIA KONPONKETA ETA MOTOR TUBULARRA JARTZEA - ERGUIN ESKOLA. | H82: 17 2021-99-004238-000 | I82: 12 2021-003317-022 | J82: 1 0901.211.323.00.00 2021 | K82: 2021/09/24 | L82: 2021/09/29 | M82: 2021/09/29 | N82: 2021/10/01 | O82: 5 | P82: 2 | Q82: 7 | R82: -23 | S82: 21 | T82: 1183.38 | U82: -13608.87 | V82: 121
A83: 2021-FAKT-004258-00 | B83: 2021/09/22 | C83: 108 | D83: 193.6 | E83: 9190 | F83: SERRERIA ERRASTI S.L. | G83: CENTRO CIVICO ERGUIN -JUBILADOS - TABLEROS BLANCOS | H83: 17 2021-99-004178-000 | I83: 12 2021-003160-019 | J83: 1 0406.211.337.10.00 2021 | K83: 2021/09/22 | L83: 2021/09/27 | M83: 2021/09/27 | N83: 2021/10/04 | O83: 5 | P83: 7 | Q83: 12 | R83: -18 | S83: 21 | T83: 1355.2 | U83: -3484.8 | V83: 121
A84: 2021-FAKT-004260-00 | B84: 2021/09/22 | C84: 0113 | D84: 1052.7 | E84: 17432 | F84: MAKOR DENDA SL | G84: CORTINA ENROLLABLE LACADO BLANCO, TEJIDO SCREENFLEX OPACO 3200, COLOR BLANCO 15 | H84: 17 2021-99-004191-000 | I84: 12 2021-003322-009 | J84: 1 0800.211.920.00.00 2021 | K84: 2021/09/22 | L84: 2021/09/28 | M84: 2021/09/30 | N84: 2021/10/11 | O84: 8 | P84: 11 | Q84: 19 | R84: -11 | S84: 21 | T84: 11579.7 | U84: -11579.7 | V84: 121
A85: 2021-FAKT-004487-00 | B85: 2021/09/23 | C85: 021484W | D85: 235.01 | E85: 3998 | F85: EUSKALTEL S.A. | G85: IRAILEKO TELEFONO KUOTAK ETA KONTSUMOAK | H85: 17 2021-99-004432-011 | I85: 12 2021-003514-014 | J85: 1 0800.212.165.00.00 2021 | K85: 2021/10/05 | L85: 2021/10/18 | M85: 2021/10/21 | N85: 2021/10/29 | O85: 16 | P85: 8 | Q85: 24 | R85: -6 | S85: 21 | T85: 1880.08 | U85: -1410.06 | V85: 121
A86: 2021-FAKT-004487-00 | B86: 2021/09/23 | C86: 021484W | D86: 324.62 | E86: 3998 | F86: EUSKALTEL S.A. | G86: IRAILEKO TELEFONO KUOTAK ETA KONTSUMOAK | H86: 17 2021-99-004432-014 | I86: 12 2021-003514-017 | J86: 1 0805.210.161.00.00 2021 | K86: 2021/10/05 | L86: 2021/10/18 | M86: 2021/10/21 | N86: 2021/10/29 | O86: 16 | P86: 8 | Q86: 24 | R86: -6 | S86: 21 | T86: 2596.96 | U86: -1947.72 | V86: 121
A87: 2021-FAKT-004313-00 | B87: 2021/09/24 | C87: 35/2021 | D87: 6869.76 | E87: 958 | F87: CONST. Y ASFALTOS MULARRI, S.L. | G87: DRENAJE HUERTAS GARGARTZA | H87: 17 2021-99-004462-000 | I87: 12 2021-003473-000 | J87: 1 0514.211.172.30.00 2021 | K87: 2021/09/28 | L87: 2021/10/14 | M87: 2021/10/14 | N87: 2021/10/26 | O87: 16 | P87: 12 | Q87: 28 | R87: -2 | S87: 21 | T87: 82437.12 | U87: -13739.52 | V87: 121
A88: 2021-FAKT-004303-00 | B88: 2021/09/25 | C88: 11014272 | D88: 15.85 | E88: 6594 | F88: BERDIN,S.L. | G88: 4 BASTIDOR 1 VENTANA, 4 MARCO BASICO 2 MODULOS, 4 INTERRUPTOR MONOPOLAR | H88: 17 2021-99-004221-000 | I88: 12 2021-003317-004 | J88: 1 0405.211.231.40.00 2021 | K88: 2021/09/27 | L88: 2021/09/29 | M88: 2021/09/29 | N88: 2021/10/01 | O88: 2 | P88: 2 | Q88: 4 | R88: -26 | S88: 21 | T88: 31.7 | U88: -412.1 | V88: 121
A89: 2021-FAKT-004300-00 | B89: 2021/09/25 | C89: 11014269 | D89: 13.56 | E89: 6594 | F89: BERDIN,S.L. | G89: MATERIALA | H89: 17 2021-99-004243-000 | I89: 12 2021-003317-027 | J89: 1 0901.211.323.00.00 2021 | K89: 2021/09/27 | L89: 2021/09/29 | M89: 2021/09/29 | N89: 2021/10/01 | O89: 2 | P89: 2 | Q89: 4 | R89: -26 | S89: 21 | T89: 27.12 | U89: -352.56 | V89: 121
A90: 2021-FAKT-004304-00 | B90: 2021/09/25 | C90: 11014273 | D90: 21.27 | E90: 6594 | F90: BERDIN,S.L. | G90: LAMPARA COREPRO LEDLINEAR | H90: 17 2021-99-004285-000 | I90: 12 2021-003388-024 | J90: 1 1200.211.342.10.00 2021 | K90: 2021/09/27 | L90: 2021/10/06 | M90: 2021/10/06 | N90: 2021/10/08 | O90: 9 | P90: 2 | Q90: 11 | R90: -19 | S90: 21 | T90: 42.54 | U90: -404.13 | V90: 121
A91: 2021-FAKT-004302-00 | B91: 2021/09/25 | C91: 11014271 | D91: 11.37 | E91: 6594 | F91: BERDIN,S.L. | G91: 4 LAMPARA MASTER COLOUR | H91: 17 2021-99-004369-000 | I91: 12 2021-003423-012 | J91: 1 1200.211.342.10.00 2021 | K91: 2021/09/27 | L91: 2021/10/13 | M91: 2021/10/13 | N91: 2021/10/18 | O91: 16 | P91: 5 | Q91: 21 | R91: -9 | S91: 21 | T91: 56.85 | U91: -102.33 | V91: 121
A92: 2021-FAKT-004301-00 | B92: 2021/09/25 | C92: 11014270 | D92: 182.56 | E92: 6594 | F92: BERDIN,S.L. | G92: BLISTER PILAS | H92: 17 2021-99-004370-000 | I92: 12 2021-003423-013 | J92: 1 1200.211.342.10.00 2021 | K92: 2021/09/27 | L92: 2021/10/13 | M92: 2021/10/13 | N92: 2021/10/18 | O92: 16 | P92: 5 | Q92: 21 | R92: -9 | S92: 21 | T92: 912.8 | U92: -1643.04 | V92: 121
A93: 2021-FAKT-004456-00 | B93: 2021/09/27 | C93: 16893 | D93: 126.12 | E93: 4392 | F93: GIDECOLOR S.L.L. | G93: MATERIALA. | H93: 17 2021-99-004410-001 | I93: 12 2021-003447-016 | J93: 1 0800.210.153.30.00 2021 | K93: 2021/10/05 | L93: 2021/10/15 | M93: 2021/10/15 | N93: 2021/10/22 | O93: 10 | P93: 7 | Q93: 17 | R93: -13 | S93: 21 | T93: 882.84 | U93: -1639.56 | V93: 121
A94: 2021-FAKT-004456-00 | B94: 2021/09/27 | C94: 16893 | D94: 75.38 | E94: 4392 | F94: GIDECOLOR S.L.L. | G94: MATERIALA. | H94: 17 2021-99-004410-002 | I94: 12 2021-003447-017 | J94: 1 0808.210.133.00.01 2021 | K94: 2021/10/05 | L94: 2021/10/15 | M94: 2021/10/15 | N94: 2021/10/22 | O94: 10 | P94: 7 | Q94: 17 | R94: -13 | S94: 21 | T94: 527.66 | U94: -979.94 | V94: 121
A95: 2021-FAKT-004456-00 | B95: 2021/09/27 | C95: 16893 | D95: 72.13 | E95: 4392 | F95: GIDECOLOR S.L.L. | G95: MATERIALA. | H95: 17 2021-99-004410-003 | I95: 12 2021-003447-018 | J95: 1 0808.210.153.00.00 2021 | K95: 2021/10/05 | L95: 2021/10/15 | M95: 2021/10/15 | N95: 2021/10/22 | O95: 10 | P95: 7 | Q95: 17 | R95: -13 | S95: 21 | T95: 504.91 | U95: -937.69 | V95: 121
A96: 2021-FAKT-004456-00 | B96: 2021/09/27 | C96: 16893 | D96: 323.13 | E96: 4392 | F96: GIDECOLOR S.L.L. | G96: MATERIALA. | H96: 17 2021-99-004410-004 | I96: 12 2021-003447-019 | J96: 1 0906.211.172.20.00 2021 | K96: 2021/10/05 | L96: 2021/10/15 | M96: 2021/10/15 | N96: 2021/10/22 | O96: 10 | P96: 7 | Q96: 17 | R96: -13 | S96: 21 | T96: 2261.91 | U96: -4200.69 | V96: 121
A97: 2021-FAKT-004322-00 | B97: 2021/09/28 | C97: 212553 | D97: 221.64 | E97: 11711 | F97: MAQUELSA | G97: 2020/07/02 - 2021/09/28 INPRIMAKIEN KOPIAK | H97: 17 2021-99-004254-001 | I97: 12 2021-003394-005 | J97: 1 0104.215.132.00.01 2021 | K97: 2021/09/28 | L97: 2021/10/05 | M97: 2021/10/07 | N97: 2021/10/08 | O97: 9 | P97: 1 | Q97: 10 | R97: -20 | S97: 21 | T97: 221.64 | U97: -4432.8 | V97: 121
A98: 2021-FAKT-004322-00 | B98: 2021/09/28 | C98: 212553 | D98: 348.21 | E98: 11711 | F98: MAQUELSA | G98: 2020/07/02 - 2021/09/28 INPRIMAKIEN KOPIAK | H98: 17 2021-99-004254-002 | I98: 12 2021-003394-006 | J98: 1 0201.215.332.10.00 2021 | K98: 2021/09/28 | L98: 2021/10/05 | M98: 2021/10/07 | N98: 2021/10/08 | O98: 9 | P98: 1 | Q98: 10 | R98: -20 | S98: 21 | T98: 348.21 | U98: -6964.2 | V98: 121
A99: 2021-FAKT-004322-00 | B99: 2021/09/28 | C99: 212553 | D99: 319.05 | E99: 11711 | F99: MAQUELSA | G99: 2020/07/02 - 2021/09/28 INPRIMAKIEN KOPIAK | H99: 17 2021-99-004254-003 | I99: 12 2021-003394-007 | J99: 1 0211.215.335.10.00 2021 | K99: 2021/09/28 | L99: 2021/10/05 | M99: 2021/10/07 | N99: 2021/10/08 | O99: 9 | P99: 1 | Q99: 10 | R99: -20 | S99: 21 | T99: 319.05 | U99: -6381 | V99: 121
A100: 2021-FAKT-004322-00 | B100: 2021/09/28 | C100: 212553 | D100: 0.56 | E100: 11711 | F100: MAQUELSA | G100: 2020/07/02 - 2021/09/28 INPRIMAKIEN KOPIAK | H100: 17 2021-99-004254-004 | I100: 12 2021-003394-008 | J100: 1 0204.215.334.00.00 2021 | K100: 2021/09/28 | L100: 2021/10/05 | M100: 2021/10/07 | N100: 2021/10/08 | O100: 9 | P100: 1 | Q100: 10 | R100: -20 | S100: 21 | T100: 0.56 | U100: -11.2 | V100: 121
A101: 2021-FAKT-004322-00 | B101: 2021/09/28 | C101: 212553 | D101: 29.84 | E101: 11711 | F101: MAQUELSA | G101: 2020/07/02 - 2021/09/28 INPRIMAKIEN KOPIAK | H101: 17 2021-99-004254-006 | I101: 12 2021-003394-010 | J101: 1 0412.215.337.22.00 2021 | K101: 2021/09/28 | L101: 2021/10/05 | M101: 2021/10/07 | N101: 2021/10/08 | O101: 9 | P101: 1 | Q101: 10 | R101: -20 | S101: 21 | T101: 29.84 | U101: -596.8 | V101: 121
A102: 2021-FAKT-004322-00 | B102: 2021/09/28 | C102: 212553 | D102: 1679.49 | E102: 11711 | F102: MAQUELSA | G102: 2020/07/02 - 2021/09/28 INPRIMAKIEN KOPIAK | H102: 17 2021-99-004254-007 | I102: 12 2021-003394-011 | J102: 1 0600.215.920.00.00 2021 | K102: 2021/09/28 | L102: 2021/10/05 | M102: 2021/10/07 | N102: 2021/10/08 | O102: 9 | P102: 1 | Q102: 10 | R102: -20 | S102: 21 | T102: 1679.49 | U102: -33589.8 | V102: 121
A103: 2021-FAKT-004322-00 | B103: 2021/09/28 | C103: 212553 | D103: 28.5 | E103: 11711 | F103: MAQUELSA | G103: 2020/07/02 - 2021/09/28 INPRIMAKIEN KOPIAK | H103: 17 2021-99-004254-008 | I103: 12 2021-003394-012 | J103: 1 0804.215.153.40.00 2021 | K103: 2021/09/28 | L103: 2021/10/05 | M103: 2021/10/07 | N103: 2021/10/08 | O103: 9 | P103: 1 | Q103: 10 | R103: -20 | S103: 21 | T103: 28.5 | U103: -570 | V103: 121
A104: 2021-FAKT-004322-00 | B104: 2021/09/28 | C104: 212553 | D104: 59.19 | E104: 11711 | F104: MAQUELSA | G104: 2020/07/02 - 2021/09/28 INPRIMAKIEN KOPIAK | H104: 17 2021-99-004254-011 | I104: 12 2021-003394-015 | J104: 1 0906.215.172.20.00 2021 | K104: 2021/09/28 | L104: 2021/10/05 | M104: 2021/10/07 | N104: 2021/10/08 | O104: 9 | P104: 1 | Q104: 10 | R104: -20 | S104: 21 | T104: 59.19 | U104: -1183.8 | V104: 121
A105: 2021-FAKT-004389-00 | B105: 2021/09/28 | C105: 1668 | D105: 130.47 | E105: 17696 | F105: TALLERES CHAPIME SL | G105: BATERIA SUSTITUCION | H105: 17 2021-99-004322-000 | I105: 12 2021-003395-009 | J105: 1 0800.213.153.40.00 2021 | K105: 2021/10/04 | L105: 2021/10/07 | M105: 2021/10/07 | N105: 2021/10/18 | O105: 3 | P105: 11 | Q105: 14 | R105: -16 | S105: 21 | T105: 1435.17 | U105: -2087.52 | V105: 121
A106: 2021-FAKT-004856-00 | B106: 2021/09/28 | C106: 21NA115796 | D106: 94.61 | E106: 9932 | F106: BLINKER | G106: TORN.TIRA FONDO DIN 571 ZN. 8X1 | H106: 17 2021-99-004738-000 | I106: 12 2021-003843-027 | J106: 1 0800.210.153.30.00 2021 | K106: 2021/11/05 | L106: 2021/11/10 | M106: 2021/11/10 | N106: 2021/11/12 | O106: 5 | P106: 2 | Q106: 7 | R106: -23 | S106: 21 | T106: 189.22 | U106: -2176.03 | V106: 121
A107: 2021-FAKT-004329-00 | B107: 2021/09/29 | C107: 7541 | D107: 247.24 | E107: 11636 | F107: EUSKOAUTO 2003 SL | G107: TOYOTA 7993HNN PRIUS - VERIFICAR AVERIA, RELLENAR COMBUSTIBLE Y SUSTITUIR BATER | H107: 17 2021-99-004272-000 | I107: 12 2021-003388-010 | J107: 1 0104.213.132.00.00 2021 | K107: 2021/09/29 | L107: 2021/10/06 | M107: 2021/10/06 | N107: 2021/10/08 | O107: 7 | P107: 2 | Q107: 9 | R107: -21 | S107: 21 | T107: 494.48 | U107: -5192.04 | V107: 121
A108: 2021-FAKT-004332-00 | B108: 2021/09/29 | C108: 410814 | D108: 4864.2 | E108: 3604 | F108: ARELSA | G108: SUMINISTRO DE 5 KITS TELEGESTION + 8 RELE | H108: 17 2021-99-004314-000 | I108: 12 2021-003394-110 | J108: 1 0800.212.165.00.00 2021 | K108: 2021/09/29 | L108: 2021/10/07 | M108: 2021/10/07 | N108: 2021/10/11 | O108: 8 | P108: 4 | Q108: 12 | R108: -18 | S108: 21 | T108: 19456.8 | U108: -87555.6 | V108: 121
A109: 2021-FAKT-004324-00 | B109: 2021/09/29 | C109: 20210107 | D109: 707.85 | E109: 4476 | F109: CONSTRUCCIONES FRIXI, S.L. | G109: REJUNTEOS Y REPARACION DE LOSAS ACERA EN MAALAKO ERREBALA SEGUN CERTIFICACION | H109: 17 2021-99-004433-000 | I109: 12 2021-003460-001 | J109: 1 0808.210.153.00.00 2021 | K109: 2021/09/29 | L109: 2021/10/18 | M109: 2021/10/18 | N109: 2021/10/22 | O109: 19 | P109: 4 | Q109: 23 | R109: -7 | S109: 21 | T109: 2831.4 | U109: -4954.95 | V109: 121
A110: 2021-FAKT-004348-00 | B110: 2021/09/29 | C110: 2021//632 | D110: 775.38 | E110: 8164 | F110: PROTEC PROT.Y TECNOLOGIA DE LA MADERA SL | G110: CO21/01357 - ESP.KODEA: 2021IING0028 - SUMINISTRO PUERTA+MODULO FIJO | H110: 17 2021-99-004396-000 | I110: 12 2021-003447-002 | J110: 1 0510.210.172.00.01 2021 | K110: 2021/09/30 | L110: 2021/10/15 | M110: 2021/10/15 | N110: 2021/10/22 | O110: 15 | P110: 7 | Q110: 22 | R110: -8 | S110: 21 | T110: 5427.66 | U110: -6203.04 | V110: 121
A111: 2021-FAKT-004325-00 | B111: 2021/09/29 | C111: 20210108 | D111: 5456.64 | E111: 4476 | F111: CONSTRUCCIONES FRIXI, S.L. | G111: ADOKINEN ZOLADURA EGONKORTZEKO LANA EN MAALAKO ERREBALA | H111: 17 2021-99-004393-000 | I111: 12 2021-003514-001 | J111: 1 0808.210.153.00.00 2021 | K111: 2021/09/29 | L111: 2021/10/15 | M111: 2021/10/21 | N111: 2021/10/26 | O111: 22 | P111: 5 | Q111: 27 | R111: -3 | S111: 21 | T111: 27283.2 | U111: -16369.92 | V111: 121
A112: 2021-FAKT-004384-00 | B112: 2021/09/30 | C112: UU21807742 | D112: 111.32 | E112: 762 | F112: NIPPON GASES ESPAÑA, S.L.U | G112: RENOV.UC-BOT.VIG:01-09-2021 A 31-08-2022 | H112: 17 2021-99-004321-000 | I112: 12 2021-003395-008 | J112: 1 0800.210.153.30.00 2021 | K112: 2021/10/04 | L112: 2021/10/07 | M112: 2021/10/07 | N112: 2021/10/18 | O112: 3 | P112: 11 | Q112: 14 | R112: -16 | S112: 21 | T112: 1224.52 | U112: -1781.12 | V112: 121
A113: 2021-FAKT-004449-00 | B113: 2021/09/30 | C113: 2021A 52911 | D113: 8.86 | E113: 3230 | F113: EUSKONACEX, S.A. - MENSAJEROS | G113: IRAILEKO ZERBITZUA | H113: 17 2021-99-004366-000 | I113: 12 2021-003423-009 | J113: 1 0800.212.165.00.00 2021 | K113: 2021/10/05 | L113: 2021/10/13 | M113: 2021/10/13 | N113: 2021/10/18 | O113: 8 | P113: 5 | Q113: 13 | R113: -17 | S113: 21 | T113: 44.3 | U113: -150.62 | V113: 121
A114: 2021-FAKT-004393-00 | B114: 2021/09/30 | C114: 11014740 | D114: 165.95 | E114: 6594 | F114: BERDIN,S.L. | G114: CABLE RETFLEX | H114: 17 2021-99-004325-000 | I114: 12 2021-003395-012 | J114: 1 0800.212.165.00.00 2021 | K114: 2021/10/04 | L114: 2021/10/07 | M114: 2021/10/07 | N114: 2021/10/18 | O114: 3 | P114: 11 | Q114: 14 | R114: -16 | S114: 21 | T114: 1825.45 | U114: -2655.2 | V114: 121
A115: 2021-FAKT-004394-00 | B115: 2021/09/30 | C115: 11014741 | D115: 131.01 | E115: 6594 | F115: BERDIN,S.L. | G115: CABLE RETFLEX | H115: 17 2021-99-004326-000 | I115: 12 2021-003395-013 | J115: 1 0800.212.165.00.00 2021 | K115: 2021/10/04 | L115: 2021/10/07 | M115: 2021/10/07 | N115: 2021/10/18 | O115: 3 | P115: 11 | Q115: 14 | R115: -16 | S115: 21 | T115: 1441.11 | U115: -2096.16 | V115: 121
A116: 2021-FAKT-004395-00 | B116: 2021/09/30 | C116: 11014742 | D116: 99.56 | E116: 6594 | F116: BERDIN,S.L. | G116: MATERIALA | H116: 17 2021-99-004327-000 | I116: 12 2021-003395-014 | J116: 1 0902.211.323.00.00 2021 | K116: 2021/10/04 | L116: 2021/10/07 | M116: 2021/10/07 | N116: 2021/10/18 | O116: 3 | P116: 11 | Q116: 14 | R116: -16 | S116: 21 | T116: 1095.16 | U116: -1592.96 | V116: 121
A117: 2021-FAKT-004396-00 | B117: 2021/09/30 | C117: 11014743 | D117: 72.42 | E117: 6594 | F117: BERDIN,S.L. | G117: MATERIALA | H117: 17 2021-99-004328-000 | I117: 12 2021-003395-015 | J117: 1 0800.212.165.00.00 2021 | K117: 2021/10/04 | L117: 2021/10/07 | M117: 2021/10/07 | N117: 2021/10/18 | O117: 3 | P117: 11 | Q117: 14 | R117: -16 | S117: 21 | T117: 796.62 | U117: -1158.72 | V117: 121
A118: 2021-FAKT-004397-00 | B118: 2021/09/30 | C118: 11014744 | D118: 8.22 | E118: 6594 | F118: BERDIN,S.L. | G118: MATERIALA | H118: 17 2021-99-004329-000 | I118: 12 2021-003395-016 | J118: 1 0902.211.323.00.00 2021 | K118: 2021/10/04 | L118: 2021/10/07 | M118: 2021/10/07 | N118: 2021/10/18 | O118: 3 | P118: 11 | Q118: 14 | R118: -16 | S118: 21 | T118: 90.42 | U118: -131.52 | V118: 121
A119: 2021-FAKT-004445-00 | B119: 2021/09/30 | C119: F21/194 | D119: 93 | E119: 3839 | F119: ZANGUITU MADINA YOSEBA Y OTROS C.B | G119: MATERIALA. | H119: 17 2021-99-004364-001 | I119: 12 2021-003423-005 | J119: 1 0411.211.337.21.00 2021 | K119: 2021/10/05 | L119: 2021/10/13 | M119: 2021/10/13 | N119: 2021/10/18 | O119: 8 | P119: 5 | Q119: 13 | R119: -17 | S119: 21 | T119: 465 | U119: -1581 | V119: 121
A120: 2021-FAKT-004445-00 | B120: 2021/09/30 | C120: F21/194 | D120: 66.07 | E120: 3839 | F120: ZANGUITU MADINA YOSEBA Y OTROS C.B | G120: MATERIALA. | H120: 17 2021-99-004364-002 | I120: 12 2021-003423-006 | J120: 1 0800.210.153.30.00 2021 | K120: 2021/10/05 | L120: 2021/10/13 | M120: 2021/10/13 | N120: 2021/10/18 | O120: 8 | P120: 5 | Q120: 13 | R120: -17 | S120: 21 | T120: 330.35 | U120: -1123.19 | V120: 121
A121: 2021-FAKT-004445-00 | B121: 2021/09/30 | C121: F21/194 | D121: 174.47 | E121: 3839 | F121: ZANGUITU MADINA YOSEBA Y OTROS C.B | G121: MATERIALA. | H121: 17 2021-99-004364-003 | I121: 12 2021-003423-007 | J121: 1 0805.210.161.00.00 2021 | K121: 2021/10/05 | L121: 2021/10/13 | M121: 2021/10/13 | N121: 2021/10/18 | O121: 8 | P121: 5 | Q121: 13 | R121: -17 | S121: 21 | T121: 872.35 | U121: -2965.99 | V121: 121
A122: 2021-FAKT-004513-00 | B122: 2021/09/30 | C122: FV2111941 | D122: 8.37 | E122: 7113 | F122: SEIN BATU S.L. | G122: MANETA BAQUELITA | H122: 17 2021-99-004414-000 | I122: 12 2021-003447-024 | J122: 1 1200.211.342.10.00 2021 | K122: 2021/10/07 | L122: 2021/10/15 | M122: 2021/10/15 | N122: 2021/10/22 | O122: 8 | P122: 7 | Q122: 15 | R122: -15 | S122: 21 | T122: 58.59 | U122: -125.55 | V122: 121
A123: 2021-FAKT-004514-00 | B123: 2021/09/30 | C123: FV2111946 | D123: 60.26 | E123: 7113 | F123: SEIN BATU S.L. | G123: MATERIALA | H123: 17 2021-99-004444-001 | I123: 12 2021-003460-016 | J123: 1 0805.210.161.00.00 2021 | K123: 2021/10/07 | L123: 2021/10/18 | M123: 2021/10/18 | N123: 2021/10/22 | O123: 11 | P123: 4 | Q123: 15 | R123: -15 | S123: 21 | T123: 241.04 | U123: -903.9 | V123: 121
A124: 2021-FAKT-004514-00 | B124: 2021/09/30 | C124: FV2111946 | D124: 2.69 | E124: 7113 | F124: SEIN BATU S.L. | G124: MATERIALA | H124: 17 2021-99-004444-002 | I124: 12 2021-003460-017 | J124: 1 0808.210.133.00.01 2021 | K124: 2021/10/07 | L124: 2021/10/18 | M124: 2021/10/18 | N124: 2021/10/22 | O124: 11 | P124: 4 | Q124: 15 | R124: -15 | S124: 21 | T124: 10.76 | U124: -40.35 | V124: 121
A125: 2021-FAKT-004558-00 | B125: 2021/09/30 | C125: 9003183072 | D125: 59.29 | E125: 7494 | F125: TK ELEVADORES ESPAÑA S.L.U | G125: UARKAPE - IGOGAILUAREN MANTENIMENDUA IRAILA | H125: 17 2021-99-004493-015 | I125: 12 2021-003514-059 | J125: 1 1200.212.342.10.00 2021 | K125: 2021/10/14 | L125: 2021/10/21 | M125: 2021/10/21 | N125: 2021/10/26 | O125: 7 | P125: 5 | Q125: 12 | R125: -18 | S125: 21 | T125: 296.45 | U125: -1067.22 | V125: 121
A126: 2021-FAKT-004558-00 | B126: 2021/09/30 | C126: 9003183072 | D126: 59.29 | E126: 7494 | F126: TK ELEVADORES ESPAÑA S.L.U | G126: KIROLDEGIA - IGOGAILUAREN MANTENIMENDUA IRAILA | H126: 17 2021-99-004493-016 | I126: 12 2021-003514-060 | J126: 1 1200.212.342.10.00 2021 | K126: 2021/10/14 | L126: 2021/10/21 | M126: 2021/10/21 | N126: 2021/10/26 | O126: 7 | P126: 5 | Q126: 12 | R126: -18 | S126: 21 | T126: 296.45 | U126: -1067.22 | V126: 121
A127: 2021-FAKT-004558-00 | B127: 2021/09/30 | C127: 9003183072 | D127: 59.29 | E127: 7494 | F127: TK ELEVADORES ESPAÑA S.L.U | G127: EMAKUME TXOKOA ED.MULTIUSOS -IGOGAILUAREN MANTENIMENDUA IRAILA | H127: 17 2021-99-004493-018 | I127: 12 2021-003514-062 | J127: 1 0413.211.337.23.00 2021 | K127: 2021/10/14 | L127: 2021/10/21 | M127: 2021/10/21 | N127: 2021/10/26 | O127: 7 | P127: 5 | Q127: 12 | R127: -18 | S127: 21 | T127: 296.45 | U127: -1067.22 | V127: 121
A128: 2021-FAKT-004580-00 | B128: 2021/09/30 | C128: 2021001200 | D128: 343.64 | E128: 17350 | F128: BAÑU-ETXE RECYCLING SLU | G128: CONTENEDOR ESCOMBROS | H128: 17 2021-99-004564-000 | I128: 12 2021-003592-009 | J128: 1 0808.210.153.00.00 2021 | K128: 2021/10/18 | L128: 2021/10/27 | M128: 2021/10/27 | N128: 2021/10/29 | O128: 9 | P128: 2 | Q128: 11 | R128: -19 | S128: 21 | T128: 687.28 | U128: -6529.16 | V128: 121
A129: 2021-FAKT-004474-00 | B129: 2021/09/30 | C129: 1976 | D129: 1460.42 | E129: 190 | F129: OMU CERAMICAS | G129: SACOS MORTERO SIKAFASTFIX - 49 UDLADRILLO RASILLA - 40 UD | H129: 17 2021-99-004447-000 | I129: 12 2021-003514-032 | J129: 1 0808.210.153.00.00 2021 | K129: 2021/10/05 | L129: 2021/10/19 | M129: 2021/10/21 | N129: 2021/10/29 | O129: 16 | P129: 8 | Q129: 24 | R129: -6 | S129: 21 | T129: 11683.36 | U129: -8762.52 | V129: 121
A130: 2021-FAKT-004435-00 | B130: 2021/09/30 | C130: 112043029 | D130: 1148.42 | E130: 16568 | F130: LACROIX CITY CENTRO SA | G130: 17 CUADRADO LOGO MINUSVALIDO CON LAMINA ANTIVANDALICA | H130: 17 2021-99-004582-000 | I130: 12 2021-003739-043 | J130: 1 0808.210.133.00.01 2021 | K130: 2021/10/04 | L130: 2021/10/28 | M130: 2021/10/28 | N130: 2021/11/05 | O130: 24 | P130: 8 | Q130: 32 | R130: 2 | S130: 21 | T130: 9187.36 | U130: 2296.84 | V130: 121
A131: 2021-FAKT-004553-00 | B131: 2021/09/30 | C131: 20210350 | D131: 153.77 | E131: 121 | F131: ELECTRO URONDO, S.L. | G131: M.O. TECNICO ELECTRONICO | H131: 17 2021-99-004584-000 | I131: 12 2021-003742-001 | J131: 1 0805.210.161.00.00 2021 | K131: 2021/10/13 | L131: 2021/10/28 | M131: 2021/10/28 | N131: 2021/11/05 | O131: 15 | P131: 8 | Q131: 23 | R131: -7 | S131: 21 | T131: 1230.16 | U131: -1076.39 | V131: 121
A132: 2021-FAKT-004607-00 | B132: 2021/09/30 | C132: 59729 | D132: 1.57 | E132: 5267 | F132: ALDEDI | G132: MATERIALA | H132: 17 2021-99-004589-001 | I132: 12 2021-003742-007 | J132: 1 0902.211.323.00.00 2021 | K132: 2021/10/19 | L132: 2021/10/28 | M132: 2021/10/28 | N132: 2021/11/05 | O132: 9 | P132: 8 | Q132: 17 | R132: -13 | S132: 21 | T132: 12.56 | U132: -20.41 | V132: =IF(P132>30,200+S132,100+S132) -> 121
A133: 2021-FAKT-004607-00 | B133: 2021/09/30 | C133: 59729 | D133: 71.17 | E133: 5267 | F133: ALDEDI | G133: MATERIALA | H133: 17 2021-99-004589-002 | I133: 12 2021-003742-008 | J133: 1 0405.211.231.40.00 2021 | K133: 2021/10/19 | L133: 2021/10/28 | M133: 2021/10/28 | N133: 2021/11/05 | O133: 9 | P133: 8 | Q133: 17 | R133: -13 | S133: 21 | T133: 569.36 | U133: -925.21 | V133: 121
A134: 2021-FAKT-004607-00 | B134: 2021/09/30 | C134: 59729 | D134: 29.58 | E134: 5267 | F134: ALDEDI | G134: MATERIALA | H134: 17 2021-99-004589-003 | I134: 12 2021-003742-009 | J134: 1 0406.211.337.10.00 2021 | K134: 2021/10/19 | L134: 2021/10/28 | M134: 2021/10/28 | N134: 2021/11/05 | O134: 9 | P134: 8 | Q134: 17 | R134: -13 | S134: 21 | T134: 236.64 | U134: -384.54 | V134: 121
A135: 2021-FAKT-004607-00 | B135: 2021/09/30 | C135: 59729 | D135: 114.92 | E135: 5267 | F135: ALDEDI | G135: MATERIALA | H135: 17 2021-99-004589-005 | I135: 12 2021-003742-011 | J135: 1 0800.210.153.30.00 2021 | K135: 2021/10/19 | L135: 2021/10/28 | M135: 2021/10/28 | N135: 2021/11/05 | O135: 9 | P135: 8 | Q135: 17 | R135: -13 | S135: 21 | T135: 919.36 | U135: -1493.96 | V135: 121
A136: 2021-FAKT-004607-00 | B136: 2021/09/30 | C136: 59729 | D136: 191.48 | E136: 5267 | F136: ALDEDI | G136: MATERIALA | H136: 17 2021-99-004589-006 | I136: 12 2021-003742-012 | J136: 1 0800.212.165.00.00 2021 | K136: 2021/10/19 | L136: 2021/10/28 | M136: 2021/10/28 | N136: 2021/11/05 | O136: 9 | P136: 8 | Q136: 17 | R136: -13 | S136: 21 | T136: 1531.84 | U136: -2489.24 | V136: 121
A137: 2021-FAKT-004607-00 | B137: 2021/09/30 | C137: 59729 | D137: 28.5 | E137: 5267 | F137: ALDEDI | G137: MATERIALA | H137: 17 2021-99-004589-008 | I137: 12 2021-003742-014 | J137: 1 0805.210.161.00.00 2021 | K137: 2021/10/19 | L137: 2021/10/28 | M137: 2021/10/28 | N137: 2021/11/05 | O137: 9 | P137: 8 | Q137: 17 | R137: -13 | S137: 21 | T137: 228 | U137: -370.5 | V137: 121
A138: 2021-FAKT-004607-00 | B138: 2021/09/30 | C138: 59729 | D138: 1.58 | E138: 5267 | F138: ALDEDI | G138: MATERIALA | H138: 17 2021-99-004589-009 | I138: 12 2021-003742-015 | J138: 1 0901.211.323.00.00 2021 | K138: 2021/10/19 | L138: 2021/10/28 | M138: 2021/10/28 | N138: 2021/11/05 | O138: 9 | P138: 8 | Q138: 17 | R138: -13 | S138: 21 | T138: 12.64 | U138: -20.54 | V138: 121
A139: 2021-FAKT-004607-00 | B139: 2021/09/30 | C139: 59729 | D139: 86.76 | E139: 5267 | F139: ALDEDI | G139: MATERIALA | H139: 17 2021-99-004589-010 | I139: 12 2021-003742-016 | J139: 1 0903.211.323.00.00 2021 | K139: 2021/10/19 | L139: 2021/10/28 | M139: 2021/10/28 | N139: 2021/11/05 | O139: 9 | P139: 8 | Q139: 17 | R139: -13 | S139: 21 | T139: 694.08 | U139: -1127.88 | V139: 121
A140: 2021-FAKT-004608-00 | B140: 2021/09/30 | C140: 59730 | D140: 130.33 | E140: 5267 | F140: ALDEDI | G140: MATERIALA | H140: 17 2021-99-004801-000 | I140: 12 2021-003921-030 | J140: 1 1200.211.342.10.00 2021 | K140: 2021/10/19 | L140: 2021/11/17 | M140: 2021/11/18 | N140: 2021/11/19 | O140: 30 | P140: 1 | Q140: 31 | R140: 1 | S140: 21 | T140: 130.33 | U140: 130.33 | V140: 121
A141: 2021-FAKT-004527-00 | B141: 2021/09/30 | C141: 210403 | D141: 755.04 | E141: 17292 | F141: INGECOM SISTEMAS SL | G141: SUSTITUCION DE CAMARA EN EL ASCENSOR MAKATZENA DE ARRASATE, SEGUN OFERTA OB2102 | H141: 17 2021-99-004964-000 | I141: 12 2021-004178-003 | J141: 1 0813.211.134.00.00 2021 | K141: 2021/10/07 | L141: 2021/12/01 | M141: 2021/12/01 | N141: 2021/12/03 | O141: 55 | P141: 2 | Q141: 57 | R141: 27 | S141: 21 | T141: 1510.08 | U141: 20386.08 | V141: 121
A142: 2021-FAKT-004354-00 | B142: 2021/10/01 | C142: 28-J1M0-151701 | D142: 18.15 | E142: 4386 | F142: TELEFONICA MOVILES | G142: TIPO DE CONTRATO: CONTRATO M2M GPRS PYMES - Nº DE LINEAS: 1 - LINEAS FACTURADAS | H142: 17 2021-99-004291-000 | I142: 12 2021-003388-032 | J142: 1 0805.210.161.00.00 2021 | K142: 2021/10/01 | L142: 2021/10/06 | M142: 2021/10/06 | N142: 2021/10/08 | O142: 5 | P142: 2 | Q142: 7 | R142: -23 | S142: 21 | T142: 36.3 | U142: -417.45 | V142: 121
A143: 2021-FAKT-004434-00 | B143: 2021/10/01 | C143: 803 /2021 | D143: 99.22 | E143: 644 | F143: AUTO ELECTRICIDAD SAN ANDRES, S.L. | G143: KONPONKETA: TOYOTA 7993-HNN | H143: 17 2021-99-004361-000 | I143: 12 2021-003423-001 | J143: 1 0104.213.132.00.00 2021 | K143: 2021/10/04 | L143: 2021/10/13 | M143: 2021/10/13 | N143: 2021/10/18 | O143: 9 | P143: 5 | Q143: 14 | R143: -16 | S143: 21 | T143: 496.1 | U143: -1587.52 | V143: 121
A144: 2021-FAKT-004479-00 | B144: 2021/10/01 | C144: P21101182 | D144: 238.37 | E144: 3273 | F144: SARENET | G144: RELAY ZERBITZUAREN HILEROKO KUOTA (SARRERA) - 300 BUZOI ARTE PERIODO FACTUR | H144: 17 2021-99-004420-000 | I144: 12 2021-003447-030 | J144: 1 0600.215.920.00.00 2021 | K144: 2021/10/05 | L144: 2021/10/15 | M144: 2021/10/15 | N144: 2021/10/22 | O144: 10 | P144: 7 | Q144: 17 | R144: -13 | S144: 21 | T144: 1668.59 | U144: -3098.81 | V144: 121
A145: 2021-FAKT-004555-00 | B145: 2021/10/01 | C145: F21027091 | D145: 76.67 | E145: 161 | F145: JUPER BAT, S.A.U | G145: B.B 90X NEGRA | H145: 17 2021-99-004455-000 | I145: 12 2021-003480-014 | J145: 1 0800.211.311.00.00 2021 | K145: 2021/10/13 | L145: 2021/10/19 | M145: 2021/10/19 | N145: 2021/10/22 | O145: 6 | P145: 3 | Q145: 9 | R145: -21 | S145: 21 | T145: 230.01 | U145: -1610.07 | V145: 121
A146: 2021-FAKT-004374-00 | B146: 2021/10/01 | C146: 43 | D146: 71.15 | E146: 57 | F146: CRISTALERIA ERRASTI | G146: MATERIALA | H146: 17 2021-99-004511-001 | I146: 12 2021-003539-012 | J146: 1 0800.211.920.00.00 2021 | K146: 2021/10/01 | L146: 2021/10/22 | M146: 2021/10/22 | N146: 2021/10/26 | O146: 21 | P146: 4 | Q146: 25 | R146: -5 | S146: 21 | T146: 284.6 | U146: -355.75 | V146: 121
A147: 2021-FAKT-004374-00 | B147: 2021/10/01 | C147: 43 | D147: 124.04 | E147: 57 | F147: CRISTALERIA ERRASTI | G147: MATERIALA | H147: 17 2021-99-004511-002 | I147: 12 2021-003539-013 | J147: 1 0801.211.431.20.00 2021 | K147: 2021/10/01 | L147: 2021/10/22 | M147: 2021/10/22 | N147: 2021/10/26 | O147: 21 | P147: 4 | Q147: 25 | R147: -5 | S147: 21 | T147: 496.16 | U147: -620.2 | V147: 121
A148: 2021-FAKT-004374-00 | B148: 2021/10/01 | C148: 43 | D148: 2.88 | E148: 57 | F148: CRISTALERIA ERRASTI | G148: MATERIALA | H148: 17 2021-99-004511-003 | I148: 12 2021-003539-014 | J148: 1 0805.210.161.00.00 2021 | K148: 2021/10/01 | L148: 2021/10/22 | M148: 2021/10/22 | N148: 2021/10/26 | O148: 21 | P148: 4 | Q148: 25 | R148: -5 | S148: 21 | T148: 11.52 | U148: -14.4 | V148: 121
A149: 2021-FAKT-004374-00 | B149: 2021/10/01 | C149: 43 | D149: 14.15 | E149: 57 | F149: CRISTALERIA ERRASTI | G149: MATERIALA | H149: 17 2021-99-004511-004 | I149: 12 2021-003539-015 | J149: 1 0902.211.323.00.00 2021 | K149: 2021/10/01 | L149: 2021/10/22 | M149: 2021/10/22 | N149: 2021/10/26 | O149: 21 | P149: 4 | Q149: 25 | R149: -5 | S149: 21 | T149: 56.6 | U149: -70.75 | V149: 121
A150: 2021-FAKT-004373-00 | B150: 2021/10/01 | C150: 42 | D150: 54.58 | E150: 57 | F150: CRISTALERIA ERRASTI | G150: KIROLDEGIA- SALIDAS WC EXTENSIBLE | H150: 17 2021-99-004557-000 | I150: 12 2021-003592-002 | J150: 1 1200.211.342.10.00 2021 | K150: 2021/10/01 | L150: 2021/10/27 | M150: 2021/10/27 | N150: 2021/10/29 | O150: 26 | P150: 2 | Q150: 28 | R150: -2 | S150: 21 | T150: 109.16 | U150: -109.16 | V150: 121
A151: 2021-FAKT-004745-00 | B151: 2021/10/01 | C151: 2021-10-018 | D151: 229.9 | E151: 11677 | F151: IMPRONTA SOLUCIONES SL | G151: SARRERA SALMENTA - JANTO SISTEMA | H151: 17 2021-99-004722-001 | I151: 12 2021-003843-008 | J151: 1 0204.215.334.00.00 2021 | K151: 2021/11/02 | L151: 2021/11/10 | M151: 2021/11/10 | N151: 2021/11/12 | O151: 8 | P151: 2 | Q151: 10 | R151: -20 | S151: 21 | T151: 459.8 | U151: -4598 | V151: 121
A152: 2021-FAKT-004403-00 | B152: 2021/10/04 | C152: 4519/2021 | D152: 288.22 | E152: 11464 | F152: NORTRAFIC | G152: MANTENIMIENTO SEMAFOROS SEPTIEMBRE | H152: 17 2021-99-004400-000 | I152: 12 2021-003447-006 | J152: 1 0808.212.133.10.00 2021 | K152: 2021/10/04 | L152: 2021/10/15 | M152: 2021/10/15 | N152: 2021/10/22 | O152: 11 | P152: 7 | Q152: 18 | R152: -12 | S152: 21 | T152: 2017.54 | U152: -3458.64 | V152: 121
A153: 2021-FAKT-004404-00 | B153: 2021/10/04 | C153: 4518/2021 | D153: 229.8 | E153: 11464 | F153: NORTRAFIC | G153: MANTENIMIENTO PILONAS SEPTIEMBRE 2021 | H153: 17 2021-99-004401-000 | I153: 12 2021-003447-007 | J153: 1 0800.210.153.30.00 2021 | K153: 2021/10/04 | L153: 2021/10/15 | M153: 2021/10/15 | N153: 2021/10/22 | O153: 11 | P153: 7 | Q153: 18 | R153: -12 | S153: 21 | T153: 1608.6 | U153: -2757.6 | V153: 121
A154: 2021-FAKT-004505-00 | B154: 2021/10/06 | C154: 0138 | D154: 399.3 | E154: 17432 | F154: MAKOR DENDA SL | G154: DESPACHO AYUNTAMIENTO CORTINA ENROLLABLE LACADO BLANCO, TEJIDO SCREENFLEX OPACO | H154: 17 2021-99-004412-000 | I154: 12 2021-003447-021 | J154: 1 0800.211.920.00.00 2021 | K154: 2021/10/06 | L154: 2021/10/15 | M154: 2021/10/15 | N154: 2021/10/22 | O154: 9 | P154: 7 | Q154: 16 | R154: -14 | S154: 21 | T154: 2795.1 | U154: -5590.2 | V154: 121
A155: 2021-FAKT-004564-00 | B155: 2021/10/06 | C155: D21/1513 | D155: 207.62 | E155: 17349 | F155: ADRADA SL | G155: AROS BASKET MACIZO DELUXE 2 UD | H155: 17 2021-99-004441-000 | I155: 12 2021-003460-009 | J155: 1 0800.210.153.30.00 2021 | K155: 2021/10/14 | L155: 2021/10/18 | M155: 2021/10/18 | N155: 2021/10/22 | O155: 4 | P155: 4 | Q155: 8 | R155: -22 | S155: 21 | T155: 830.48 | U155: -4567.64 | V155: 121
A156: 2021-FAKT-004493-00 | B156: 2021/10/06 | C156: 45 | D156: 453.75 | E156: 17268 | F156: DATEANDO SDAD.MICROCOOPERATIVA | G156: REPARACION CAUDALIMERTO | H156: 17 2021-99-004560-000 | I156: 12 2021-003592-005 | J156: 1 0805.210.161.00.00 2021 | K156: 2021/10/06 | L156: 2021/10/27 | M156: 2021/10/27 | N156: 2021/10/29 | O156: 21 | P156: 2 | Q156: 23 | R156: -7 | S156: 21 | T156: 907.5 | U156: -3176.25 | V156: 121
A157: 2021-FAKT-004515-00 | B157: 2021/10/07 | C157: 084/21 | D157: 344.85 | E157: 2245 | F157: EXCAVACIONES ARRASATE, S.L. | G157: ARREGLO DE FUGA EN MONTERRON. | H157: 17 2021-99-004561-000 | I157: 12 2021-003592-006 | J157: 1 0805.210.161.00.00 2021 | K157: 2021/10/07 | L157: 2021/10/27 | M157: 2021/10/27 | N157: 2021/10/29 | O157: 20 | P157: 2 | Q157: 22 | R157: -8 | S157: 21 | T157: 689.7 | U157: -2758.8 | V157: 121
A158: 2021-FAKT-004565-00 | B158: 2021/10/07 | C158: 21-4013 | D158: 863.94 | E158: 2067 | F158: FUNDIBIDE S.A. | G158: REGISTRO GEO | H158: 17 2021-99-004585-000 | I158: 12 2021-003742-002 | J158: 1 0805.210.161.00.00 2021 | K158: 2021/10/14 | L158: 2021/10/28 | M158: 2021/10/28 | N158: 2021/11/05 | O158: 14 | P158: 8 | Q158: 22 | R158: -8 | S158: 21 | T158: 6911.52 | U158: -6911.52 | V158: 121
A159: 2021-FAKT-004577-00 | B159: 2021/10/07 | C159: 156 | D159: 226.7 | E159: 2922 | F159: GIPUZKOAKO URAK,S.A. | G159: DEPUR. M3 DE AGUA RESIDUAL K=93 FECHA: 26/07/2021 | H159: 17 2021-99-004587-000 | I159: 12 2021-003742-005 | J159: 1 0805.210.161.00.00 2021 | K159: 2021/10/15 | L159: 2021/10/28 | M159: 2021/10/28 | N159: 2021/11/05 | O159: 13 | P159: 8 | Q159: 21 | R159: -9 | S159: 21 | T159: 1813.6 | U159: -2040.3 | V159: 121
A160: 2021-FAKT-004531-00 | B160: 2021/10/08 | C160: 15 | D160: 725.71 | E160: 13822 | F160: TRANSFORMADOS DUMYPARK S.L.L | G160: 2003RAC CUERDA AZUL PARA JUEGO DE ALTURA 1,6 M | H160: 17 2021-99-004418-000 | I160: 12 2021-003447-028 | J160: 1 0800.210.153.30.00 2021 | K160: 2021/10/08 | L160: 2021/10/15 | M160: 2021/10/15 | N160: 2021/10/22 | O160: 7 | P160: 7 | Q160: 14 | R160: -16 | S160: 21 | T160: 5079.97 | U160: -11611.36 | V160: 121
A161: 2021-FAKT-004539-00 | B161: 2021/10/08 | C161: 11015093 | D161: 189.06 | E161: 6594 | F161: BERDIN,S.L. | G161: DETECTOR BEG | H161: 17 2021-99-004425-000 | I161: 12 2021-003447-035 | J161: 1 0902.211.323.00.00 2021 | K161: 2021/10/11 | L161: 2021/10/15 | M161: 2021/10/15 | N161: 2021/10/22 | O161: 4 | P161: 7 | Q161: 11 | R161: -19 | S161: 21 | T161: 1323.42 | U161: -3592.14 | V161: 121
A162: 2021-FAKT-004540-00 | B162: 2021/10/08 | C162: 11015092 | D162: 4.85 | E162: 6594 | F162: BERDIN,S.L. | G162: MARCO BASICO 2 VENTANAS | H162: 17 2021-99-004426-000 | I162: 12 2021-003447-036 | J162: 1 0902.211.323.00.00 2021 | K162: 2021/10/11 | L162: 2021/10/15 | M162: 2021/10/15 | N162: 2021/10/22 | O162: 4 | P162: 7 | Q162: 11 | R162: -19 | S162: 21 | T162: 33.95 | U162: -92.15 | V162: 121
A163: 2021-FAKT-004541-00 | B163: 2021/10/08 | C163: 11015094 | D163: 340.25 | E163: 6594 | F163: BERDIN,S.L. | G163: COMPROBADOR ELECTRICO | H163: 17 2021-99-004427-000 | I163: 12 2021-003447-037 | J163: 1 0800.212.165.00.00 2021 | K163: 2021/10/11 | L163: 2021/10/15 | M163: 2021/10/15 | N163: 2021/10/22 | O163: 4 | P163: 7 | Q163: 11 | R163: -19 | S163: 21 | T163: 2381.75 | U163: -6464.75 | V163: 121
A164: 2021-FAKT-004542-00 | B164: 2021/10/08 | C164: 11015096 | D164: 124.79 | E164: 6594 | F164: BERDIN,S.L. | G164: RELE + BASE TORNILLO | H164: 17 2021-99-004428-000 | I164: 12 2021-003447-038 | J164: 1 0800.212.165.00.00 2021 | K164: 2021/10/11 | L164: 2021/10/15 | M164: 2021/10/15 | N164: 2021/10/22 | O164: 4 | P164: 7 | Q164: 11 | R164: -19 | S164: 21 | T164: 873.53 | U164: -2371.01 | V164: 121
A165: 2021-FAKT-004543-00 | B165: 2021/10/08 | C165: 11015095 | D165: 34.18 | E165: 6594 | F165: BERDIN,S.L. | G165: MATERIALA | H165: 17 2021-99-004429-000 | I165: 12 2021-003447-039 | J165: 1 0902.211.323.00.00 2021 | K165: 2021/10/11 | L165: 2021/10/15 | M165: 2021/10/15 | N165: 2021/10/22 | O165: 4 | P165: 7 | Q165: 11 | R165: -19 | S165: 21 | T165: 239.26 | U165: -649.42 | V165: 121
A166: 2021-FAKT-004545-00 | B166: 2021/10/08 | C166: 11015098 | D166: 55.85 | E166: 6594 | F166: BERDIN,S.L. | G166: CAJA DERIVACION, CABLE EXZHELLENT | H166: 17 2021-99-004430-000 | I166: 12 2021-003447-040 | J166: 1 0902.211.323.00.00 2021 | K166: 2021/10/11 | L166: 2021/10/15 | M166: 2021/10/15 | N166: 2021/10/22 | O166: 4 | P166: 7 | Q166: 11 | R166: -19 | S166: 21 | T166: 390.95 | U166: -1061.15 | V166: 121
A167: 2021-FAKT-004544-00 | B167: 2021/10/08 | C167: 11015097 | D167: 110.06 | E167: 6594 | F167: BERDIN,S.L. | G167: 2 MAGNETOTERMICOS | H167: 17 2021-99-004562-000 | I167: 12 2021-003592-007 | J167: 1 1200.211.342.10.00 2021 | K167: 2021/10/11 | L167: 2021/10/27 | M167: 2021/10/27 | N167: 2021/10/29 | O167: 16 | P167: 2 | Q167: 18 | R167: -12 | S167: 21 | T167: 220.12 | U167: -1320.72 | V167: 121
A168: 2021-FAKT-004657-00 | B168: 2021/10/08 | C168: 21109 | D168: 593.51 | E168: 6560 | F168: ISURKI S.L. | G168: CAPTADOR DE NIVEL Nº DE SERIE 1748 DE RANGO 3 M Y 10 M. DE CABLE | H168: 17 2021-99-004591-000 | I168: 12 2021-003742-018 | J168: 1 0805.210.161.00.00 2021 | K168: 2021/10/25 | L168: 2021/10/28 | M168: 2021/10/28 | N168: 2021/11/05 | O168: 3 | P168: 8 | Q168: 11 | R168: -19 | S168: 21 | T168: 4748.08 | U168: -11276.69 | V168: 121
A169: 2021-FAKT-004815-00 | B169: 2021/10/08 | C169: 21/7224 | D169: 306.74 | E169: 5807 | F169: HOTZ-BERO SL | G169: SUSTITUIR MANDO DE CONTROL AL EQUIPO CARRIER (B.Z.A.)-MANDO MOD. ETN24 | H169: 17 2021-99-004716-000 | I169: 12 2021-003843-001 | J169: 1 0603.211.920.00.00 2021 | K169: 2021/11/04 | L169: 2021/11/10 | M169: 2021/11/10 | N169: 2021/11/12 | O169: 6 | P169: 2 | Q169: 8 | R169: -22 | S169: 21 | T169: 613.48 | U169: -6748.28 | V169: 121
A170: 2021-FAKT-004590-00 | B170: 2021/10/14 | C170: 210.720 | D170: 119.12 | E170: 844 | F170: HIERROS ALOÑA S.A. | G170: U.L.EN F.20X40X20X2; PLETINA 30X3 | H170: 17 2021-99-004509-000 | I170: 12 2021-003539-007 | J170: 1 1200.211.342.10.00 2021 | K170: 2021/10/18 | L170: 2021/10/22 | M170: 2021/10/22 | N170: 2021/10/26 | O170: 4 | P170: 4 | Q170: 8 | R170: -22 | S170: 21 | T170: 476.48 | U170: -2620.64 | V170: 121
A171: 2021-FAKT-004568-00 | B171: 2021/10/14 | C171: 44 | D171: 48.18 | E171: 57 | F171: CRISTALERIA ERRASTI | G171: MATERIALA | H171: 17 2021-99-004586-001 | I171: 12 2021-003742-003 | J171: 1 0808.210.153.00.00 2021 | K171: 2021/10/14 | L171: 2021/10/28 | M171: 2021/10/28 | N171: 2021/11/05 | O171: 14 | P171: 8 | Q171: 22 | R171: -8 | S171: 21 | T171: 385.44 | U171: -385.44 | V171: 121
A172: 2021-FAKT-004568-00 | B172: 2021/10/14 | C172: 44 | D172: 734.42 | E172: 57 | F172: CRISTALERIA ERRASTI | G172: MATERIALA | H172: 17 2021-99-004586-002 | I172: 12 2021-003742-004 | J172: 1 0805.210.161.00.00 2021 | K172: 2021/10/14 | L172: 2021/10/28 | M172: 2021/10/28 | N172: 2021/11/05 | O172: 14 | P172: 8 | Q172: 22 | R172: -8 | S172: 21 | T172: 5875.36 | U172: -5875.36 | V172: 121
A173: 2021-FAKT-004732-00 | B173: 2021/10/14 | C173: 13339 | D173: 1176.85 | E173: 11554 | F173: FIRSMAN SL | G173: FIRS-45 | H173: 17 2021-99-004931-000 | I173: 12 2021-003998-013 | J173: 1 0808.210.153.00.00 2021 | K173: 2021/11/02 | L173: 2021/11/25 | M173: 2021/11/25 | N173: 2021/11/30 | O173: 23 | P173: 5 | Q173: 28 | R173: -2 | S173: 21 | T173: 5884.25 | U173: -2353.7 | V173: 121
A174: 2021-FAKT-004588-00 | B174: 2021/10/15 | C174: 21-4082 | D174: 778.09 | E174: 2067 | F174: FUNDIBIDE S.A. | G174: REGISTRO SHCC-66 "ARGIA-ALUMBRADO" | H174: 17 2021-99-004499-000 | I174: 12 2021-003515-007 | J174: 1 0808.210.153.00.00 2021 | K174: 2021/10/18 | L174: 2021/10/21 | M174: 2021/10/21 | N174: 2021/10/26 | O174: 3 | P174: 5 | Q174: 8 | R174: -22 | S174: 21 | T174: 3890.45 | U174: -17117.98 | V174: 121
A175: 2021-FAKT-004592-00 | B175: 2021/10/15 | C175: 11015592 | D175: 90.75 | E175: 6594 | F175: BERDIN,S.L. | G175: HF-P PHILIPS | H175: 17 2021-99-004500-000 | I175: 12 2021-003515-008 | J175: 1 0211.211.335.10.00 2021 | K175: 2021/10/18 | L175: 2021/10/21 | M175: 2021/10/21 | N175: 2021/10/26 | O175: 3 | P175: 5 | Q175: 8 | R175: -22 | S175: 21 | T175: 453.75 | U175: -1996.5 | V175: 121
A176: 2021-FAKT-004593-00 | B176: 2021/10/15 | C176: 11015593 | D176: 84.12 | E176: 6594 | F176: BERDIN,S.L. | G176: DETECTOR TECHO EMPOTRABLE, DOWNLIGHT LED | H176: 17 2021-99-004501-000 | I176: 12 2021-003515-009 | J176: 1 0800.211.920.00.00 2021 | K176: 2021/10/18 | L176: 2021/10/21 | M176: 2021/10/21 | N176: 2021/10/26 | O176: 3 | P176: 5 | Q176: 8 | R176: -22 | S176: 21 | T176: 420.6 | U176: -1850.64 | V176: 121
A177: 2021-FAKT-004594-00 | B177: 2021/10/15 | C177: 11015594 | D177: 55.03 | E177: 6594 | F177: BERDIN,S.L. | G177: MAGNETOTERMICO | H177: 17 2021-99-004503-000 | I177: 12 2021-003539-001 | J177: 1 0406.211.337.10.00 2021 | K177: 2021/10/18 | L177: 2021/10/22 | M177: 2021/10/22 | N177: 2021/10/26 | O177: 4 | P177: 4 | Q177: 8 | R177: -22 | S177: 21 | T177: 220.12 | U177: -1210.66 | V177: 121
A178: 2021-FAKT-004597-00 | B178: 2021/10/15 | C178: 11015597 | D178: 29.85 | E178: 6594 | F178: BERDIN,S.L. | G178: MATERIALA | H178: 17 2021-99-004504-000 | I178: 12 2021-003539-002 | J178: 1 0800.211.311.00.00 2021 | K178: 2021/10/18 | L178: 2021/10/22 | M178: 2021/10/22 | N178: 2021/10/26 | O178: 4 | P178: 4 | Q178: 8 | R178: -22 | S178: 21 | T178: 119.4 | U178: -656.7 | V178: 121
A179: 2021-FAKT-004587-00 | B179: 2021/10/15 | C179: 856 /2021 | D179: 25.17 | E179: 644 | F179: AUTO ELECTRICIDAD SAN ANDRES, S.L. | G179: CAMBIO DE LAMPARA. TOYOTA AURIS 7993-HWN | H179: 17 2021-99-004508-000 | I179: 12 2021-003539-006 | J179: 1 0104.213.132.00.00 2021 | K179: 2021/10/18 | L179: 2021/10/22 | M179: 2021/10/22 | N179: 2021/10/26 | O179: 4 | P179: 4 | Q179: 8 | R179: -22 | S179: 21 | T179: 100.68 | U179: -553.74 | V179: 121
A180: 2021-FAKT-004655-00 | B180: 2021/10/15 | C180: HA 38216 | D180: 62.19 | E180: 8285 | F180: HAINGOR S.L. | G180: ELECTROVALVULA DE 2 VIAS, MEDIO VACIO, 24 VDC, ROSCA GAS | H180: 17 2021-99-004574-000 | I180: 12 2021-003592-019 | J180: 1 0800.211.311.00.00 2021 | K180: 2021/10/22 | L180: 2021/10/27 | M180: 2021/10/27 | N180: 2021/10/29 | O180: 5 | P180: 2 | Q180: 7 | R180: -23 | S180: 21 | T180: 124.38 | U180: -1430.37 | V180: 121
A181: 2021-FAKT-004614-00 | B181: 2021/10/15 | C181: FV2112618 | D181: 8.2 | E181: 7113 | F181: SEIN BATU S.L. | G181: MATERIALA | H181: 17 2021-99-004542-001 | I181: 12 2021-003573-012 | J181: 1 0800.211.311.00.00 2021 | K181: 2021/10/19 | L181: 2021/10/26 | M181: 2021/10/26 | N181: 2021/10/29 | O181: 7 | P181: 3 | Q181: 10 | R181: -20 | S181: 21 | T181: 24.6 | U181: -164 | V181: 121
A182: 2021-FAKT-004614-00 | B182: 2021/10/15 | C182: FV2112618 | D182: 31.24 | E182: 7113 | F182: SEIN BATU S.L. | G182: MATERIALA | H182: 17 2021-99-004542-002 | I182: 12 2021-003573-013 | J182: 1 0800.212.165.00.00 2021 | K182: 2021/10/19 | L182: 2021/10/26 | M182: 2021/10/26 | N182: 2021/10/29 | O182: 7 | P182: 3 | Q182: 10 | R182: -20 | S182: 21 | T182: 93.72 | U182: -624.8 | V182: 121
A183: 2021-FAKT-004614-00 | B183: 2021/10/15 | C183: FV2112618 | D183: 3.18 | E183: 7113 | F183: SEIN BATU S.L. | G183: MATERIALA | H183: 17 2021-99-004542-004 | I183: 12 2021-003573-015 | J183: 1 0805.210.161.00.00 2021 | K183: 2021/10/19 | L183: 2021/10/26 | M183: 2021/10/26 | N183: 2021/10/29 | O183: 7 | P183: 3 | Q183: 10 | R183: -20 | S183: 21 | T183: 9.54 | U183: -63.6 | V183: 121
A184: 2021-FAKT-004614-00 | B184: 2021/10/15 | C184: FV2112618 | D184: 85 | E184: 7113 | F184: SEIN BATU S.L. | G184: MATERIALA | H184: 17 2021-99-004542-005 | I184: 12 2021-003573-016 | J184: 1 0808.210.133.00.01 2021 | K184: 2021/10/19 | L184: 2021/10/26 | M184: 2021/10/26 | N184: 2021/10/29 | O184: 7 | P184: 3 | Q184: 10 | R184: -20 | S184: 21 | T184: 255 | U184: -1700 | V184: 121
A185: 2021-FAKT-004606-00 | B185: 2021/10/15 | C185: FV2112616 | D185: 15.19 | E185: 7113 | F185: SEIN BATU S.L. | G185: CORONA SIERRA BIMETAL | H185: 17 2021-99-004568-000 | I185: 12 2021-003592-013 | J185: 1 1200.211.342.10.00 2021 | K185: 2021/10/19 | L185: 2021/10/27 | M185: 2021/10/27 | N185: 2021/10/29 | O185: 8 | P185: 2 | Q185: 10 | R185: -20 | S185: 21 | T185: 30.38 | U185: -303.8 | V185: 121
A186: 2021-FAKT-004595-00 | B186: 2021/10/15 | C186: 11015595 | D186: 302.54 | E186: 6594 | F186: BERDIN,S.L. | G186: EMERGENCIA URA | H186: 17 2021-99-004565-000 | I186: 12 2021-003592-010 | J186: 1 1200.211.342.10.00 2021 | K186: 2021/10/18 | L186: 2021/10/27 | M186: 2021/10/27 | N186: 2021/10/29 | O186: 9 | P186: 2 | Q186: 11 | R186: -19 | S186: 21 | T186: 605.08 | U186: -5748.26 | V186: 121
A187: 2021-FAKT-004596-00 | B187: 2021/10/15 | C187: 11015596 | D187: 31.28 | E187: 6594 | F187: BERDIN,S.L. | G187: BASE, CAJA ACERO | H187: 17 2021-99-004566-000 | I187: 12 2021-003592-011 | J187: 1 1200.211.342.10.00 2021 | K187: 2021/10/18 | L187: 2021/10/27 | M187: 2021/10/27 | N187: 2021/10/29 | O187: 9 | P187: 2 | Q187: 11 | R187: -19 | S187: 21 | T187: 62.56 | U187: -594.32 | V187: 121
A188: 2021-FAKT-004615-00 | B188: 2021/10/15 | C188: 2091 | D188: 39.34 | E188: 190 | F188: OMU CERAMICAS | G188: SACOS MORTERO FASTFIX SACOS COLA STARFLEX 252 CORTA FRIO CARAVISTA TOLEDO ROJO | H188: 17 2021-99-004543-001 | I188: 12 2021-003573-017 | J188: 1 0204.211.334.00.00 2021 | K188: 2021/10/19 | L188: 2021/10/26 | M188: 2021/10/26 | N188: 2021/10/29 | O188: 7 | P188: 3 | Q188: 10 | R188: -20 | S188: 21 | T188: 118.02 | U188: -786.8 | V188: 121
A189: 2021-FAKT-004615-00 | B189: 2021/10/15 | C189: 2091 | D189: 3.59 | E189: 190 | F189: OMU CERAMICAS | G189: SACOS MORTERO FASTFIXSACOS COLA STARFLEX 252CORTAFRIOCARAVISTA TOLEDO ROJOSACO | H189: 17 2021-99-004543-002 | I189: 12 2021-003573-018 | J189: 1 0800.210.153.30.00 2021 | K189: 2021/10/19 | L189: 2021/10/26 | M189: 2021/10/26 | N189: 2021/10/29 | O189: 7 | P189: 3 | Q189: 10 | R189: -20 | S189: 21 | T189: 10.77 | U189: -71.8 | V189: 121
A190: 2021-FAKT-004615-00 | B190: 2021/10/15 | C190: 2091 | D190: 410.14 | E190: 190 | F190: OMU CERAMICAS | G190: SACOS MORTERO FASTFIXSACOS COLA STARFLEX 252CORTAFRIOCARAVISTA TOLEDO ROJOSACO | H190: 17 2021-99-004543-003 | I190: 12 2021-003573-019 | J190: 1 0808.210.153.00.00 2021 | K190: 2021/10/19 | L190: 2021/10/26 | M190: 2021/10/26 | N190: 2021/10/29 | O190: 7 | P190: 3 | Q190: 10 | R190: -20 | S190: 21 | T190: 1230.42 | U190: -8202.8 | V190: 121
A191: 2021-FAKT-004589-00 | B191: 2021/10/15 | C191: 21-4086 | D191: 1810.16 | E191: 2067 | F191: FUNDIBIDE S.A. | G191: PILONA MODELO CITY REFORZADA CONSTRUIDA CON TUBO DE HIERRO GALVANIZADO EN UNA S | H191: 17 2021-99-004535-000 | I191: 12 2021-003739-001 | J191: 1 0808.210.133.00.01 2021 | K191: 2021/10/18 | L191: 2021/10/25 | M191: 2021/10/28 | N191: 2021/11/05 | O191: 10 | P191: 8 | Q191: 18 | R191: -12 | S191: 21 | T191: 14481.28 | U191: -21721.92 | V191: 121
A192: 2021-FAKT-004591-00 | B192: 2021/10/16 | C192: 60528 | D192: 811.97 | E192: 11017 | F192: SALTOKI GIPUZKOA, S.A. | G192: 1502191280|MANGUITO REPARACION 110 G-93LML | H192: 17 2021-99-004588-000 | I192: 12 2021-003742-006 | J192: 1 0805.210.161.00.00 2021 | K192: 2021/10/18 | L192: 2021/10/28 | M192: 2021/10/28 | N192: 2021/11/05 | O192: 10 | P192: 8 | Q192: 18 | R192: -12 | S192: 21 | T192: 6495.76 | U192: -9743.64 | V192: 121
A193: 2021-FAKT-004605-00 | B193: 2021/10/19 | C193: 212773 | D193: 236.36 | E193: 7749 | F193: SUMINISTROS AIZPURUA,S.L. | G193: REPARACION TE 1000 Nº151496 | H193: 17 2021-99-004515-000 | I193: 12 2021-003573-001 | J193: 1 0804.212.153.40.00 2021 | K193: 2021/10/19 | L193: 2021/10/22 | M193: 2021/10/26 | N193: 2021/10/29 | O193: 7 | P193: 3 | Q193: 10 | R193: -20 | S193: 21 | T193: 709.08 | U193: -4727.2 | V193: 121
A194: 2021-FAKT-004609-00 | B194: 2021/10/19 | C194: 2021/50/212780 | D194: 1108.36 | E194: 929 | F194: LKS S.COOP. | G194: 21802356 - PEDIDO Nº: 2021PER10016 - RENOVACION LICENCIAS VMWARE | H194: 17 2021-99-004545-000 | I194: 12 2021-003739-008 | J194: 1 0600.215.920.00.00 2021 | K194: 2021/10/19 | L194: 2021/10/26 | M194: 2021/10/28 | N194: 2021/11/05 | O194: 9 | P194: 8 | Q194: 17 | R194: -13 | S194: 21 | T194: 8866.88 | U194: -14408.68 | V194: 121
A195: 2021-FAKT-004610-00 | B195: 2021/10/19 | C195: 2021/50/212781 | D195: 1877.92 | E195: 929 | F195: LKS S.COOP. | G195: 21802357 - PEDIDO Nº: 2021PER10017 - LICENCIAS TEAMVIEWER | H195: 17 2021-99-004546-000 | I195: 12 2021-003739-009 | J195: 1 0600.215.920.00.00 2021 | K195: 2021/10/19 | L195: 2021/10/26 | M195: 2021/10/28 | N195: 2021/11/05 | O195: 9 | P195: 8 | Q195: 17 | R195: -13 | S195: 21 | T195: 15023.36 | U195: -24412.96 | V195: 121
A196: 2021-FAKT-004603-00 | B196: 2021/10/19 | C196: 2105606 | D196: 2171.64 | E196: 15990 | F196: GRUAS Y MONTAJES IRU, S.L. | G196: REPARAR 1862FZT | H196: 17 2021-99-004605-000 | I196: 12 2021-003775-005 | J196: 1 0800.213.153.40.00 2021 | K196: 2021/10/19 | L196: 2021/11/03 | M196: 2021/11/04 | N196: 2021/11/05 | O196: 16 | P196: 1 | Q196: 17 | R196: -13 | S196: 21 | T196: 2171.64 | U196: -28231.32 | V196: =IF(P196>30,200+S196,100+S196) -> 121
A197: 2021-FAKT-004633-00 | B197: 2021/10/21 | C197: 47 | D197: 113.62 | E197: 57 | F197: CRISTALERIA ERRASTI | G197: ERGUINGO IKASTETXEA- CRISTAL LAMINAR TRANSPARENTE SEGURIDAD | H197: 17 2021-99-004570-000 | I197: 12 2021-003592-015 | J197: 1 0901.211.323.00.00 2021 | K197: 2021/10/21 | L197: 2021/10/27 | M197: 2021/10/27 | N197: 2021/10/29 | O197: 6 | P197: 2 | Q197: 8 | R197: -22 | S197: 21 | T197: 227.24 | U197: -2499.64 | V197: 121
A198: 2021-FAKT-004667-00 | B198: 2021/10/22 | C198: 11015931 | D198: 19.36 | E198: 6594 | F198: BERDIN,S.L. | G198: ABRAZADERA NYLON | H198: 17 2021-99-004592-000 | I198: 12 2021-003742-019 | J198: 1 0800.212.165.00.00 2021 | K198: 2021/10/25 | L198: 2021/10/28 | M198: 2021/10/28 | N198: 2021/11/05 | O198: 3 | P198: 8 | Q198: 11 | R198: -19 | S198: 21 | T198: 154.88 | U198: -367.84 | V198: 121
A199: 2021-FAKT-004668-00 | B199: 2021/10/22 | C199: 11015932 | D199: 68.57 | E199: 6594 | F199: BERDIN,S.L. | G199: DETECTOR TECHO EMPOTRABLE | H199: 17 2021-99-004593-000 | I199: 12 2021-003742-020 | J199: 1 0901.211.323.00.00 2021 | K199: 2021/10/25 | L199: 2021/10/28 | M199: 2021/10/28 | N199: 2021/11/05 | O199: 3 | P199: 8 | Q199: 11 | R199: -19 | S199: 21 | T199: 548.56 | U199: -1302.83 | V199: 121
A200: 2021-FAKT-004669-00 | B200: 2021/10/22 | C200: 11015933 | D200: 87.53 | E200: 6594 | F200: BERDIN,S.L. | G200: MATERIALA | H200: 17 2021-99-004594-000 | I200: 12 2021-003742-021 | J200: 1 0411.211.337.21.00 2021 | K200: 2021/10/25 | L200: 2021/10/28 | M200: 2021/10/28 | N200: 2021/11/05 | O200: 3 | P200: 8 | Q200: 11 | R200: -19 | S200: 21 | T200: 700.24 | U200: -1663.07 | V200: 121
A201: 2021-FAKT-004670-00 | B201: 2021/10/22 | C201: 11015934 | D201: 6.46 | E201: 6594 | F201: BERDIN,S.L. | G201: MATERIALA | H201: 17 2021-99-004595-000 | I201: 12 2021-003767-001 | J201: 1 0800.212.165.00.00 2021 | K201: 2021/10/25 | L201: 2021/10/28 | M201: 2021/11/03 | N201: 2021/11/05 | O201: 9 | P201: 2 | Q201: 11 | R201: -19 | S201: 21 | T201: 12.92 | U201: -122.74 | V201: 121
... 2274 more rows

Sheet xehet2
A1: Hiruhilekoan ordaindu gabe gelditu direnak (O eginda) | Q1: 2021/12/31
A3: Espte zkia | B3: Fra data | C3: Fra zkia | D3: Zenbatekoa | E3: Hirugar. Kodea | F3: Hirugarrena | G3: Azalpena | H3: ADO-17 | I3: ADO-12 | J3: Partida | K3: Erregto data | L3: Desz Data | M3: O-ren data | N3: P-ren data | O3: Epea R-O | P3: Epea O - HH buk | Q3: Epea R - HH buk | R3: OBBE | S3: Artik | T3: ponderazioa 1 | U3: ponderazioa 2 | V3: Epean
A4: 2021-FAKT-006096-00 | B4: 2021/12/28 | C4: 054/2021 | D4: 5808 | E4: 16390 | F4: GALEA ELECTRIC SL | G4: SERVICIO DE MEDICION DE LA VELOCIDAD DE CIRCULACION DE VEHICULOS A MOTOR YELABO | H4: 17 2021-99-005480-000 | I4: 12 2021-004735-007 | J4: 1 0104.202.132.00.01 2021 | K4: 2021/12/28 | L4: 2021/12/31 | M4: 2021/12/31 | O4: 3 | P4: 0 | Q4: 3 | R4: -27 | S4: 20 | T4: 0 | U4: -156816 | V4: =IF(P4>30,200+S4,100+S4) -> 120
B5: 2019/05/29 | D5: 239.04 | E5: 15549 | F5: CDAD.PROPIETARIOS MARKULETE PABILOIAK | G5: CUOTAS ORDINARIAS 2019 POR LOS 3 LOCALES DE ALMACENAJE Y ARCHIVO | I5: 12 2019-001553-000 | J5: 3 0600.211.920.00.01 2019 | M5: 2019/05/29 | O5: 0 | P5: 947 | Q5: 947 | R5: 947 | S5: 21 | T5: 226370.88 | U5: 226370.88 | V5: 221
B6: 2019/05/29 | D6: 147.15 | E6: 15549 | F6: CDAD.PROPIETARIOS MARKULETE PABILOIAK | G6: APORTACION CUOTAS REPARACION HIDRANTE PABELLON MARKULETE - LOCALES ALMACENAJE | I6: 12 2019-001554-000 | J6: 3 0600.211.920.00.01 2019 | M6: 2019/05/29 | O6: 0 | P6: 947 | Q6: 947 | R6: 947 | S6: 21 | T6: 139351.05 | U6: 139351.05 | V6: 221
A7: 2021-FAKT-004897-00 | B7: 2021/06/30 | C7: 20210260 | D7: 118.63 | E7: 121 | F7: ELECTRO URONDO, S.L. | G7: CERTIFICACO INSTALACION ELECTRICA | H7: 17 2021-99-005369-000 | I7: 12 2021-004632-019 | J7: 1 0800.212.165.00.00 2021 | K7: 2021/11/10 | L7: 2021/12/29 | M7: 2021/12/29 | O7: 49 | P7: 2 | Q7: 51 | R7: 21 | S7: 21 | T7: 237.26 | U7: 2491.23 | V7: 121
A8: 2021-FAKT-004898-00 | B8: 2021/08/05 | C8: 20210306 | D8: 222.49 | E8: 121 | F8: ELECTRO URONDO, S.L. | G8: LOCAL MARKULETE - GESTIONES INDUSTRIA + IBERDROLA | H8: 17 2021-99-005372-000 | I8: 12 2021-004632-025 | J8: 1 0800.212.165.00.00 2021 | K8: 2021/11/10 | L8: 2021/12/29 | M8: 2021/12/29 | O8: 49 | P8: 2 | Q8: 51 | R8: 21 | S8: 21 | T8: 444.98 | U8: 4672.29 | V8: 121
A9: 2022-FAKT-000289-00 | B9: 2021/09/15 | C9: 332720 | D9: 243.48 | E9: 1060 | F9: SETALDE, S.A. | G9: OBRA:OTROS (AGUA Y SANEAMIENTO) | H9: 17 2021-99-006080-002 | I9: 12 2021-004738-014 | J9: 1 0805.210.161.00.00 2021 | K9: 2022/01/10 | L9: 2021/12/31 | M9: 2021/12/31 | O9: 0 | P9: 0 | Q9: 0 | R9: -30 | S9: 21 | T9: 0 | U9: -7304.4 | V9: 121
A10: 2022-FAKT-000289-00 | B10: 2021/09/15 | C10: 332720 | D10: 49.57 | E10: 1060 | F10: SETALDE, S.A. | G10: OBRA:OTROS (AGUA Y SANEAMIENTO) | H10: 17 2021-99-006080-001 | I10: 12 2021-004738-013 | J10: 1 0906.211.172.20.00 2021 | K10: 2022/01/10 | L10: 2021/12/31 | M10: 2021/12/31 | O10: 0 | P10: 0 | Q10: 0 | R10: -30 | S10: 21 | T10: 0 | U10: -1487.1 | V10: 121
A11: 2022-FAKT-000290-00 | B11: 2021/09/30 | C11: 334109 | D11: 26.46 | E11: 1060 | F11: SETALDE, S.A. | G11: OBRA:OTROS (TXAETA 3, 1ºA) | H11: 17 2021-99-006111-002 | I11: 12 2021-004763-004 | J11: 1 0404.211.231.50.00 2021 | K11: 2022/01/10 | L11: 2021/12/31 | M11: 2021/12/31 | O11: 0 | P11: 0 | Q11: 0 | R11: -30 | S11: 21 | T11: 0 | U11: -793.8 | V11: 121
A12: 2021-FAKT-004854-00 | B12: 2021/09/30 | C12: B21300102 | D12: 13.84 | E12: 6649 | F12: MRW - LEGEMON S.L. | G12: IRAILEKO ZERBITZUA | H12: 17 2021-99-004737-000 | I12: 12 2021-003843-026 | J12: 1 0805.210.161.00.00 2021 | K12: 2021/11/05 | L12: 2021/11/10 | M12: 2021/11/10 | O12: 5 | P12: 51 | Q12: 56 | R12: 26 | S12: 21 | T12: 705.84 | U12: 359.84 | V12: 221
A13: 2021-FAKT-006012-00 | B13: 2021/09/30 | C13: 2021232 | D13: 383.57 | E13: 17038 | F13: FERNANDEZ FONTURBEL MARIA TERESA | G13: SS-4013-BH (PLAKA MATRIKULA ETA BIELETAK) | H13: 17 2021-99-005356-000 | I13: 12 2021-004632-013 | J13: 1 0800.213.153.40.00 2021 | K13: 2021/12/21 | L13: 2021/12/28 | M13: 2021/12/29 | O13: 8 | P13: 2 | Q13: 10 | R13: -20 | S13: 21 | T13: 767.14 | U13: -7671.4 | V13: 121
A14: 2022-FAKT-000290-00 | B14: 2021/09/30 | C14: 334109 | D14: 4.96 | E14: 1060 | F14: SETALDE, S.A. | G14: OBRA:OTROS (TXAETA 3, 1ºA) | H14: 17 2021-99-006111-001 | I14: 12 2021-004763-003 | J14: 1 0204.211.334.00.00 2021 | K14: 2022/01/10 | L14: 2021/12/31 | M14: 2021/12/31 | O14: 0 | P14: 0 | Q14: 0 | R14: -30 | S14: 21 | T14: 0 | U14: -148.8 | V14: 121
A15: 2022-FAKT-000290-00 | B15: 2021/09/30 | C15: 334109 | D15: 63.69 | E15: 1060 | F15: SETALDE, S.A. | G15: OBRA:OTROS (TXAETA 3, 1ºA) | H15: 17 2021-99-006111-003 | I15: 12 2021-004763-005 | J15: 1 0800.211.441.10.00 2021 | K15: 2022/01/10 | L15: 2021/12/31 | M15: 2021/12/31 | O15: 0 | P15: 0 | Q15: 0 | R15: -30 | S15: 21 | T15: 0 | U15: -1910.7 | V15: 121
A16: 2022-FAKT-000290-00 | B16: 2021/09/30 | C16: 334109 | D16: 163.22 | E16: 1060 | F16: SETALDE, S.A. | G16: OBRA:OTROS (TXAETA 3, 1ºA) | H16: 17 2021-99-006111-006 | I16: 12 2021-004763-008 | J16: 1 0902.211.323.00.00 2021 | K16: 2022/01/10 | L16: 2021/12/31 | M16: 2021/12/31 | O16: 0 | P16: 0 | Q16: 0 | R16: -30 | S16: 21 | T16: 0 | U16: -4896.6 | V16: 121
A17: 2022-FAKT-000290-00 | B17: 2021/09/30 | C17: 334109 | D17: 26.46 | E17: 1060 | F17: SETALDE, S.A. | G17: OBRA:OTROS (TXAETA 3, 1ºA) | H17: 17 2021-99-006111-005 | I17: 12 2021-004763-007 | J17: 1 0901.211.323.00.00 2021 | K17: 2022/01/10 | L17: 2021/12/31 | M17: 2021/12/31 | O17: 0 | P17: 0 | Q17: 0 | R17: -30 | S17: 21 | T17: 0 | U17: -793.8 | V17: 121
A18: 2022-FAKT-000291-00 | B18: 2021/10/15 | C18: 335264 | D18: 80.97 | E18: 1060 | F18: SETALDE, S.A. | G18: OBRA:OTROS (EJE) | H18: 17 2021-99-006081-000 | I18: 12 2021-004738-015 | J18: 1 0406.211.337.10.00 2021 | K18: 2022/01/10 | L18: 2021/12/31 | M18: 2021/12/31 | O18: 0 | P18: 0 | Q18: 0 | R18: -30 | S18: 21 | T18: 0 | U18: -2429.1 | V18: 121
A19: 2022-FAKT-000292-00 | B19: 2021/10/31 | C19: 336464 | D19: 300.56 | E19: 1060 | F19: SETALDE, S.A. | G19: BOMBA CALEFACCION | H19: 17 2021-99-006082-000 | I19: 12 2021-004738-016 | J19: 1 0800.211.920.00.00 2021 | K19: 2022/01/10 | L19: 2021/12/31 | M19: 2021/12/31 | O19: 0 | P19: 0 | Q19: 0 | R19: -30 | S19: 21 | T19: 0 | U19: -9016.8 | V19: 121
A20: 2021-FAKT-004916-00 | B20: 2021/11/11 | C20: 428 | D20: 1357.38 | E20: 10033 | F20: URKO MANTENIMIENTO SL | G20: IMPORTE SEGUN PRESUPUESTO Nº138/21/SL, QUE COMPRENDE: VALVULA DE ASIENTO SIEMEN | H20: 17 2021-99-004822-000 | I20: 12 2021-003924-042 | J20: 1 1200.211.342.20.01 2021 | K20: 2021/11/11 | L20: 2021/11/18 | M20: 2021/11/18 | O20: 7 | P20: 43 | Q20: 50 | R20: 20 | S20: 21 | T20: 58367.34 | U20: 27147.6 | V20: 221
A21: 2022-FAKT-000293-00 | B21: 2021/11/15 | C21: 337606 | D21: 58.48 | E21: 1060 | F21: SETALDE, S.A. | G21: OBRA:OTROS (KULTURATE) | H21: 17 2021-99-006083-000 | I21: 12 2021-004738-017 | J21: 1 0201.211.332.10.00 2021 | K21: 2022/01/10 | L21: 2021/12/31 | M21: 2021/12/31 | O21: 0 | P21: 0 | Q21: 0 | R21: -30 | S21: 21 | T21: 0 | U21: -1754.4 | V21: 121
A22: 2021-FAKT-004972-00 | B22: 2021/11/15 | C22: FV2114046 | D22: 114.2 | E22: 7113 | F22: SEIN BATU S.L. | G22: MATERIALA | H22: 17 2021-99-006042-000 | I22: 12 2021-004709-032 | J22: 1 1200.211.342.10.00 2021 | K22: 2021/11/18 | L22: 2021/12/31 | M22: 2021/12/31 | O22: 43 | P22: 0 | Q22: 43 | R22: 13 | S22: 21 | T22: 0 | U22: 1484.6 | V22: 121
A23: 2021-FAKT-005042-00 | B23: 2021/11/23 | C23: 4026 | D23: 1815 | E23: 17511 | F23: PAYMAQ-A TODAS HORASVENTAS SL | G23: MAQUINA COBRO AUTOMATICO PAYCASH | H23: 17 2021-99-006151-002 | I23: 12 2021-004784-065 | J23: 1 0600.215.920.00.00 2021 | K23: 2021/11/24 | L23: 2021/12/31 | M23: 2021/12/31 | O23: 37 | P23: 0 | Q23: 37 | R23: 7 | S23: 21 | T23: 0 | U23: 12705 | V23: 121
A24: 2021-FAKT-005934-00 | B24: 2021/11/30 | C24: 2879 | D24: 249.38 | E24: 10701 | F24: SUMINISTROS ARRI S.L. | G24: LIJADORA DE BANDA, LIJAS | H24: 17 2021-99-005368-001 | I24: 12 2021-004632-017 | J24: 1 0800.210.153.30.00 2021 | K24: 2021/12/17 | L24: 2021/12/29 | M24: 2021/12/29 | O24: 12 | P24: 2 | Q24: 14 | R24: -16 | S24: 21 | T24: 498.76 | U24: -3990.08 | V24: 121
B25: 2021/11/30 | C25: 9003281792 | D25: 59.29 | E25: 7494 | F25: TK ELEVADORES ESPAÑA S.L.U | G25: EMAKUME TXOKOA ED.MULTIUSOS -IGOGAILUAREN MANTENIMENDUA AZAORA | H25: 17 2021-99-006144-013 | I25: 12 2021-004784-055 | J25: 1 0413.211.337.23.00 2021 | L25: 2021/12/31 | M25: 2021/12/31 | O25: 0 | P25: 0 | Q25: 0 | R25: -30 | S25: 21 | T25: 0 | U25: -1778.7 | V25: 121
A26: 2021-FAKT-005825-00 | B26: 2021/11/30 | C26: FV2114760 | D26: 118.41 | E26: 7113 | F26: SEIN BATU S.L. | G26: BILTEGIKO MATERIALA | H26: 17 2021-99-006045-000 | I26: 12 2021-004709-035 | J26: 1 1200.211.342.10.00 2021 | K26: 2021/12/09 | L26: 2021/12/31 | M26: 2021/12/31 | O26: 22 | P26: 0 | Q26: 22 | R26: -8 | S26: 21 | T26: 0 | U26: -947.28 | V26: 121
A27: 2021-FAKT-005890-00 | B27: 2021/11/30 | C27: B-21/2.366 | D27: 355.62 | E27: 6400 | F27: TXIMELA BERGARA S.A. | G27: MAKINARIA ALOKAIRUA, ZBK 3102829-KIROLDEGIA | H27: 17 2021-99-005482-000 | I27: 12 2021-004643-001 | J27: 1 1200.211.342.10.00 2021 | K27: 2021/12/14 | L27: 2021/12/31 | M27: 2021/12/31 | O27: 17 | P27: 0 | Q27: 17 | R27: -13 | S27: 21 | T27: 0 | U27: -4623.06 | V27: 121
B28: 2021/11/30 | C28: 9003281792 | D28: 59.29 | E28: 7494 | F28: TK ELEVADORES ESPAÑA S.L.U | G28: UARKAPE - IGOGAILUAREN MANTENIMENDUA AZAORA | H28: 17 2021-99-006144-010 | I28: 12 2021-004784-052 | J28: 1 1200.212.342.10.00 2021 | L28: 2021/12/31 | M28: 2021/12/31 | O28: 0 | P28: 0 | Q28: 0 | R28: -30 | S28: 21 | T28: 0 | U28: -1778.7 | V28: 121
A29: 2021-FAKT-005889-00 | B29: 2021/11/30 | C29: B-21/2.319 | D29: 711.96 | E29: 6400 | F29: TXIMELA BERGARA S.A. | G29: MAKINARIA ALOKAIRUA, ZBK 3102881 | H29: 17 2021-99-005373-000 | I29: 12 2021-004632-026 | J29: 1 0800.212.165.00.00 2021 | K29: 2021/12/14 | L29: 2021/12/29 | M29: 2021/12/29 | O29: 15 | P29: 2 | Q29: 17 | R29: -13 | S29: 21 | T29: 1423.92 | U29: -9255.48 | V29: 121
A30: 2021-FAKT-006036-00 | B30: 2021/11/30 | C30: 2021001497 | D30: 176.66 | E30: 17350 | F30: BAÑU-ETXE RECYCLING SLU | G30: SERVICIO CONTENEDOR DE MEZCLA FRA. 1497 | H30: 17 2021-99-005512-000 | I30: 12 2021-004680-002 | J30: 1 0808.210.153.00.00 2021 | K30: 2021/12/21 | L30: 2021/12/31 | M30: 2021/12/31 | O30: 10 | P30: 0 | Q30: 10 | R30: -20 | S30: 21 | T30: 0 | U30: -3533.2 | V30: 121
B31: 2021/11/30 | C31: 9003281792 | D31: 59.29 | E31: 7494 | F31: TK ELEVADORES ESPAÑA S.L.U | G31: KIROLDEGIA - IGOGAILUAREN MANTENIMENDUA AZAORA | H31: 17 2021-99-006144-011 | I31: 12 2021-004784-053 | J31: 1 1200.212.342.10.00 2021 | L31: 2021/12/31 | M31: 2021/12/31 | O31: 0 | P31: 0 | Q31: 0 | R31: -30 | S31: 21 | T31: 0 | U31: -1778.7 | V31: 121
A32: 2021-FAKT-005764-00 | B32: 2021/11/30 | C32: FVR01-1010114 | D32: 6.59 | E32: 12927 | F32: CEPIN, S.L. | G32: TK PALET SEMITRI 40 ETA 30 BRICOL | H32: 17 2021-99-006043-000 | I32: 12 2021-004709-033 | J32: 1 1200.211.342.10.00 2021 | K32: 2021/12/07 | L32: 2021/12/31 | M32: 2021/12/31 | O32: 24 | P32: 0 | Q32: 24 | R32: -6 | S32: 21 | T32: 0 | U32: -39.54 | V32: 121
A33: 2021-FAKT-005822-00 | B33: 2021/12/09 | C33: 54 | D33: 48.23 | E33: 57 | F33: CRISTALERIA ERRASTI | G33: BILTEGIKO MATERIALA (ALBARAN Nº 198) | H33: 17 2021-99-006044-000 | I33: 12 2021-004709-034 | J33: 1 1200.211.342.10.00 2021 | K33: 2021/12/09 | L33: 2021/12/31 | M33: 2021/12/31 | O33: 22 | P33: 0 | Q33: 22 | R33: -8 | S33: 21 | T33: 0 | U33: -385.84 | V33: 121
A34: 2021-FAKT-005896-00 | B34: 2021/12/14 | C34: 435 | D34: 95.99 | E34: 10033 | F34: URKO MANTENIMIENTO SL | G34: MANTENIMIENTO OCTUBRE | H34: 17 2021-99-005370-002 | I34: 12 2021-004632-021 | J34: 1 1200.212.342.30.01 2021 | K34: 2021/12/14 | L34: 2021/12/29 | M34: 2021/12/29 | O34: 15 | P34: 2 | Q34: 17 | R34: -13 | S34: 21 | T34: 191.98 | U34: -1247.87 | V34: 121
A35: 2021-FAKT-005896-00 | B35: 2021/12/14 | C35: 435 | D35: 479.99 | E35: 10033 | F35: URKO MANTENIMIENTO SL | G35: MANTENIMIENTO OCTUBRE | H35: 17 2021-99-005370-003 | I35: 12 2021-004632-022 | J35: 1 1200.212.342.10.00 2021 | K35: 2021/12/14 | L35: 2021/12/29 | M35: 2021/12/29 | O35: 15 | P35: 2 | Q35: 17 | R35: -13 | S35: 21 | T35: 959.98 | U35: -6239.87 | V35: 121
A36: 2021-FAKT-005896-00 | B36: 2021/12/14 | C36: 435 | D36: 255.99 | E36: 10033 | F36: URKO MANTENIMIENTO SL | G36: MANTENIMIENTO OCTUBRE | H36: 17 2021-99-005370-001 | I36: 12 2021-004632-020 | J36: 1 1200.212.342.20.01 2021 | K36: 2021/12/14 | L36: 2021/12/29 | M36: 2021/12/29 | O36: 15 | P36: 2 | Q36: 17 | R36: -13 | S36: 21 | T36: 511.98 | U36: -3327.87 | V36: 121
A37: 2021-FAKT-005920-00 | B37: 2021/12/15 | C37: 1595 | D37: 15389.97 | E37: 458 | F37: ALTUNA Y URIA S.A. | G37: LANAK: IGOGAILU BERRI BATEN PROIKTUAREN OBRAK EXEKUTATZEA, ARRASATEN HONDARRIBI | H37: 17 2021-99-006400-000 | I37: 12 2021-004789-000 | J37: 1 0813.212.134.00.00 2021 | K37: 2021/12/16 | L37: 2021/12/31 | M37: 2021/12/31 | O37: 15 | P37: 0 | Q37: 15 | R37: -15 | S37: 21 | T37: 0 | U37: -230849.55 | V37: 121
A38: 2021-FAKT-006043-00 | B38: 2021/12/15 | C38: F21034349 | D38: 76.67 | E38: 161 | F38: JUPER BAT, S.A.U | G38: Nº ALBARAN AV12157128 FECHA ALBARAN 15/12/21: | H38: 17 2021-99-005498-001 | I38: 12 2021-004643-027 | J38: 1 0800.211.311.00.00 2021 | K38: 2021/12/22 | L38: 2021/12/31 | M38: 2021/12/31 | O38: 9 | P38: 0 | Q38: 9 | R38: -21 | S38: 21 | T38: 0 | U38: -1610.07 | V38: 121
A39: 2021-FAKT-005918-00 | B39: 2021/12/15 | C39: 2555 | D39: 8.71 | E39: 190 | F39: OMU CERAMICAS | G39: 1 SACO CEMENTO BLANCO120 LADRILLO TABICON1 BOTE PINTURA SIKAFILL200 GR 1KG | H39: 17 2021-99-005386-003 | I39: 12 2021-004636-014 | J39: 1 1200.211.342.10.00 2021 | K39: 2021/12/16 | L39: 2021/12/30 | M39: 2021/12/30 | O39: 14 | P39: 1 | Q39: 15 | R39: -15 | S39: 21 | T39: 8.71 | U39: -130.65 | V39: 121
A40: 2021-FAKT-005963-00 | B40: 2021/12/15 | C40: F21/231 | D40: 33.2 | E40: 3839 | F40: ZANGUITU MADINA YOSEBA Y OTROS C.B | G40: BILTEGIKO MATERIALA | H40: 17 2021-99-005389-002 | I40: 12 2021-004636-019 | J40: 1 0800.210.153.30.00 2021 | K40: 2021/12/20 | L40: 2021/12/30 | M40: 2021/12/30 | O40: 10 | P40: 1 | Q40: 11 | R40: -19 | S40: 21 | T40: 33.2 | U40: -630.8 | V40: 121
A41: 2021-FAKT-005946-00 | B41: 2021/12/15 | C41: FV2115361 | D41: 3.44 | E41: 7113 | F41: SEIN BATU S.L. | G41: BILTEGIKO MATERIALA | H41: 17 2021-99-005385-002 | I41: 12 2021-004636-010 | J41: 1 0800.212.165.00.00 2021 | K41: 2021/12/17 | L41: 2021/12/30 | M41: 2021/12/30 | O41: 13 | P41: 1 | Q41: 14 | R41: -16 | S41: 21 | T41: 3.44 | U41: -55.04 | V41: 121
A42: 2021-FAKT-005918-00 | B42: 2021/12/15 | C42: 2555 | D42: 22.94 | E42: 190 | F42: OMU CERAMICAS | G42: 1 SACO CEMENTO BLANCO120 LADRILLO TABICON1 BOTE PINTURA SIKAFILL200 GR 1KG | H42: 17 2021-99-005386-002 | I42: 12 2021-004636-013 | J42: 1 0804.211.153.41.00 2021 | K42: 2021/12/16 | L42: 2021/12/30 | M42: 2021/12/30 | O42: 14 | P42: 1 | Q42: 15 | R42: -15 | S42: 21 | T42: 22.94 | U42: -344.1 | V42: 121
A43: 2021-FAKT-005946-00 | B43: 2021/12/15 | C43: FV2115361 | D43: 32.67 | E43: 7113 | F43: SEIN BATU S.L. | G43: BILTEGIKO MATERIALA | H43: 17 2021-99-005385-001 | I43: 12 2021-004636-009 | J43: 1 0800.210.153.30.00 2021 | K43: 2021/12/17 | L43: 2021/12/30 | M43: 2021/12/30 | O43: 13 | P43: 1 | Q43: 14 | R43: -16 | S43: 21 | T43: 32.67 | U43: -522.72 | V43: 121
A44: 2021-FAKT-005918-00 | B44: 2021/12/15 | C44: 2555 | D44: 9.26 | E44: 190 | F44: OMU CERAMICAS | G44: 1 SACO CEMENTO BLANCO120 LADRILLO TABICON 1 BOTE PINTURA SIKAFILL 200 GR 1KG | H44: 17 2021-99-005386-001 | I44: 12 2021-004636-012 | J44: 1 0800.210.153.30.00 2021 | K44: 2021/12/16 | L44: 2021/12/30 | M44: 2021/12/30 | O44: 14 | P44: 1 | Q44: 15 | R44: -15 | S44: 21 | T44: 9.26 | U44: -138.9 | V44: 121
A45: 2021-FAKT-006086-00 | B45: 2021/12/16 | C45: 21NA152499 | D45: 181.32 | E45: 9932 | F45: BLINKER | G45: BRIDA NYLON PLUS BELTZA 300*7,6 | H45: 17 2021-99-005366-000 | I45: 12 2021-004632-015 | J45: 1 0200.219.338.00.00 2021 | K45: 2021/12/27 | L45: 2021/12/29 | M45: 2021/12/29 | O45: 2 | P45: 2 | Q45: 4 | R45: -26 | S45: 21 | T45: 362.64 | U45: -4714.32 | V45: 121
A46: 2021-FAKT-006010-00 | B46: 2021/12/17 | C46: 1087/2021 | D46: 25.41 | E46: 644 | F46: AUTO ELECTRICIDAD SAN ANDRES, S.L. | G46: CAMBIAR LAMPARA TOYOTA AURIS 5106-HNM | H46: 17 2021-99-006012-000 | I46: 12 2021-004709-003 | J46: 1 0104.213.132.00.00 2021 | K46: 2021/12/21 | L46: 2021/12/31 | M46: 2021/12/31 | O46: 10 | P46: 0 | Q46: 10 | R46: -20 | S46: 21 | T46: 0 | U46: -508.2 | V46: 121
A47: 2021-FAKT-005977-00 | B47: 2021/12/17 | C47: 11019169 | D47: 130.23 | E47: 6594 | F47: BERDIN,S.L. | G47: BILTEGIKO MATERIALA (ALB 40085120) | H47: 17 2021-99-005349-000 | I47: 12 2021-004632-006 | J47: 1 0800.212.165.00.00 2021 | K47: 2021/12/20 | L47: 2021/12/28 | M47: 2021/12/29 | O47: 9 | P47: 2 | Q47: 11 | R47: -19 | S47: 21 | T47: 260.46 | U47: -2474.37 | V47: 121
A48: 2021-FAKT-005970-00 | B48: 2021/12/17 | C48: 11019162 | D48: 11.18 | E48: 6594 | F48: BERDIN,S.L. | G48: CEBADOR PHILIPS (ALB. 40084907) | H48: 17 2021-99-006046-000 | I48: 12 2021-004709-036 | J48: 1 1200.211.342.10.00 2021 | K48: 2021/12/20 | L48: 2021/12/31 | M48: 2021/12/31 | O48: 11 | P48: 0 | Q48: 11 | R48: -19 | S48: 21 | T48: 0 | U48: -212.42 | V48: 121
A49: 2021-FAKT-005980-00 | B49: 2021/12/17 | C49: 11019172 | D49: 87.82 | E49: 6594 | F49: BERDIN,S.L. | G49: BILTEGIKO MATERIALA (TECNIFLEX 2*0,5 KABLEA, ALB 40085181) | H49: 17 2021-99-005352-000 | I49: 12 2021-004632-009 | J49: 1 0800.212.165.00.00 2021 | K49: 2021/12/20 | L49: 2021/12/28 | M49: 2021/12/29 | O49: 9 | P49: 2 | Q49: 11 | R49: -19 | S49: 21 | T49: 175.64 | U49: -1668.58 | V49: 121
A50: 2021-FAKT-005972-00 | B50: 2021/12/17 | C50: 11019164 | D50: 66.43 | E50: 6594 | F50: BERDIN,S.L. | G50: BILTEGIRAKO MATERIALA (LANPARA CORE PRO LED 1200MM) | H50: 17 2021-99-005346-000 | I50: 12 2021-004632-003 | J50: 1 0800.211.920.00.00 2021 | K50: 2021/12/20 | L50: 2021/12/28 | M50: 2021/12/29 | O50: 9 | P50: 2 | Q50: 11 | R50: -19 | S50: 21 | T50: 132.86 | U50: -1262.17 | V50: 121
A51: 2021-FAKT-005979-00 | B51: 2021/12/17 | C51: 11019171 | D51: 561.8 | E51: 6594 | F51: BERDIN,S.L. | G51: BILTEGIKO MATERIALA (MAS LED TUBE 1500, ALB 40085156) | H51: 17 2021-99-005351-000 | I51: 12 2021-004632-008 | J51: 1 0800.212.165.00.00 2021 | K51: 2021/12/20 | L51: 2021/12/28 | M51: 2021/12/29 | O51: 9 | P51: 2 | Q51: 11 | R51: -19 | S51: 21 | T51: 1123.6 | U51: -10674.2 | V51: 121
A52: 2021-FAKT-005937-00 | B52: 2021/12/17 | C52: 21-4000615 | D52: 1393.85 | E52: 679 | F52: VENTICLIMA, S.A. | G52: SUSTITUCION DE TRANSDUCTOR DE ALTA DE MAQUINA CARRIER, ASI COMO SUSTITUCION DE | H52: 17 2021-99-005993-000 | I52: 12 2021-004735-040 | J52: 1 0201.211.332.10.00 2021 | K52: 2021/12/17 | L52: 2021/12/31 | M52: 2021/12/31 | O52: 14 | P52: 0 | Q52: 14 | R52: -16 | S52: 21 | T52: 0 | U52: -22301.6 | V52: 121
A53: 2021-FAKT-005978-00 | B53: 2021/12/17 | C53: 11019170 | D53: 7.55 | E53: 6594 | F53: BERDIN,S.L. | G53: BILTEGIKO MATERIALA (ALB 40085134) | H53: 17 2021-99-005350-000 | I53: 12 2021-004632-007 | J53: 1 0800.212.165.00.00 2021 | K53: 2021/12/20 | L53: 2021/12/28 | M53: 2021/12/29 | O53: 9 | P53: 2 | Q53: 11 | R53: -19 | S53: 21 | T53: 15.1 | U53: -143.45 | V53: 121
A54: 2021-FAKT-005974-00 | B54: 2021/12/17 | C54: 11019166 | D54: 61.18 | E54: 6594 | F54: BERDIN,S.L. | G54: BILTEGIKO MATERIALA LUDOTEKA (ALB. 40085078) | H54: 17 2021-99-005347-000 | I54: 12 2021-004632-004 | J54: 1 0411.211.337.21.00 2021 | K54: 2021/12/20 | L54: 2021/12/28 | M54: 2021/12/29 | O54: 9 | P54: 2 | Q54: 11 | R54: -19 | S54: 21 | T54: 122.36 | U54: -1162.42 | V54: 121
A55: 2021-FAKT-005975-00 | B55: 2021/12/17 | C55: 11019167 | D55: 246.4 | E55: 6594 | F55: BERDIN,S.L. | G55: BILTEGIKO MATERIALA (LAMP SON-T APIA) ALB 40085086 | H55: 17 2021-99-005348-000 | I55: 12 2021-004632-005 | J55: 1 0800.212.165.00.00 2021 | K55: 2021/12/20 | L55: 2021/12/28 | M55: 2021/12/29 | O55: 9 | P55: 2 | Q55: 11 | R55: -19 | S55: 21 | T55: 492.8 | U55: -4681.6 | V55: 121
A56: 2021-FAKT-005981-00 | B56: 2021/12/17 | C56: 11019173 | D56: 25.41 | E56: 6594 | F56: BERDIN,S.L. | G56: BILTEGIKO MATERIALA (LANPARAK, ALB 40085197) | H56: 17 2021-99-005353-000 | I56: 12 2021-004632-010 | J56: 1 0800.211.920.00.00 2021 | K56: 2021/12/20 | L56: 2021/12/28 | M56: 2021/12/29 | O56: 9 | P56: 2 | Q56: 11 | R56: -19 | S56: 21 | T56: 50.82 | U56: -482.79 | V56: 121
A57: 2021-FAKT-006060-00 | B57: 2021/12/21 | C57: 338-21 | D57: 1049.31 | E57: 202 | F57: PARQUES Y JARDINES ABADIANO, S.A. | G57: ZUHAITZAK BOTATZEA HERRIKO LEKU DESBERDIÑETAN | H57: 17 2021-99-005478-000 | I57: 12 2021-004735-005 | J57: 1 0809.210.171.00.00 2021 | K57: 2021/12/27 | L57: 2021/12/31 | M57: 2021/12/31 | O57: 4 | P57: 0 | Q57: 4 | R57: -26 | S57: 21 | T57: 0 | U57: -27282.06 | V57: 121
A58: 2021-FAKT-006015-00 | B58: 2021/12/21 | C58: 213568 | D58: 88.33 | E58: 11711 | F58: MAQUELSA | G58: KONPONKETA, GARBIKETA ETA AJUSTEAK | H58: 17 2021-99-005377-000 | I58: 12 2021-004636-001 | J58: 1 0600.215.920.00.00 2021 | K58: 2021/12/21 | L58: 2021/12/29 | M58: 2021/12/30 | O58: 9 | P58: 1 | Q58: 10 | R58: -20 | S58: 21 | T58: 88.33 | U58: -1766.6 | V58: 121
A59: 2021-FAKT-006027-00 | B59: 2021/12/21 | C59: 109/21 | D59: 4927.12 | E59: 2245 | F59: EXCAVACIONES ARRASATE, S.L. | G59: LIMPIEZA DE DESPRENDIMIENTO EN JAUREGIBARRIA | H59: 17 2021-99-005996-000 | I59: 12 2021-004735-043 | J59: 1 0808.210.153.00.00 2021 | K59: 2021/12/21 | L59: 2021/12/31 | M59: 2021/12/31 | O59: 10 | P59: 0 | Q59: 10 | R59: -20 | S59: 21 | T59: 0 | U59: -98542.4 | V59: 121
A60: 2021-FAKT-006028-00 | B60: 2021/12/21 | C60: 110/21 | D60: 9170.59 | E60: 2245 | F60: EXCAVACIONES ARRASATE, S.L. | G60: LIMPIEZA DE DESPRENDIMIENTO EN GESALIBAR. | H60: 17 2021-99-006152-000 | I60: 12 2021-004784-066 | J60: 1 0808.210.153.00.00 2021 | K60: 2021/12/21 | L60: 2021/12/31 | M60: 2021/12/31 | O60: 10 | P60: 0 | Q60: 10 | R60: -20 | S60: 21 | T60: 0 | U60: -183411.8 | V60: 121
A61: 2021-FAKT-006040-00 | B61: 2021/12/22 | C61: 2960035976 | D61: 8401.02 | E61: 7494 | F61: TK ELEVADORES ESPAÑA S.L.U | G61: RCP-FERIXALEKUA (CABLES) DIRECCION DE INSTALACION: AV/LICENCIADO OTALORA | H61: 17 2021-99-005477-000 | I61: 12 2021-004735-004 | J61: 1 0812.211.134.00.00 2021 | K61: 2021/12/22 | L61: 2021/12/31 | M61: 2021/12/31 | O61: 9 | P61: 0 | Q61: 9 | R61: -21 | S61: 21 | T61: 0 | U61: -176421.42 | V61: 121
A62: 2021-FAKT-006175-00 | B62: 2021/12/22 | C62: 5603201673 | D62: 280.78 | E62: 6816 | F62: CESPA,CIA ESPAÑOLA DE SERV.PUBLIC.AUXILI | G62: SUMINISTRO DE MATERIAL PARA CONTROL BIOLOGICO DE PLAGAS | H62: 17 2021-99-005516-000 | I62: 12 2021-004680-006 | J62: 1 0809.210.171.00.00 2021 | K62: 2021/12/31 | L62: 2021/12/31 | M62: 2021/12/31 | O62: 0 | P62: 0 | Q62: 0 | R62: -30 | S62: 21 | T62: 0 | U62: -8423.4 | V62: 121
B63: 2021/12/23 | C63: 449 | D63: 255.99 | E63: 10033 | F63: URKO MANTENIMIENTO SL | G63: MANTENTZE LANAK. AZAROA. | H63: 17 2021-99-006050-002 | I63: 12 2021-004709-041 | J63: 1 1200.212.342.20.01 2021 | L63: 2021/12/31 | M63: 2021/12/31 | O63: 0 | P63: 0 | Q63: 0 | R63: -30 | S63: 21 | T63: 0 | U63: -7679.7 | V63: 121
B64: 2021/12/23 | C64: 450 | D64: 95.99 | E64: 10033 | F64: URKO MANTENIMIENTO SL | G64: MANTENTZE LANAK. ABENDUA. | H64: 17 2021-99-006051-003 | I64: 12 2021-004709-045 | J64: 1 1200.212.342.30.01 2021 | L64: 2021/12/31 | M64: 2021/12/31 | O64: 0 | P64: 0 | Q64: 0 | R64: -30 | S64: 21 | T64: 0 | U64: -2879.7 | V64: 121
B65: 2021/12/23 | C65: 449 | D65: 479.99 | E65: 10033 | F65: URKO MANTENIMIENTO SL | G65: MANTENTZE LANAK. AZAROA. | H65: 17 2021-99-006050-001 | I65: 12 2021-004709-040 | J65: 1 1200.212.342.10.00 2021 | L65: 2021/12/31 | M65: 2021/12/31 | O65: 0 | P65: 0 | Q65: 0 | R65: -30 | S65: 21 | T65: 0 | U65: -14399.7 | V65: 121
B66: 2021/12/23 | C66: 450 | D66: 255.99 | E66: 10033 | F66: URKO MANTENIMIENTO SL | G66: MANTENTZE LANAK. ABENDUA. | H66: 17 2021-99-006051-002 | I66: 12 2021-004709-044 | J66: 1 1200.212.342.20.01 2021 | L66: 2021/12/31 | M66: 2021/12/31 | O66: 0 | P66: 0 | Q66: 0 | R66: -30 | S66: 21 | T66: 0 | U66: -7679.7 | V66: 121
B67: 2021/12/23 | C67: 02232PE | D67: 330.81 | E67: 3998 | F67: EUSKALTEL S.A. | G67: ABENDUKO TELEFONO KUOTAK ETA KONTSUMOAK | H67: 17 2021-99-006068-014 | I67: 12 2021-004784-015 | J67: 1 0805.210.161.00.00 2021 | L67: 2021/12/31 | M67: 2021/12/31 | O67: 0 | P67: 0 | Q67: 0 | R67: -30 | S67: 21 | T67: 0 | U67: -9924.3 | V67: 121
B68: 2021/12/23 | C68: 450 | D68: 479.99 | E68: 10033 | F68: URKO MANTENIMIENTO SL | G68: MANTENTZE LANAK. ABENDUA. | H68: 17 2021-99-006051-001 | I68: 12 2021-004709-043 | J68: 1 1200.212.342.10.00 2021 | L68: 2021/12/31 | M68: 2021/12/31 | O68: 0 | P68: 0 | Q68: 0 | R68: -30 | S68: 21 | T68: 0 | U68: -14399.7 | V68: =IF(P68>30,200+S68,100+S68) -> 121
B69: 2021/12/23 | C69: 02232PE | D69: 229.66 | E69: 3998 | F69: EUSKALTEL S.A. | G69: ABENDUKO TELEFONO KUOTAK ETA KONTSUMOAK | H69: 17 2021-99-006068-011 | I69: 12 2021-004784-012 | J69: 1 0800.212.165.00.00 2021 | L69: 2021/12/31 | M69: 2021/12/31 | O69: 0 | P69: 0 | Q69: 0 | R69: -30 | S69: 21 | T69: 0 | U69: -6889.8 | V69: 121
B70: 2021/12/23 | C70: 449 | D70: 95.99 | E70: 10033 | F70: URKO MANTENIMIENTO SL | G70: MANTENTZE LANAK. AZAROA. | H70: 17 2021-99-006050-003 | I70: 12 2021-004709-042 | J70: 1 1200.212.342.30.01 2021 | L70: 2021/12/31 | M70: 2021/12/31 | O70: 0 | P70: 0 | Q70: 0 | R70: -30 | S70: 21 | T70: 0 | U70: -2879.7 | V70: 121
A71: 2021-FAKT-006073-00 | B71: 2021/12/25 | C71: 11019459 | D71: 92.34 | E71: 6594 | F71: BERDIN,S.L. | G71: MAGNETOTERMICO | H71: 17 2021-99-005382-000 | I71: 12 2021-004636-006 | J71: 1 0800.212.165.00.00 2021 | K71: 2021/12/27 | L71: 2021/12/30 | M71: 2021/12/30 | O71: 3 | P71: 1 | Q71: 4 | R71: -26 | S71: 21 | T71: 92.34 | U71: -2400.84 | V71: 121
A72: 2021-FAKT-006074-00 | B72: 2021/12/25 | C72: 11019460 | D72: 70.19 | E72: 6594 | F72: BERDIN,S.L. | G72: LAMP COREPRO LED (ALB 40085343) | H72: 17 2021-99-005383-000 | I72: 12 2021-004636-007 | J72: 1 0200.219.338.00.00 2021 | K72: 2021/12/27 | L72: 2021/12/30 | M72: 2021/12/30 | O72: 3 | P72: 1 | Q72: 4 | R72: -26 | S72: 21 | T72: 70.19 | U72: -1824.94 | V72: 121
A73: 2021-FAKT-006072-00 | B73: 2021/12/25 | C73: 11019458 | D73: 87.75 | E73: 6594 | F73: BERDIN,S.L. | G73: CABLE GENLIS CPR HO7V-K (ALB 40085255) | H73: 17 2021-99-005381-000 | I73: 12 2021-004636-005 | J73: 1 0800.212.165.00.00 2021 | K73: 2021/12/27 | L73: 2021/12/30 | M73: 2021/12/30 | O73: 3 | P73: 1 | Q73: 4 | R73: -26 | S73: 21 | T73: 87.75 | U73: -2281.5 | V73: 121
A74: 2021-FAKT-006069-00 | B74: 2021/12/27 | C74: 4604/2021 | D74: 288.22 | E74: 11464 | F74: NORTRAFIC | G74: MANTENIMIENTO INSTALACIONES SEMAFORICAS DICIEMBRE 2021 | H74: 17 2021-99-005379-000 | I74: 12 2021-004636-003 | J74: 1 0808.212.133.10.00 2021 | K74: 2021/12/27 | L74: 2021/12/29 | M74: 2021/12/30 | O74: 3 | P74: 1 | Q74: 4 | R74: -26 | S74: 21 | T74: 288.22 | U74: -7493.72 | V74: 121
A75: 2021-FAKT-006066-00 | B75: 2021/12/27 | C75: 2960036132 | D75: 697.04 | E75: 7494 | F75: TK ELEVADORES ESPAÑA S.L.U | G75: BIZKAIA ETORBIDEAN (2021/11/25) ETA OTALORA LIZ (2021/12/15)-EN EGIDAKO LANAK | H75: 17 2021-99-005487-002 | I75: 12 2021-004643-007 | J75: 1 0812.211.134.00.00 2021 | K75: 2021/12/27 | L75: 2021/12/31 | M75: 2021/12/31 | O75: 4 | P75: 0 | Q75: 4 | R75: -26 | S75: 21 | T75: 0 | U75: -18123.04 | V75: 121
A76: 2021-FAKT-006066-00 | B76: 2021/12/27 | C76: 2960036132 | D76: 186.34 | E76: 7494 | F76: TK ELEVADORES ESPAÑA S.L.U | G76: BIZKAIA ETORBIDEAN (2021/11/25) ETA OTALORA LIZ (2021/12/15)-EN EGIDAKO LANAK | H76: 17 2021-99-005487-001 | I76: 12 2021-004643-006 | J76: 1 0811.211.134.00.00 2021 | K76: 2021/12/27 | L76: 2021/12/31 | M76: 2021/12/31 | O76: 4 | P76: 0 | Q76: 4 | R76: -26 | S76: 21 | T76: 0 | U76: -4844.84 | V76: 121
A77: 2021-FAKT-006064-00 | B77: 2021/12/27 | C77: 1 | D77: 101.64 | E77: 3877 | F77: JUBAR ATEAK, S.L. | G77: ALBARAN A-211022 FECHA 10/12/2021S 09015RESETEAR CUADRO DE MANIOBRAS Y PUESTA E | H77: 17 2021-99-005486-000 | I77: 12 2021-004643-005 | J77: 1 0804.211.153.40.00 2021 | K77: 2021/12/27 | L77: 2021/12/31 | M77: 2021/12/31 | O77: 4 | P77: 0 | Q77: 4 | R77: -26 | S77: 21 | T77: 0 | U77: -2642.64 | V77: 121
A78: 2021-FAKT-006070-00 | B78: 2021/12/27 | C78: 4603/2021 | D78: 229.8 | E78: 11464 | F78: NORTRAFIC | G78: MANTENIMIENTO CONTROL ACCESOS DICIEMBRE 2021 | H78: 17 2021-99-005488-000 | I78: 12 2021-004643-008 | J78: 1 0800.210.153.30.00 2021 | K78: 2021/12/27 | L78: 2021/12/31 | M78: 2021/12/31 | O78: 4 | P78: 0 | Q78: 4 | R78: -26 | S78: 21 | T78: 0 | U78: -5974.8 | V78: 121
A79: 2022-FAKT-000378-00 | B79: 2021/12/27 | C79: 7030012768 | D79: 2734.6 | E79: 146 | F79: ELSTER MEDICION, S.A.U. | G79: M120I 6,3 160 11/4" 260 S | H79: 17 2021-99-006142-000 | I79: 12 2021-004784-041 | J79: 1 0805.212.161.00.00 2021 | K79: 2022/01/14 | L79: 2021/12/31 | M79: 2021/12/31 | O79: 0 | P79: 0 | Q79: 0 | R79: -30 | S79: 21 | T79: 0 | U79: -82038 | V79: 121
A80: 2022-FAKT-000296-00 | B80: 2021/12/27 | C80: 118/21 | D80: 7999.09 | E80: 2245 | F80: EXCAVACIONES ARRASATE, S.L. | G80: SUJECION DE PISTA EN ANDRAMARIZURI. | H80: 17 2021-99-006130-000 | I80: 12 2021-004784-038 | J80: 1 0812.210.454.00.00 2021 | K80: 2022/01/11 | L80: 2021/12/31 | M80: 2021/12/31 | O80: 0 | P80: 0 | Q80: 0 | R80: -30 | S80: 21 | T80: 0 | U80: -239972.7 | V80: 121
A81: 2021-FAKT-006160-00 | B81: 2021/12/28 | C81: 17052 | D81: 161.59 | E81: 4392 | F81: GIDECOLOR S.L.L. | G81: BILTEGIRAKO MATERIALA. | H81: 17 2021-99-005497-000 | I81: 12 2021-004643-026 | J81: 1 0800.210.153.30.00 2021 | K81: 2021/12/30 | L81: 2021/12/31 | M81: 2021/12/31 | O81: 1 | P81: 0 | Q81: 1 | R81: -29 | S81: 21 | T81: 0 | U81: -4686.11 | V81: 121
A82: 2021-FAKT-006116-00 | B82: 2021/12/28 | C82: 59 | D82: 190.01 | E82: 57 | F82: CRISTALERIA ERRASTI | G82: ALBARAN Nº 450REF.KIROLDEGIA | H82: 17 2021-99-006074-000 | I82: 12 2021-004738-007 | J82: 1 1200.211.342.10.00 2021 | K82: 2021/12/28 | L82: 2021/12/31 | M82: 2021/12/31 | O82: 3 | P82: 0 | Q82: 3 | R82: -27 | S82: 21 | T82: 0 | U82: -5130.27 | V82: 121
A83: 2022-FAKT-000081-00 | B83: 2021/12/29 | C83: 2121122903002476 | D83: 34.51 | E83: 12685 | F83: IBERDROLA CLIENTES SAU | G83: FACTURA DE ELECTRICIDAD CON GARANTIA DE ORIGEN 2021-10-31 2021-11-30 AGUAS - ML | H83: 17 2021-99-006377-000 | I83: 12 2021-004795-198 | J83: 1 0805.210.161.00.00 2021 | K83: 2022/01/03 | L83: 2021/12/31 | M83: 2021/12/31 | O83: 0 | P83: 0 | Q83: 0 | R83: -30 | S83: 21 | T83: 0 | U83: -1035.3 | V83: 121
A84: 2022-FAKT-000014-00 | B84: 2021/12/29 | C84: 2121122903002588 | D84: 3.96 | E84: 12685 | F84: IBERDROLA CLIENTES SAU | G84: FACTURA DE ELECTRICIDAD CON GARANTIA DE ORIGEN 2021-08-25 2021-09-21 AGUAS - ML | H84: 17 2021-99-006373-000 | I84: 12 2021-004795-194 | J84: 1 0805.210.161.00.00 2021 | K84: 2022/01/03 | L84: 2021/12/31 | M84: 2021/12/31 | O84: 0 | P84: 0 | Q84: 0 | R84: -30 | S84: 21 | T84: 0 | U84: -118.8 | V84: 121
A85: 2022-FAKT-000104-00 | B85: 2021/12/29 | C85: 2121122903000065 | D85: 73.35 | E85: 12685 | F85: IBERDROLA CLIENTES SAU | G85: FACTURA DE ELECTRICIDAD CON GARANTIA DE ORIGEN 2021-11-09 2021-11-30 AGUAS - ML | H85: 17 2021-99-006388-000 | I85: 12 2021-004795-209 | J85: 1 0805.210.161.00.00 2021 | K85: 2022/01/03 | L85: 2021/12/31 | M85: 2021/12/31 | O85: 0 | P85: 0 | Q85: 0 | R85: -30 | S85: 21 | T85: 0 | U85: -2200.5 | V85: 121
A86: 2022-FAKT-000108-00 | B86: 2021/12/29 | C86: 2121122903002588 | D86: 3.59 | E86: 12685 | F86: IBERDROLA CLIENTES SAU | G86: FACTURA DE ELECTRICIDAD CON GARANTIA DE ORIGEN 2021-10-25 2021-11-25 AGUAS - ML | H86: 17 2021-99-006380-000 | I86: 12 2021-004795-201 | J86: 1 0805.210.161.00.00 2021 | K86: 2022/01/03 | L86: 2021/12/31 | M86: 2021/12/31 | O86: 0 | P86: 0 | Q86: 0 | R86: -30 | S86: 21 | T86: 0 | U86: -107.7 | V86: 121
A87: 2022-FAKT-000052-00 | B87: 2021/12/29 | C87: 2121122903002379 | D87: 11.29 | E87: 12685 | F87: IBERDROLA CLIENTES SAU | G87: FACTURA DE ELECTRICIDAD CON GARANTIA DE ORIGEN 2021-11-23 2021-12-21 AGUAS - ML | H87: 17 2021-99-006374-000 | I87: 12 2021-004795-195 | J87: 1 0805.210.161.00.00 2021 | K87: 2022/01/03 | L87: 2021/12/31 | M87: 2021/12/31 | O87: 0 | P87: 0 | Q87: 0 | R87: -30 | S87: 21 | T87: 0 | U87: -338.7 | V87: 121
A88: 2022-FAKT-000024-00 | B88: 2021/12/29 | C88: 2121122903000092 | D88: 65.52 | E88: 12685 | F88: IBERDROLA CLIENTES SAU | G88: FACTURA DE ELECTRICIDAD CON GARANTIA DE ORIGEN 2021-11-09 2021-11-30 AGUAS - ML | H88: 17 2021-99-006385-000 | I88: 12 2021-004795-206 | J88: 1 0805.210.161.00.00 2021 | K88: 2022/01/03 | L88: 2021/12/31 | M88: 2021/12/31 | O88: 0 | P88: 0 | Q88: 0 | R88: -30 | S88: 21 | T88: 0 | U88: -1965.6 | V88: 121
A89: 2022-FAKT-000011-00 | B89: 2021/12/29 | C89: 2121122903002588 | D89: 3.91 | E89: 12685 | F89: IBERDROLA CLIENTES SAU | G89: FACTURA DE ELECTRICIDAD CON GARANTIA DE ORIGEN 2021-09-21 2021-10-25 AGUAS - ML | H89: 17 2021-99-006372-000 | I89: 12 2021-004795-193 | J89: 1 0805.210.161.00.00 2021 | K89: 2022/01/03 | L89: 2021/12/31 | M89: 2021/12/31 | O89: 0 | P89: 0 | Q89: 0 | R89: -30 | S89: 21 | T89: 0 | U89: -117.3 | V89: 121
A90: 2022-FAKT-000026-00 | B90: 2021/12/29 | C90: 2121122903002466 | D90: 582.65 | E90: 12685 | F90: IBERDROLA CLIENTES SAU | G90: FACTURA DE ELECTRICIDAD CON GARANTIA DE ORIGEN 2021-10-31 2021-11-30 AGUAS - ML | H90: 17 2021-99-006383-000 | I90: 12 2021-004795-204 | J90: 1 0805.210.161.00.00 2021 | K90: 2022/01/03 | L90: 2021/12/31 | M90: 2021/12/31 | O90: 0 | P90: 0 | Q90: 0 | R90: -30 | S90: 21 | T90: 0 | U90: -17479.5 | V90: 121
A91: 2022-FAKT-000031-00 | B91: 2021/12/29 | C91: 2121122903000907 | D91: 31.81 | E91: 12685 | F91: IBERDROLA CLIENTES SAU | G91: FACTURA DE ELECTRICIDAD CON GARANTIA DE ORIGEN 2021-09-30 2021-10-31 AGUAS - ML | H91: 17 2021-99-006384-000 | I91: 12 2021-004795-205 | J91: 1 0805.210.161.00.00 2021 | K91: 2022/01/03 | L91: 2021/12/31 | M91: 2021/12/31 | O91: 0 | P91: 0 | Q91: 0 | R91: -30 | S91: 21 | T91: 0 | U91: -954.3 | V91: 121
A92: 2022-FAKT-000112-00 | B92: 2021/12/29 | C92: 2121122903000907 | D92: 35.11 | E92: 12685 | F92: IBERDROLA CLIENTES SAU | G92: FACTURA DE ELECTRICIDAD CON GARANTIA DE ORIGEN 2021-08-31 2021-09-30 AGUAS - ML | H92: 17 2021-99-006389-000 | I92: 12 2021-004795-210 | J92: 1 0805.210.161.00.00 2021 | K92: 2022/01/03 | L92: 2021/12/31 | M92: 2021/12/31 | O92: 0 | P92: 0 | Q92: 0 | R92: -30 | S92: 21 | T92: 0 | U92: -1053.3 | V92: 121
A93: 2022-FAKT-000083-00 | B93: 2021/12/29 | C93: 2121122903002545 | D93: 31.1 | E93: 12685 | F93: IBERDROLA CLIENTES SAU | G93: FACTURA DE ELECTRICIDAD CON GARANTIA DE ORIGEN 2021-11-24 2021-12-22 AGUAS - ML | H93: 17 2021-99-006378-000 | I93: 12 2021-004795-199 | J93: 1 0805.210.161.00.00 2021 | K93: 2022/01/03 | L93: 2021/12/31 | M93: 2021/12/31 | O93: 0 | P93: 0 | Q93: 0 | R93: -30 | S93: 21 | T93: 0 | U93: -933 | V93: 121
A94: 2022-FAKT-000009-00 | B94: 2021/12/29 | C94: 2121122903002476 | D94: 35.11 | E94: 12685 | F94: IBERDROLA CLIENTES SAU | G94: FACTURA DE ELECTRICIDAD CON GARANTIA DE ORIGEN 2021-09-30 2021-10-31 AGUAS - ML | H94: 17 2021-99-006371-000 | I94: 12 2021-004795-192 | J94: 1 0805.210.161.00.00 2021 | K94: 2022/01/03 | L94: 2021/12/31 | M94: 2021/12/31 | O94: 0 | P94: 0 | Q94: 0 | R94: -30 | S94: 21 | T94: 0 | U94: -1053.3 | V94: 121
A95: 2022-FAKT-000090-00 | B95: 2021/12/29 | C95: 2121122903002373 | D95: 23.45 | E95: 12685 | F95: IBERDROLA CLIENTES SAU | G95: FACTURA DE ELECTRICIDAD CON GARANTIA DE ORIGEN 2021-11-24 2021-12-22 AGUAS - ML | H95: 17 2021-99-006379-000 | I95: 12 2021-004795-200 | J95: 1 0805.210.161.00.00 2021 | K95: 2022/01/03 | L95: 2021/12/31 | M95: 2021/12/31 | O95: 0 | P95: 0 | Q95: 0 | R95: -30 | S95: 21 | T95: 0 | U95: -703.5 | V95: 121
A96: 2022-FAKT-000038-00 | B96: 2021/12/29 | C96: 2121122903002623 | D96: 11.86 | E96: 12685 | F96: IBERDROLA CLIENTES SAU | G96: FACTURA DE ELECTRICIDAD CON GARANTIA DE ORIGEN 2021-11-24 2021-12-22 AGUAS - ML | H96: 17 2021-99-006375-000 | I96: 12 2021-004795-196 | J96: 1 0805.210.161.00.00 2021 | K96: 2022/01/03 | L96: 2021/12/31 | M96: 2021/12/31 | O96: 0 | P96: 0 | Q96: 0 | R96: -30 | S96: 21 | T96: 0 | U96: -355.8 | V96: 121
A97: 2022-FAKT-000068-00 | B97: 2021/12/29 | C97: 2121122903000067 | D97: 121.56 | E97: 12685 | F97: IBERDROLA CLIENTES SAU | G97: FACTURA DE ELECTRICIDAD CON GARANTIA DE ORIGEN 2021-11-24 2021-12-21 AGUAS - ML | H97: 17 2021-99-006382-000 | I97: 12 2021-004795-203 | J97: 1 0805.210.161.00.00 2021 | K97: 2022/01/03 | L97: 2021/12/31 | M97: 2021/12/31 | O97: 0 | P97: 0 | Q97: 0 | R97: -30 | S97: 21 | T97: 0 | U97: -3646.8 | V97: 121
A98: 2022-FAKT-000004-00 | B98: 2021/12/29 | C98: 2121122903002476 | D98: 41.48 | E98: 12685 | F98: IBERDROLA CLIENTES SAU | G98: FACTURA DE ELECTRICIDAD CON GARANTIA DE ORIGEN 2021-08-31 2021-09-30 AGUAS - ML | H98: 17 2021-99-006370-000 | I98: 12 2021-004795-191 | J98: 1 0805.210.161.00.00 2021 | K98: 2022/01/03 | L98: 2021/12/31 | M98: 2021/12/31 | O98: 0 | P98: 0 | Q98: 0 | R98: -30 | S98: 21 | T98: 0 | U98: -1244.4 | V98: 121
A99: 2022-FAKT-000046-00 | B99: 2021/12/29 | C99: 2121122903000055 | D99: 38.42 | E99: 12685 | F99: IBERDROLA CLIENTES SAU | G99: FACTURA DE ELECTRICIDAD CON GARANTIA DE ORIGEN 2021-11-24 2021-12-22 AGUAS - ML | H99: 17 2021-99-006387-000 | I99: 12 2021-004795-208 | J99: 1 0805.210.161.00.00 2021 | K99: 2022/01/03 | L99: 2021/12/31 | M99: 2021/12/31 | O99: 0 | P99: 0 | Q99: 0 | R99: -30 | S99: 21 | T99: 0 | U99: -1152.6 | V99: 121
A100: 2022-FAKT-000080-00 | B100: 2021/12/29 | C100: 2121122903002508 | D100: 56.31 | E100: 12685 | F100: IBERDROLA CLIENTES SAU | G100: FACTURA DE ELECTRICIDAD CON GARANTIA DE ORIGEN 2021-11-23 2021-12-26 AGUAS - ML | H100: 17 2021-99-006376-000 | I100: 12 2021-004795-197 | J100: 1 0805.210.161.00.00 2021 | K100: 2022/01/03 | L100: 2021/12/31 | M100: 2021/12/31 | O100: 0 | P100: 0 | Q100: 0 | R100: -30 | S100: 21 | T100: 0 | U100: -1689.3 | V100: 121
A101: 2022-FAKT-000040-00 | B101: 2021/12/29 | C101: 2121122903000076 | D101: 157.35 | E101: 12685 | F101: IBERDROLA CLIENTES SAU | G101: FACTURA DE ELECTRICIDAD CON GARANTIA DE ORIGEN 2021-11-24 2021-12-22 AGUAS - ML | H101: 17 2021-99-006386-000 | I101: 12 2021-004795-207 | J101: 1 0805.210.161.00.00 2021 | K101: 2022/01/03 | L101: 2021/12/31 | M101: 2021/12/31 | O101: 0 | P101: 0 | Q101: 0 | R101: -30 | S101: 21 | T101: 0 | U101: -4720.5 | V101: 121
A102: 2022-FAKT-000093-00 | B102: 2021/12/29 | C102: 2121122903000907 | D102: 31.97 | E102: 12685 | F102: IBERDROLA CLIENTES SAU | G102: FACTURA DE ELECTRICIDAD CON GARANTIA DE ORIGEN 2021-10-31 2021-11-30 AGUAS - ML | H102: 17 2021-99-006381-000 | I102: 12 2021-004795-202 | J102: 1 0805.210.161.00.00 2021 | K102: 2022/01/03 | L102: 2021/12/31 | M102: 2021/12/31 | O102: 0 | P102: 0 | Q102: 0 | R102: -30 | S102: 21 | T102: 0 | U102: -959.1 | V102: 121
A103: 2021-FAKT-006183-00 | B103: 2021/12/30 | C103: 5669 | D103: 122.82 | E103: 8696 | F103: EGIA ANAIAK S.L. | G103: ELEKTROBALBULA JARRI ETA PROBAK REF: EUSKALTEGI - ARIMAZURI 1 | H103: 17 2021-99-006030-000 | I103: 12 2021-004709-020 | J103: 1 0211.211.335.10.00 2021 | K103: 2022/01/03 | L103: 2021/12/31 | M103: 2021/12/31 | O103: 0 | P103: 0 | Q103: 0 | R103: -30 | S103: 21 | T103: 0 | U103: -3684.6 | V103: 121
A104: 2021-FAKT-006184-00 | B104: 2021/12/30 | C104: 5670 | D104: 169.4 | E104: 8696 | F104: EGIA ANAIAK S.L. | G104: FREGADERO INOX ALBARAN Nº 306 FECHA: 18/10/2021REF: KULTURATE | H104: 17 2021-99-006031-000 | I104: 12 2021-004709-021 | J104: 1 0201.211.332.10.00 2021 | K104: 2022/01/03 | L104: 2021/12/31 | M104: 2021/12/31 | O104: 0 | P104: 0 | Q104: 0 | R104: -30 | S104: 21 | T104: 0 | U104: -5082 | V104: 121
A105: 2021-FAKT-006158-00 | B105: 2021/12/30 | C105: 1137/2021 | D105: 239.99 | E105: 644 | F105: AUTO ELECTRICIDAD SAN ANDRES, S.L. | G105: CAMBIAR CUBIERTAS Y ALINEAR (TOYOTA HILUX 2825-HMX) | H105: 17 2021-99-005496-000 | I105: 12 2021-004643-025 | J105: 1 0805.213.161.00.00 2021 | K105: 2021/12/30 | L105: 2021/12/31 | M105: 2021/12/31 | O105: 1 | P105: 0 | Q105: 1 | R105: -29 | S105: 21 | T105: 0 | U105: -6959.71 | V105: 121
A106: 2021-FAKT-006164-00 | B106: 2021/12/30 | C106: 2021/50/213608 | D106: 4525.4 | E106: 929 | F106: LKS S.COOP. | G106: 21802453 - ARRASATEKO UDALA (KORREO ELEKTRONIKOAREN MANTENU ZERBITZUA) | H106: 17 2021-99-006000-000 | I106: 12 2021-004735-047 | J106: 1 0600.215.920.00.00 2021 | K106: 2021/12/30 | L106: 2021/12/31 | M106: 2021/12/31 | O106: 1 | P106: 0 | Q106: 1 | R106: -29 | S106: 21 | T106: 0 | U106: -131236.6 | V106: 121
B107: 2021/12/30 | C107: 9003303589 | D107: 59.29 | E107: 7494 | F107: TK ELEVADORES ESPAÑA S.L.U | G107: EMAKUME TXOKOA ED.MULTIUSOS -IGOGAILUAREN MANTENIMENDUA ABENDUA | H107: 17 2021-99-005499-018 | I107: 12 2021-004735-026 | J107: 1 0413.211.337.23.00 2021 | L107: 2021/12/31 | M107: 2021/12/31 | O107: 0 | P107: 0 | Q107: 0 | R107: -30 | S107: 21 | T107: 0 | U107: -1778.7 | V107: 121
B108: 2021/12/30 | C108: 9003303589 | D108: 59.29 | E108: 7494 | F108: TK ELEVADORES ESPAÑA S.L.U | G108: KIROLDEGIA - IGOGAILUAREN MANTENIMENDUA ABENDUA | H108: 17 2021-99-005499-016 | I108: 12 2021-004735-024 | J108: 1 1200.212.342.10.00 2021 | L108: 2021/12/31 | M108: 2021/12/31 | O108: 0 | P108: 0 | Q108: 0 | R108: -30 | S108: 21 | T108: 0 | U108: -1778.7 | V108: 121
B109: 2021/12/30 | C109: 9003303589 | D109: 59.29 | E109: 7494 | F109: TK ELEVADORES ESPAÑA S.L.U | G109: UARKAPE - IGOGAILUAREN MANTENIMENDUA ABENDUA | H109: 17 2021-99-005499-015 | I109: 12 2021-004735-023 | J109: 1 1200.212.342.10.00 2021 | L109: 2021/12/31 | M109: 2021/12/31 | O109: 0 | P109: 0 | Q109: 0 | R109: -30 | S109: 21 | T109: 0 | U109: -1778.7 | V109: 121
A110: 2021-FAKT-006185-00 | B110: 2021/12/30 | C110: 5671 | D110: 275.94 | E110: 8696 | F110: EGIA ANAIAK S.L. | G110: REF: HUERTAS GARAGARTZAREPARAR FUGAS Y CAMBIAR FLOTADORES | H110: 17 2021-99-006086-000 | I110: 12 2021-004738-020 | J110: 1 0514.211.172.30.00 2021 | K110: 2022/01/03 | L110: 2021/12/31 | M110: 2021/12/31 | O110: 0 | P110: 0 | Q110: 0 | R110: -30 | S110: 21 | T110: 0 | U110: -8278.2 | V110: 121
A111: 2021-FAKT-006186-00 | B111: 2021/12/30 | C111: 5672 | D111: 560 | E111: 8696 | F111: EGIA ANAIAK S.L. | G111: REF: HERRI ESKOLA - ERGUININSTALACION DE GAS PARA CALDERA | H111: 17 2021-99-006032-000 | I111: 12 2021-004709-022 | J111: 1 0901.211.323.00.00 2021 | K111: 2022/01/03 | L111: 2021/12/31 | M111: 2021/12/31 | O111: 0 | P111: 0 | Q111: 0 | R111: -30 | S111: 21 | T111: 0 | U111: -16800 | V111: 121
A112: 2022-FAKT-000298-00 | B112: 2021/12/31 | C112: 10422 | D112: 45.32 | E112: 5267 | F112: ALDEDI | G112: MATERIALA | H112: 17 2021-99-006147-004 | I112: 12 2021-004773-012 | J112: 1 0800.211.920.00.00 2021 | K112: 2022/01/11 | L112: 2021/12/31 | M112: 2021/12/31 | O112: 0 | P112: 0 | Q112: 0 | R112: -30 | S112: 21 | T112: 0 | U112: -1359.6 | V112: 121
A113: 2021-FAKT-006176-00 | B113: 2021/12/31 | C113: 5603201675 | D113: 11283.44 | E113: 6816 | F113: CESPA,CIA ESPAÑOLA DE SERV.PUBLIC.AUXILI | G113: SUMINISTRO DEL NUEVO ARBOLADO. COD. EXP.: 2021ZZER0193 DE FECHA 17/12/2021 | H113: 17 2021-99-005506-000 | I113: 12 2021-004735-035 | J113: 1 0809.210.171.00.00 2021 | K113: 2021/12/31 | L113: 2021/12/31 | M113: 2021/12/31 | O113: 0 | P113: 0 | Q113: 0 | R113: -30 | S113: 21 | T113: 0 | U113: -338503.2 | V113: 121
A114: 2022-FAKT-000248-00 | B114: 2021/12/31 | C114: 11019594 | D114: 72.56 | E114: 6594 | F114: BERDIN,S.L. | G114: LAMP COMP NO INTELG PHILOPES (ALB 40085465) | H114: 17 2021-99-005517-000 | I114: 12 2021-004680-007 | J114: 1 0104.211.132.00.00 2021 | K114: 2022/01/03 | L114: 2021/12/31 | M114: 2021/12/31 | O114: 0 | P114: 0 | Q114: 0 | R114: -30 | S114: 21 | T114: 0 | U114: -2176.8 | V114: 121
A115: 2022-FAKT-000298-00 | B115: 2021/12/31 | C115: 10422 | D115: 283.73 | E115: 5267 | F115: ALDEDI | G115: MATERIALA | H115: 17 2021-99-006147-003 | I115: 12 2021-004773-011 | J115: 1 0413.211.337.23.00 2021 | K115: 2022/01/11 | L115: 2021/12/31 | M115: 2021/12/31 | O115: 0 | P115: 0 | Q115: 0 | R115: -30 | S115: 21 | T115: 0 | U115: -8511.9 | V115: 121
A116: 2022-FAKT-000391-00 | B116: 2021/12/31 | C116: 1472 | D116: 3267 | E116: 17628 | F116: HODI GARBI DESATASCOS SL | G116: REPARACION DE TUBERIA SANITARIA SIN APERTURA DE ZANJA | H116: 17 2021-99-006159-000 | I116: 12 2021-004784-073 | J116: 1 0805.210.161.00.00 2021 | K116: 2022/01/14 | L116: 2021/12/31 | M116: 2021/12/31 | O116: 0 | P116: 0 | Q116: 0 | R116: -30 | S116: 21 | T116: 0 | U116: -98010 | V116: 121
A117: 2022-FAKT-000298-00 | B117: 2021/12/31 | C117: 10422 | D117: 67.01 | E117: 5267 | F117: ALDEDI | G117: MATERIALA | H117: 17 2021-99-006147-005 | I117: 12 2021-004773-013 | J117: 1 0902.211.323.00.00 2021 | K117: 2022/01/11 | L117: 2021/12/31 | M117: 2021/12/31 | O117: 0 | P117: 0 | Q117: 0 | R117: -30 | S117: 21 | T117: 0 | U117: -2010.3 | V117: 121
A118: 2021-FAKT-006177-00 | B118: 2021/12/31 | C118: 5603201676 | D118: 4371.13 | E118: 6816 | F118: CESPA,CIA ESPAÑOLA DE SERV.PUBLIC.AUXILI | G118: SUMINISTROS VARIOS POR COMPENSACIONES. COD. EXP.: 2016CHOZ0020 CON FECHA 17/12/ | H118: 17 2021-99-005507-000 | I118: 12 2021-004735-036 | J118: 1 0809.210.171.00.00 2021 | K118: 2021/12/31 | L118: 2021/12/31 | M118: 2021/12/31 | O118: 0 | P118: 0 | Q118: 0 | R118: -30 | S118: 21 | T118: 0 | U118: -131133.9 | V118: 121
A119: 2022-FAKT-000303-00 | B119: 2021/12/31 | C119: 10429 | D119: 39.88 | E119: 5267 | F119: ALDEDI | G119: MATERIALA | H119: 17 2021-99-006166-000 | I119: 12 2021-004773-025 | J119: 1 0400.211.230.00.00 2021 | K119: 2022/01/11 | L119: 2021/12/31 | M119: 2021/12/31 | O119: 0 | P119: 0 | Q119: 0 | R119: -30 | S119: 21 | T119: 0 | U119: -1196.4 | V119: 121
A120: 2021-FAKT-006178-00 | B120: 2021/12/31 | C120: 5603201677 | D120: 2451.47 | E120: 6816 | F120: CESPA,CIA ESPAÑOLA DE SERV.PUBLIC.AUXILI | G120: ALQUILER DE UNA PLATAFORMA ELEVADORA PARA REALIZAR TRABAJADOS EN ALTURA. COD. | H120: 17 2021-99-005508-000 | I120: 12 2021-004735-037 | J120: 1 0809.210.171.00.00 2021 | K120: 2021/12/31 | L120: 2021/12/31 | M120: 2021/12/31 | O120: 0 | P120: 0 | Q120: 0 | R120: -30 | S120: 21 | T120: 0 | U120: -73544.1 | V120: 121
A121: 2022-FAKT-000298-00 | B121: 2021/12/31 | C121: 10422 | D121: 31.99 | E121: 5267 | F121: ALDEDI | G121: MATERIALA | H121: 17 2021-99-006147-006 | I121: 12 2021-004773-014 | J121: 1 0903.211.323.00.00 2021 | K121: 2022/01/11 | L121: 2021/12/31 | M121: 2021/12/31 | O121: 0 | P121: 0 | Q121: 0 | R121: -30 | S121: 21 | T121: 0 | U121: -959.7 | V121: 121
A122: 2022-FAKT-000301-00 | B122: 2021/12/31 | C122: 10427 | D122: 13.51 | E122: 5267 | F122: ALDEDI | G122: INGURUGIRO ESKOLARAKO MATERIALA | H122: 17 2021-99-006133-001 | I122: 12 2021-004763-021 | J122: 1 0906.211.172.20.00 2021 | K122: 2022/01/11 | L122: 2021/12/31 | M122: 2021/12/31 | O122: 0 | P122: 0 | Q122: 0 | R122: -30 | S122: 21 | T122: 0 | U122: -405.3 | V122: 121
A123: 2021-FAKT-006174-00 | B123: 2021/12/31 | C123: 5603201674 | D123: 842.35 | E123: 6816 | F123: CESPA,CIA ESPAÑOLA DE SERV.PUBLIC.AUXILI | G123: SUMINISTRO TEPES PRECULTIVADOS DE FLOR PARA JARDINERAS COLGANTES OTOÑO. | H123: 17 2021-99-005515-000 | I123: 12 2021-004680-005 | J123: 1 0809.210.171.00.00 2021 | K123: 2021/12/31 | L123: 2021/12/31 | M123: 2021/12/31 | O123: 0 | P123: 0 | Q123: 0 | R123: -30 | S123: 21 | T123: 0 | U123: -25270.5 | V123: 121
A124: 2022-FAKT-000358-00 | B124: 2021/12/31 | C124: 20213615 | D124: 1941.92 | E124: 6647 | F124: EDERRA, MORTEROS Y REVOCOS,S.L. | G124: EDMOR T-120 (ALB. 12105436) | H124: 17 2021-99-006139-000 | I124: 12 2021-004784-040 | J124: 1 0808.210.153.00.00 2021 | K124: 2022/01/13 | L124: 2021/12/31 | M124: 2021/12/31 | O124: 0 | P124: 0 | Q124: 0 | R124: -30 | S124: 21 | T124: 0 | U124: -58257.6 | V124: 121
A125: 2022-FAKT-000298-00 | B125: 2021/12/31 | C125: 10422 | D125: 22 | E125: 5267 | F125: ALDEDI | G125: MATERIALA | H125: 17 2021-99-006147-002 | I125: 12 2021-004773-010 | J125: 1 0405.211.231.40.00 2021 | K125: 2022/01/11 | L125: 2021/12/31 | M125: 2021/12/31 | O125: 0 | P125: 0 | Q125: 0 | R125: -30 | S125: 21 | T125: 0 | U125: -660 | V125: 121
A126: 2022-FAKT-000361-00 | B126: 2021/12/31 | C126: 584 | D126: 16.73 | E126: 2999 | F126: CANTERA SANJOSEPE BI, S.L. | G126: GRABILLA ETA HORMIGOI HONDARRA | H126: 17 2021-99-006140-000 | I126: 12 2021-004763-028 | J126: 1 0808.210.153.00.00 2021 | K126: 2022/01/13 | L126: 2021/12/31 | M126: 2021/12/31 | O126: 0 | P126: 0 | Q126: 0 | R126: -30 | S126: 21 | T126: 0 | U126: -501.9 | V126: 121
A127: 2022-FAKT-000263-00 | B127: 2021/12/31 | C127: 19A107-021-1461 | D127: 471.42 | E127: 4140 | F127: ONDOAN ENERGIA Y MEDIO AMBIENTE S.COOP | G127: SERVICIO DE SEGUIMIENTO Y CONTROL AMBIENTAL DEL VERTEDERO DE AKEI EN ARRASATE D | H127: 17 2021-99-006403-001 | I127: 12 2021-004792-000 | J127: 1 0512.210.172.10.01 2021 | K127: 2022/01/05 | L127: 2021/12/31 | M127: 2021/12/31 | O127: 0 | P127: 0 | Q127: 0 | R127: -30 | S127: 21 | T127: 0 | U127: -14142.6 | V127: 121
A128: 2022-FAKT-000263-00 | B128: 2021/12/31 | C128: 19A107-021-1461 | D128: 1885.66 | E128: 4140 | F128: ONDOAN ENERGIA Y MEDIO AMBIENTE S.COOP | G128: SERVICIO DE SEGUIMIENTO Y CONTROL AMBIENTAL DEL VERTEDERO DE AKEI EN ARRASATE D | H128: 17 2021-99-006403-002 | I128: 12 2021-004793-000 | J128: 1 0512.210.172.10.01 2021 | K128: 2022/01/05 | L128: 2021/12/31 | M128: 2021/12/31 | O128: 0 | P128: 0 | Q128: 0 | R128: -30 | S128: 21 | T128: 0 | U128: -56569.8 | V128: 121
A129: 2022-FAKT-000267-00 | B129: 2021/12/31 | C129: FV2115825 | D129: 5.86 | E129: 7113 | F129: SEIN BATU S.L. | G129: MATERIALA ALB 2168471 | H129: 17 2021-99-006163-000 | I129: 12 2021-004773-022 | J129: 1 1200.211.342.10.00 2021 | K129: 2022/01/05 | L129: 2021/12/31 | M129: 2021/12/31 | O129: 0 | P129: 0 | Q129: 0 | R129: -30 | S129: 21 | T129: 0 | U129: -175.8 | V129: 121
A130: 2022-FAKT-000298-00 | B130: 2021/12/31 | C130: 10422 | D130: 98.81 | E130: 5267 | F130: ALDEDI | G130: MATERIALA | H130: 17 2021-99-006147-001 | I130: 12 2021-004773-009 | J130: 1 0104.211.132.00.00 2021 | K130: 2022/01/11 | L130: 2021/12/31 | M130: 2021/12/31 | O130: 0 | P130: 0 | Q130: 0 | R130: -30 | S130: 21 | T130: 0 | U130: -2964.3 | V130: 121
A131: 2021-FAKT-006133-00 | B131: 2020/09/30 | C131: 201000137 | D131: 22.51 | E131: 10217 | F131: ELKAR GIPUZKOA XXI S.L. | G131: EUSKALTEGIKO EROSKETAK | H131: 17 2021-99-006076-000 | I131: 12 2021-004738-009 | J131: 1 0211.220.335.10.00 2021 | K131: 2021/12/29 | L131: 2021/12/31 | M131: 2021/12/31 | O131: 2 | P131: 0 | Q131: 2 | R131: -28 | S131: 22 | T131: 0 | U131: -630.28 | V131: 122
A132: 2021-FAKT-006000-00 | B132: 2020/12/03 | C132: 1200445813 | D132: 48.93 | E132: 248 | F132: SGAE-SOCIEDAD GRAL. DE AUTORES | G132: EGILE ESKUBIDEAK | H132: 17 2021-99-006160-000 | I132: 12 2021-004773-018 | J132: 1 1200.227.342.10.99 2021 | K132: 2021/12/21 | L132: 2021/12/31 | M132: 2021/12/31 | O132: 10 | P132: 0 | Q132: 10 | R132: -20 | S132: 22 | T132: 0 | U132: -978.6 | V132: =IF(P132>30,200+S132,100+S132) -> 122
A133: 2021-FAKT-000452-00 | B133: 2021/01/28 | C133: 2121012803001889 | D133: 37.39 | E133: 12685 | F133: IBERDROLA CLIENTES SAU | G133: FACTURA DE ELECTRICIDAD CON GARANTIA DE ORIGEN 2020-12-21 2021-01-24 SEMAFOROS | H133: 17 2021-99-000473-000 | I133: 12 2021-000427-149 | J133: 1 0800.221.165.00.01 2021 | K133: 2021/02/01 | L133: 2021/02/24 | M133: 2021/02/25 | O133: 24 | P133: 309 | Q133: 333 | R133: 303 | S133: 22 | T133: 11553.51 | U133: 11329.17 | V133: 222
A134: 2021-FAKT-000459-00 | B134: 2021/01/28 | C134: 2121012803001920 | D134: 21.07 | E134: 12685 | F134: IBERDROLA CLIENTES SAU | G134: FACTURA DE ELECTRICIDAD CON GARANTIA DE ORIGEN 2020-12-21 2021-01-24 SEMAFOROS | H134: 17 2021-99-000480-000 | I134: 12 2021-000427-156 | J134: 1 0800.221.165.00.01 2021 | K134: 2021/02/01 | L134: 2021/02/24 | M134: 2021/02/25 | O134: 24 | P134: 309 | Q134: 333 | R134: 303 | S134: 22 | T134: 6510.63 | U134: 6384.21 | V134: 222
A135: 2021-FAKT-006122-00 | B135: 2021/05/08 | C135: 134 | D135: 529.33 | E135: 14745 | F135: SUMUN EQUIPAMIENTOS SL | G135: ZAPATO FOX 3.0 | H135: 17 2021-99-006026-000 | I135: 12 2021-004709-016 | J135: 1 0104.221.132.00.05 2021 | K135: 2021/12/29 | L135: 2021/12/31 | M135: 2021/12/31 | O135: 2 | P135: 0 | Q135: 2 | R135: -28 | S135: 22 | T135: 0 | U135: -14821.24 | V135: 122
A136: 2021-FAKT-003633-00 | B136: 2021/07/29 | C136: 2121072903001441 | D136: 157.96 | E136: 12685 | F136: IBERDROLA CLIENTES SAU | G136: FACTURA DE ELECTRICIDAD CON GARANTIA DE ORIGEN 2021-06-23 2021-07-25 ALUMBRADO | H136: 17 2021-99-006149-000 | I136: 12 2021-004773-016 | J136: 1 0800.221.165.00.01 2021 | K136: 2021/08/02 | L136: 2021/12/31 | M136: 2021/12/31 | O136: 151 | P136: 0 | Q136: 151 | R136: 121 | S136: 22 | T136: 0 | U136: 19113.16 | V136: 122
A137: 2021-FAKT-003632-00 | B137: 2021/07/29 | C137: 2121072903001442 | D137: 102.58 | E137: 12685 | F137: IBERDROLA CLIENTES SAU | G137: FACTURA DE ELECTRICIDAD CON GARANTIA DE ORIGEN 2021-04-30 2021-05-31 ALUMBRADO | H137: 17 2021-99-006148-000 | I137: 12 2021-004773-015 | J137: 1 0800.221.165.00.01 2021 | K137: 2021/08/02 | L137: 2021/12/31 | M137: 2021/12/31 | O137: 151 | P137: 0 | Q137: 151 | R137: 121 | S137: 22 | T137: 0 | U137: 12412.18 | V137: 122
A138: 2021-FAKT-003634-00 | B138: 2021/07/29 | C138: 2121072903001451 | D138: 167.66 | E138: 12685 | F138: IBERDROLA CLIENTES SAU | G138: FACTURA DE ELECTRICIDAD CON GARANTIA DE ORIGEN 2021-06-23 2021-07-25 ALUMBRADO | H138: 17 2021-99-006150-000 | I138: 12 2021-004773-017 | J138: 1 0800.221.165.00.01 2021 | K138: 2021/08/02 | L138: 2021/12/31 | M138: 2021/12/31 | O138: 151 | P138: 0 | Q138: 151 | R138: 121 | S138: 22 | T138: 0 | U138: 20286.86 | V138: 122
A139: 2021-FAKT-004461-00 | B139: 2021/09/24 | C139: 2409 | D139: 37.26 | E139: 562 | F139: TTUKUN - AITOR ASTABURUAGA AIESTARAN | G139: KARTELAK | H139: 17 2021-99-004752-000 | I139: 12 2021-003921-001 | J139: 1 1330.226.231.50.00 2021 | K139: 2021/10/05 | L139: 2021/11/12 | M139: 2021/11/18 | O139: 44 | P139: 43 | Q139: 87 | R139: 57 | S139: 22 | T139: 1602.18 | U139: 2123.82 | V139: 222
A140: 2022-FAKT-000290-00 | B140: 2021/09/30 | C140: 334109 | D140: 79.96 | E140: 1060 | F140: SETALDE, S.A. | G140: OBRA:OTROS (TXAETA 3, 1ºA) | H140: 17 2021-99-006111-004 | I140: 12 2021-004763-006 | J140: 1 0804.221.153.40.00 2021 | K140: 2022/01/10 | L140: 2021/12/31 | M140: 2021/12/31 | O140: 0 | P140: 0 | Q140: 0 | R140: -30 | S140: 22 | T140: 0 | U140: -2398.8 | V140: 122
A141: 2022-FAKT-000366-00 | B141: 2021/10/29 | C141: k21/4872 | D141: 59.05 | E141: 10754 | F141: KUKUMA SL | G141: EUSKALTEGIKO EROSKETAK | H141: 17 2021-99-006114-000 | I141: 12 2021-004763-011 | J141: 1 0211.220.335.10.00 2021 | K141: 2022/01/13 | L141: 2021/12/31 | M141: 2021/12/31 | O141: 0 | P141: 0 | Q141: 0 | R141: -30 | S141: 22 | T141: 0 | U141: -1771.5 | V141: 122
A142: 2022-FAKT-000402-00 | B142: 2021/10/31 | C142: 20216425 | D142: 2508 | E142: 8063 | F142: CENTRO MEDICO UDALAITZ SA | G142: KONTSULTAK | H142: 17 2021-99-006176-000 | I142: 12 2021-004784-074 | J142: 1 0605.227.920.20.07 2021 | K142: 2022/01/17 | L142: 2021/12/31 | M142: 2021/12/31 | O142: 0 | P142: 0 | Q142: 0 | R142: -30 | S142: 22 | T142: 0 | U142: -75240 | V142: 122
A143: 2022-FAKT-000403-00 | B143: 2021/10/31 | C143: 20216426 | D143: 132 | E143: 8063 | F143: CENTRO MEDICO UDALAITZ SA | G143: KONTSULTAK | H143: 17 2021-99-006173-000 | I143: 12 2021-004783-004 | J143: 1 0605.227.920.20.07 2021 | K143: 2022/01/17 | L143: 2021/12/31 | M143: 2021/12/31 | O143: 0 | P143: 0 | Q143: 0 | R143: -30 | S143: 22 | T143: 0 | U143: -3960 | V143: 122
A144: 2021-FAKT-005141-00 | B144: 2021/11/06 | C144: 21NA135253 | D144: 71.18 | E144: 9932 | F144: BLINKER | G144: GUANTES, FILM ESTIRABLE | H144: 17 2021-99-006053-000 | I144: 12 2021-004738-001 | J144: 1 0804.221.153.40.11 2021 | K144: 2021/12/01 | L144: 2021/12/31 | M144: 2021/12/31 | O144: 30 | P144: 0 | Q144: 30 | R144: 0 | S144: 22 | T144: 0 | U144: 0 | V144: 122
A145: 2021-FAKT-006103-00 | B145: 2021/11/22 | C145: 14064 | D145: 23.9 | E145: 15306 | F145: MIKROS INFORMATIKA IRTENBIDEAK, S.L. | G145: ADAPTADOR USB WIFI | H145: 17 2021-99-006015-000 | I145: 12 2021-004709-006 | J145: 1 0201.221.332.10.00 2021 | K145: 2021/12/28 | L145: 2021/12/31 | M145: 2021/12/31 | O145: 3 | P145: 0 | Q145: 3 | R145: -27 | S145: 22 | T145: 0 | U145: -645.3 | V145: 122
A146: 2022-FAKT-000367-00 | B146: 2021/11/25 | C146: k21/5610 | D146: 119.89 | E146: 10754 | F146: KUKUMA SL | G146: EUSKALTEGIKO EROSKETAK | H146: 17 2021-99-006115-000 | I146: 12 2021-004763-012 | J146: 1 0211.220.335.10.00 2021 | K146: 2022/01/13 | L146: 2021/12/31 | M146: 2021/12/31 | O146: 0 | P146: 0 | Q146: 0 | R146: -30 | S146: 22 | T146: 0 | U146: -3596.7 | V146: 122
A147: 2021-FAKT-005924-00 | B147: 2021/11/25 | C147: 21/7264 | D147: 54.21 | E147: 5807 | F147: HOTZ-BERO SL | G147: MANTENUA EGITERAKOAN ORDEZKATUTAKO MATERIALAK-KORREA SPA 2240 (AMAIA ANTZOKIA) | H147: 17 2021-99-005371-001 | I147: 12 2021-004632-023 | J147: 1 0204.221.334.00.00 2021 | K147: 2021/12/16 | L147: 2021/12/29 | M147: 2021/12/29 | O147: 13 | P147: 2 | Q147: 15 | R147: -15 | S147: 22 | T147: 108.42 | U147: -813.15 | V147: 122
A148: 2021-FAKT-005924-00 | B148: 2021/11/25 | C148: 21/7264 | D148: 50.38 | E148: 5807 | F148: HOTZ-BERO SL | G148: MANTENUA EGITERAKOAN ORDEZKATUTAKO MATERIALAK-KORREA SPA 2240 (AMAIA ANTZOKIA) | H148: 17 2021-99-005371-002 | I148: 12 2021-004632-024 | J148: 1 0603.221.920.00.00 2021 | K148: 2021/12/16 | L148: 2021/12/29 | M148: 2021/12/29 | O148: 13 | P148: 2 | Q148: 15 | R148: -15 | S148: 22 | T148: 100.76 | U148: -755.7 | V148: 122
A149: 2021-FAKT-006104-00 | B149: 2021/11/26 | C149: 14085 | D149: 9.9 | E149: 15306 | F149: MIKROS INFORMATIKA IRTENBIDEAK, S.L. | G149: ADAPTADOR USB BLUETOOTH | H149: 17 2021-99-006016-000 | I149: 12 2021-004709-007 | J149: 1 0201.221.332.10.00 2021 | K149: 2021/12/28 | L149: 2021/12/31 | M149: 2021/12/31 | O149: 3 | P149: 0 | Q149: 3 | R149: -27 | S149: 22 | T149: 0 | U149: -267.3 | V149: 122
B150: 2021/11/30 | C150: 9003281792 | D150: 59.29 | E150: 7494 | F150: TK ELEVADORES ESPAÑA S.L.U | G150: UDALETXEA -IGOGAILUAREN MANTENIMENDUA AZAORA | H150: 17 2021-99-006144-006 | I150: 12 2021-004784-048 | J150: 1 0800.221.920.00.00 2021 | L150: 2021/12/31 | M150: 2021/12/31 | O150: 0 | P150: 0 | Q150: 0 | R150: -30 | S150: 22 | T150: 0 | U150: -1778.7 | V150: 122
A151: 2022-FAKT-000373-00 | B151: 2021/11/30 | C151: 9003281792 | D151: 29.66 | E151: 7494 | F151: TK ELEVADORES ESPAÑA S.L.U | G151: AMAIA ANTZOKIA - IGOGAILUAREN MANTENIMENDUA AZAROA | H151: 17 2021-99-006144-021 | I151: 12 2021-004784-063 | J151: 1 0204.221.334.00.00 2021 | K151: 2022/01/13 | L151: 2021/12/31 | M151: 2021/12/31 | O151: 0 | P151: 0 | Q151: 0 | R151: -30 | S151: 22 | T151: 0 | U151: -889.8 | V151: 122
A152: 2021-FAKT-005747-00 | B152: 2021/11/30 | C152: 4003263754 | D152: 8482.76 | E152: 5512 | F152: CORREOS Y TELEGRAFOS SA | G152: POSTA ZERBITZUA - AZAROA | H152: 17 2021-99-005036-000 | I152: 12 2021-004323-001 | J152: 1 0600.222.920.00.01 2021 | K152: 2021/12/03 | L152: 2021/12/13 | M152: 2021/12/16 | O152: 13 | P152: 15 | Q152: 28 | R152: -2 | S152: 22 | T152: 127241.4 | U152: -16965.52 | V152: 122
B153: 2021/11/30 | C153: 9003281792 | D153: 65.34 | E153: 7494 | F153: TK ELEVADORES ESPAÑA S.L.U | G153: FERIXALEKU-ALTAMIRA - IGOGAILURAN MANTENIMENDUA AZAORA | H153: 17 2021-99-006144-014 | I153: 12 2021-004784-056 | J153: 1 0812.221.134.00.00 2021 | L153: 2021/12/31 | M153: 2021/12/31 | O153: 0 | P153: 0 | Q153: 0 | R153: -30 | S153: 22 | T153: 0 | U153: -1960.2 | V153: 122
A154: 2022-FAKT-000373-00 | B154: 2021/11/30 | C154: 9003281792 | D154: 29.66 | E154: 7494 | F154: TK ELEVADORES ESPAÑA S.L.U | G154: ETXALUZE- IGOGAILUAREN MANTENIMENDUA AZAROA | H154: 17 2021-99-006144-020 | I154: 12 2021-004784-062 | J154: 1 0406.221.337.10.00 2021 | K154: 2022/01/13 | L154: 2021/12/31 | M154: 2021/12/31 | O154: 0 | P154: 0 | Q154: 0 | R154: -30 | S154: 22 | T154: 0 | U154: -889.8 | V154: 122
B155: 2021/11/30 | C155: 9003281792 | D155: 65.33 | E155: 7494 | F155: TK ELEVADORES ESPAÑA S.L.U | G155: ALTAMIRA-MAKATZENA - IGOGAILURAN MANTENIMENDUA AZAORA | H155: 17 2021-99-006144-015 | I155: 12 2021-004784-057 | J155: 1 0813.221.134.00.00 2021 | L155: 2021/12/31 | M155: 2021/12/31 | O155: 0 | P155: 0 | Q155: 0 | R155: -30 | S155: 22 | T155: 0 | U155: -1959.9 | V155: 122
A156: 2021-FAKT-006011-00 | B156: 2021/11/30 | C156: 8/2021 | D156: 306.68 | E156: 17019 | F156: ASOC. DE MUJERES INMIGRANTES MALEN ETXEA | G156: LAN ESKUBIDEAK ZAINTZAKO LANGILEENTZAT TALLERRA (2021/10/27 ETA 2021/11/27) 4 O | H156: 17 2021-99-005355-000 | I156: 12 2021-004632-012 | J156: 1 1330.226.231.50.00 2021 | K156: 2021/12/21 | L156: 2021/12/28 | M156: 2021/12/29 | O156: 8 | P156: 2 | Q156: 10 | R156: -20 | S156: 22 | T156: 613.36 | U156: -6133.6 | V156: 122
B157: 2021/11/30 | C157: 9003281792 | D157: 59.29 | E157: 7494 | F157: TK ELEVADORES ESPAÑA S.L.U | G157: KULTURATE - IGOGAILUAREN MANTENIMENDUA AZAORA | H157: 17 2021-99-006144-001 | I157: 12 2021-004784-043 | J157: 1 0201.221.332.10.00 2021 | L157: 2021/12/31 | M157: 2021/12/31 | O157: 0 | P157: 0 | Q157: 0 | R157: -30 | S157: 22 | T157: 0 | U157: -1778.7 | V157: 122
A158: 2022-FAKT-000279-00 | B158: 2021/11/30 | C158: 21488 | D158: 304.65 | E158: 13040 | F158: IZADI LABORATEGIA | G158: ANALISIS LEGIONELLA | H158: 17 2021-99-006165-000 | I158: 12 2021-004773-024 | J158: 1 1200.227.342.10.99 2021 | K158: 2022/01/05 | L158: 2021/12/31 | M158: 2021/12/31 | O158: 0 | P158: 0 | Q158: 0 | R158: -30 | S158: 22 | T158: 0 | U158: -9139.5 | V158: 122
B159: 2021/11/30 | C159: 9003281792 | D159: 59.29 | E159: 7494 | F159: TK ELEVADORES ESPAÑA S.L.U | G159: MUSAKOLA ESKOLA - IGOGAILUAREN MANTENIMENDUA AZAROA | H159: 17 2021-99-006144-016 | I159: 12 2021-004784-058 | J159: 1 0903.221.323.00.00 2021 | L159: 2021/12/31 | M159: 2021/12/31 | O159: 0 | P159: 0 | Q159: 0 | R159: -30 | S159: 22 | T159: 0 | U159: -1778.7 | V159: 122
B160: 2021/11/30 | C160: 9003281792 | D160: 59.29 | E160: 7494 | F160: TK ELEVADORES ESPAÑA S.L.U | G160: KULTURATE - IGOGAILUAREN MANTENIMENDUA AZAORA | H160: 17 2021-99-006144-002 | I160: 12 2021-004784-044 | J160: 1 0201.221.332.10.00 2021 | L160: 2021/12/31 | M160: 2021/12/31 | O160: 0 | P160: 0 | Q160: 0 | R160: -30 | S160: 22 | T160: 0 | U160: -1778.7 | V160: 122
B161: 2021/11/30 | C161: 9003281792 | D161: 59.29 | E161: 7494 | F161: TK ELEVADORES ESPAÑA S.L.U | G161: ERGUIN ESKOLA - IGOGAILUAREN MANTENIMENDUA AZAORA | H161: 17 2021-99-006144-009 | I161: 12 2021-004784-051 | J161: 1 0901.221.323.00.00 2021 | L161: 2021/12/31 | M161: 2021/12/31 | O161: 0 | P161: 0 | Q161: 0 | R161: -30 | S161: 22 | T161: 0 | U161: -1778.7 | V161: 122
A162: 2021-FAKT-006080-00 | B162: 2021/11/30 | C162: 211004436 | D162: 704.06 | E162: 4119 | F162: ARRIAGA MEGADENDA | G162: LIBURUTEGIRAKO EROSKETAK | H162: 17 2021-99-005384-000 | I162: 12 2021-004636-008 | J162: 1 0201.220.332.10.02 2021 | K162: 2021/12/27 | L162: 2021/12/30 | M162: 2021/12/30 | O162: 3 | P162: 1 | Q162: 4 | R162: -26 | S162: 22 | T162: 704.06 | U162: -18305.56 | V162: 122
A163: 2022-FAKT-000373-00 | B163: 2021/11/30 | C163: 9003281792 | D163: 29.66 | E163: 7494 | F163: TK ELEVADORES ESPAÑA S.L.U | G163: UDALTZAINGOA - IGOGAILUAREN MANTENIMENDUA AZAROA | H163: 17 2021-99-006144-017 | I163: 12 2021-004784-059 | J163: 1 0104.221.132.00.00 2021 | K163: 2022/01/13 | L163: 2021/12/31 | M163: 2021/12/31 | O163: 0 | P163: 0 | Q163: 0 | R163: -30 | S163: 22 | T163: 0 | U163: -889.8 | V163: 122
A164: 2021-FAKT-006079-00 | B164: 2021/11/30 | C164: 2610 | D164: 220.86 | E164: 5510 | F164: GARITANO LAMARAIN, AXEN | G164: AZAROKO TXAKURTEGIK ZERBITZUA | H164: 17 2021-99-005489-002 | I164: 12 2021-004643-010 | J164: 1 0800.227.311.00.00 2021 | K164: 2021/12/27 | L164: 2021/12/31 | M164: 2021/12/31 | O164: 4 | P164: 0 | Q164: 4 | R164: -26 | S164: 22 | T164: 0 | U164: -5742.36 | V164: 122
A165: 2022-FAKT-000373-00 | B165: 2021/11/30 | C165: 9003281792 | D165: 29.66 | E165: 7494 | F165: TK ELEVADORES ESPAÑA S.L.U | G165: UDAL BILTEGIA - IGOGAILUAREN MANTENIMENDUA AZAROA | H165: 17 2021-99-006144-018 | I165: 12 2021-004784-060 | J165: 1 0804.221.153.40.00 2021 | K165: 2022/01/13 | L165: 2021/12/31 | M165: 2021/12/31 | O165: 0 | P165: 0 | Q165: 0 | R165: -30 | S165: 22 | T165: 0 | U165: -889.8 | V165: 122
B166: 2021/11/30 | C166: 9003281792 | D166: 48.4 | E166: 7494 | F166: TK ELEVADORES ESPAÑA S.L.U | G166: ETXALUZE- IGOGAILUAREN MANTENIMENDUA AZAORA | H166: 17 2021-99-006144-008 | I166: 12 2021-004784-050 | J166: 1 0406.221.337.10.00 2021 | L166: 2021/12/31 | M166: 2021/12/31 | O166: 0 | P166: 0 | Q166: 0 | R166: -30 | S166: 22 | T166: 0 | U166: -1452 | V166: 122
B167: 2021/11/30 | C167: 9003281792 | D167: 59.29 | E167: 7494 | F167: TK ELEVADORES ESPAÑA S.L.U | G167: KULTURATE - IGOGAILUAREN MANTENIMENDUA AZAORA | H167: 17 2021-99-006144-003 | I167: 12 2021-004784-045 | J167: 1 0201.221.332.10.00 2021 | L167: 2021/12/31 | M167: 2021/12/31 | O167: 0 | P167: 0 | Q167: 0 | R167: -30 | S167: 22 | T167: 0 | U167: -1778.7 | V167: 122
A168: 2022-FAKT-000373-00 | B168: 2021/11/30 | C168: 9003281792 | D168: 29.66 | E168: 7494 | F168: TK ELEVADORES ESPAÑA S.L.U | G168: AMAIA ANTZOKIA - IGOGAILUAREN MANTENIMENDUA AZAROA | H168: 17 2021-99-006144-019 | I168: 12 2021-004784-061 | J168: 1 0204.221.334.00.00 2021 | K168: 2022/01/13 | L168: 2021/12/31 | M168: 2021/12/31 | O168: 0 | P168: 0 | Q168: 0 | R168: -30 | S168: 22 | T168: 0 | U168: -889.8 | V168: 122
A169: 2021-FAKT-006079-00 | B169: 2021/11/30 | C169: 2610 | D169: 653.4 | E169: 5510 | F169: GARITANO LAMARAIN, AXEN | G169: AZAROKO TXAKURTEGIK ZERBITZUA | H169: 17 2021-99-005489-001 | I169: 12 2021-004643-009 | J169: 1 0800.227.311.00.00 2021 | K169: 2021/12/27 | L169: 2021/12/31 | M169: 2021/12/31 | O169: 4 | P169: 0 | Q169: 4 | R169: -26 | S169: 22 | T169: 0 | U169: -16988.4 | V169: 122
B170: 2021/11/30 | C170: 9003281792 | D170: 59.29 | E170: 7494 | F170: TK ELEVADORES ESPAÑA S.L.U | G170: AZOKA- IGOGAILUAREN MANTENIMENDUA AZAORA | H170: 17 2021-99-006144-012 | I170: 12 2021-004784-054 | J170: 1 0801.221.431.20.00 2021 | L170: 2021/12/31 | M170: 2021/12/31 | O170: 0 | P170: 0 | Q170: 0 | R170: -30 | S170: 22 | T170: 0 | U170: -1778.7 | V170: 122
B171: 2021/11/30 | C171: 9003281792 | D171: 59.29 | E171: 7494 | F171: TK ELEVADORES ESPAÑA S.L.U | G171: AMAIA ANTZOKIA - IGOGAILUAREN MANTENIMENDUA AZAORA | H171: 17 2021-99-006144-007 | I171: 12 2021-004784-049 | J171: 1 0204.221.334.00.00 2021 | L171: 2021/12/31 | M171: 2021/12/31 | O171: 0 | P171: 0 | Q171: 0 | R171: -30 | S171: 22 | T171: 0 | U171: -1778.7 | V171: 122
A172: 2021-FAKT-005746-00 | B172: 2021/11/30 | C172: 4003272601 | D172: 246.84 | E172: 5512 | F172: CORREOS Y TELEGRAFOS SA | G172: BAKE EPAITEGIA- AZAROKO POSTA ZERBITZUA | H172: 17 2021-99-005140-000 | I172: 12 2021-004290-039 | J172: 1 0806.221.929.00.00 2021 | K172: 2021/12/03 | L172: 2021/12/15 | M172: 2021/12/15 | O172: 12 | P172: 16 | Q172: 28 | R172: -2 | S172: 22 | T172: 3949.44 | U172: -493.68 | V172: 122
B173: 2021/11/30 | C173: 9003281792 | D173: 59.29 | E173: 7494 | F173: TK ELEVADORES ESPAÑA S.L.U | G173: BEDOÑABE ESKOLA - IGOGAILUAREN MANTENIMENDUA AZAORA | H173: 17 2021-99-006144-004 | I173: 12 2021-004784-046 | J173: 1 0902.221.323.00.00 2021 | L173: 2021/12/31 | M173: 2021/12/31 | O173: 0 | P173: 0 | Q173: 0 | R173: -30 | S173: 22 | T173: 0 | U173: -1778.7 | V173: 122
A174: 2021-FAKT-006131-00 | B174: 2021/11/30 | C174: 211000220 | D174: 63.01 | E174: 10217 | F174: ELKAR GIPUZKOA XXI S.L. | G174: EUSKALTEGIKO EROSKETAK | H174: 17 2021-99-006075-000 | I174: 12 2021-004738-008 | J174: 1 0211.220.335.10.00 2021 | K174: 2021/12/29 | L174: 2021/12/31 | M174: 2021/12/31 | O174: 2 | P174: 0 | Q174: 2 | R174: -28 | S174: 22 | T174: 0 | U174: -1764.28 | V174: 122
B175: 2021/11/30 | C175: 9003281792 | D175: 65.34 | E175: 7494 | F175: TK ELEVADORES ESPAÑA S.L.U | G175: BIZKAIA ET. - IGOGAILUAREN MANTENIMENDUA AZAORA | H175: 17 2021-99-006144-005 | I175: 12 2021-004784-047 | J175: 1 0811.221.134.00.00 2021 | L175: 2021/12/31 | M175: 2021/12/31 | O175: 0 | P175: 0 | Q175: 0 | R175: -30 | S175: 22 | T175: 0 | U175: -1960.2 | V175: 122
A176: 2021-FAKT-005995-00 | B176: 2021/11/30 | C176: 0005272109 | D176: 550.01 | E176: 13690 | F176: IMQ PREVENCIÓN | G176: OSASUN KOLEKTIBOAREN ZAINTZA | H176: 17 2021-99-005375-000 | I176: 12 2021-004632-028 | J176: 1 0605.227.920.10.07 2021 | K176: 2021/12/20 | L176: 2021/12/29 | M176: 2021/12/29 | O176: 9 | P176: 2 | Q176: 11 | R176: -19 | S176: 22 | T176: 1100.02 | U176: -10450.19 | V176: 122
A177: 2021-FAKT-005886-00 | B177: 2021/12/03 | C177: 2441 | D177: 199.65 | E177: 562 | F177: TTUKUN - AITOR ASTABURUAGA AIESTARAN | G177: EUSKARAREN EGUNERKO KOPIAK | H177: 17 2021-99-005194-000 | I177: 12 2021-004330-029 | J177: 1 0210.226.335.00.99 2021 | K177: 2021/12/14 | L177: 2021/12/17 | M177: 2021/12/17 | O177: 3 | P177: 14 | Q177: 17 | R177: -13 | S177: 22 | T177: 2795.1 | U177: -2595.45 | V177: 122
A178: 2021-FAKT-005965-00 | B178: 2021/12/03 | C178: P21-0013830 | D178: 35 | E178: 17192 | F178: ASKABIDE KLINIKA S.L. | G178: COVID 19 ANTIGENO TESTA | H178: 17 2021-99-005374-000 | I178: 12 2021-004632-027 | J178: 1 0605.227.920.10.07 2021 | K178: 2021/12/20 | L178: 2021/12/29 | M178: 2021/12/29 | O178: 9 | P178: 2 | Q178: 11 | R178: -19 | S178: 22 | T178: 70 | U178: -665 | V178: 122
A179: 2021-FAKT-006095-00 | B179: 2021/12/03 | C179: 210011 | D179: 100 | E179: 592 | F179: ARRASATE EUSKALDUN DEZAGUN | G179: EUSKARAREN EGUNA ABENDUAK 3 TRIKITILARIAK | H179: 17 2021-99-006071-000 | I179: 12 2021-004738-004 | J179: 1 0210.226.335.00.00 2021 | K179: 2021/12/28 | L179: 2021/12/31 | M179: 2021/12/31 | O179: 3 | P179: 0 | Q179: 3 | R179: -27 | S179: 22 | T179: 0 | U179: -2700 | V179: 122
A180: 2021-FAKT-005998-00 | B180: 2021/12/10 | C180: 1210545072 | D180: 169.4 | E180: 248 | F180: SGAE-SOCIEDAD GRAL. DE AUTORES | G180: EGILE ESKUBIDEAK | H180: 17 2021-99-006005-000 | I180: 12 2021-004709-001 | J180: 1 0200.226.334.00.00 2021 | K180: 2021/12/21 | L180: 2021/12/31 | M180: 2021/12/31 | O180: 10 | P180: 0 | Q180: 10 | R180: -20 | S180: 22 | T180: 0 | U180: -3388 | V180: 122
A181: 2021-FAKT-006006-00 | B181: 2021/12/10 | C181: 1210545066 | D181: 214.58 | E181: 248 | F181: SGAE-SOCIEDAD GRAL. DE AUTORES | G181: EGILE ESKUBIDEAK | H181: 17 2021-99-006006-000 | I181: 12 2021-004709-002 | J181: 1 0200.226.334.00.00 2021 | K181: 2021/12/21 | L181: 2021/12/31 | M181: 2021/12/31 | O181: 10 | P181: 0 | Q181: 10 | R181: -20 | S181: 22 | T181: 0 | U181: -4291.6 | V181: 122
A182: 2021-FAKT-005844-00 | B182: 2021/12/10 | C182: 21211210 | D182: 13.15 | E182: 12685 | F182: IBERDROLA CLIENTES SAU | G182: 2021-10-25 2021-11-25 | H182: 17 2021-99-005991-000 | I182: 12 2021-004726-000 | J182: 1 0800.221.165.00.01 2021 | K182: 2021/12/13 | L182: 2021/12/31 | M182: 2021/12/31 | O182: 18 | P182: 0 | Q182: 18 | R182: -12 | S182: 22 | T182: 0 | U182: -157.8 | V182: 122
A183: 2021-FAKT-006016-00 | B183: 2021/12/14 | C183: 21211214 | D183: 16.72 | E183: 12685 | F183: IBERDROLA CLIENTES SAU | G183: FACTURA DE ELECTRICIDAD CON GARANTIA DE ORIGEN 2021-11-09 2021-11-30 | H183: 17 2021-99-005992-000 | I183: 12 2021-004725-000 | J183: 1 0800.221.165.00.01 2021 | K183: 2021/12/21 | L183: 2021/12/31 | M183: 2021/12/31 | O183: 10 | P183: 0 | Q183: 10 | R183: -20 | S183: 22 | T183: 0 | U183: -334.4 | V183: 122
A184: 2021-FAKT-005883-00 | B184: 2021/12/14 | C184: 20210094 | D184: 2847.13 | E184: 16751 | F184: PINTURAS LENIZ SL | G184: TRABAJOS DE ELIMINACION DE PINTADAS REALIZADOS LOS DIAS 13 Y 14 DE DICIEMBRE DE | H184: 17 2021-99-005475-000 | I184: 12 2021-004735-002 | J184: 1 0800.227.152.20.01 2021 | K184: 2021/12/14 | L184: 2021/12/31 | M184: 2021/12/31 | O184: 17 | P184: 0 | Q184: 17 | R184: -13 | S184: 22 | T184: 0 | U184: -37012.69 | V184: 122
A185: 2022-FAKT-000284-00 | B185: 2021/12/14 | C185: 2021005 | D185: 1417.49 | E185: 7565 | F185: OTADUI TRISTAN ARANTZA | G185: BISITA GIDATUAK (2021) | H185: 17 2021-99-006067-000 | I185: 12 2021-004784-001 | J185: 1 0700.226.432.00.01 2021 | K185: 2022/01/07 | L185: 2021/12/31 | M185: 2021/12/31 | O185: 0 | P185: 0 | Q185: 0 | R185: -30 | S185: 22 | T185: 0 | U185: -42524.7 | V185: 122
A186: 2021-FAKT-005960-00 | B186: 2021/12/14 | C186: 016 | D186: 3500 | E186: 4840 | F186: EKIN EMAKUMEAK AED | G186: GAZTE TXOKOTAKO HARRERA PROTOKOLOA | H186: 17 2021-99-005476-000 | I186: 12 2021-004735-003 | J186: 1 0400.226.231.82.00 2021 | K186: 2021/12/20 | L186: 2021/12/31 | M186: 2021/12/31 | O186: 11 | P186: 0 | Q186: 11 | R186: -19 | S186: 22 | T186: 0 | U186: -66500 | V186: 122
A187: 2021-FAKT-006043-00 | B187: 2021/12/15 | C187: F21034349 | D187: 383.32 | E187: 161 | F187: JUPER BAT, S.A.U | G187: Nº ALBARAN AV12157128 FECHA ALBARAN 15/12/21: | H187: 17 2021-99-005498-002 | I187: 12 2021-004643-028 | J187: 1 0801.221.431.20.00 2021 | K187: 2021/12/22 | L187: 2021/12/31 | M187: 2021/12/31 | O187: 9 | P187: 0 | Q187: 9 | R187: -21 | S187: 22 | T187: 0 | U187: -8049.72 | V187: 122
A188: 2021-FAKT-005963-00 | B188: 2021/12/15 | C188: F21/231 | D188: 109.07 | E188: 3839 | F188: ZANGUITU MADINA YOSEBA Y OTROS C.B | G188: BILTEGIKO MATERIALA | H188: 17 2021-99-005389-001 | I188: 12 2021-004636-018 | J188: 1 0804.221.153.40.11 2021 | K188: 2021/12/20 | L188: 2021/12/30 | M188: 2021/12/30 | O188: 10 | P188: 1 | Q188: 11 | R188: -19 | S188: 22 | T188: 109.07 | U188: -2072.33 | V188: 122
A189: 2021-FAKT-005946-00 | B189: 2021/12/15 | C189: FV2115361 | D189: 48.57 | E189: 7113 | F189: SEIN BATU S.L. | G189: BILTEGIKO MATERIALA | H189: 17 2021-99-005385-003 | I189: 12 2021-004636-011 | J189: 1 0804.221.153.40.11 2021 | K189: 2021/12/17 | L189: 2021/12/30 | M189: 2021/12/30 | O189: 13 | P189: 1 | Q189: 14 | R189: -16 | S189: 22 | T189: 48.57 | U189: -777.12 | V189: 122
A190: 2022-FAKT-000387-00 | B190: 2021/12/15 | C190: 21/11 | D190: 2140 | E190: 12045 | F190: MARIN ARTEAGA JULIA | G190: IDAZKUNTZA LANTEGAIA (HIRIGINTZA SAILA) 2021EKO URRITIK ABENDURA | H190: 17 2021-99-006143-000 | I190: 12 2021-004784-042 | J190: 1 0606.227.920.00.07 2021 | K190: 2022/01/14 | L190: 2021/12/31 | M190: 2021/12/31 | O190: 0 | P190: 0 | Q190: 0 | R190: -30 | S190: 22 | T190: 0 | U190: -64200 | V190: 122
A191: 2021-FAKT-006132-00 | B191: 2021/12/16 | C191: 211000239 | D191: 238.42 | E191: 10217 | F191: ELKAR GIPUZKOA XXI S.L. | G191: EUSKALTEGIKO EROSKETAK | H191: 17 2021-99-005392-000 | I191: 12 2021-004636-022 | J191: 1 0211.220.335.10.00 2021 | K191: 2021/12/29 | L191: 2021/12/30 | M191: 2021/12/30 | O191: 1 | P191: 1 | Q191: 2 | R191: -28 | S191: 22 | T191: 238.42 | U191: -6675.76 | V191: 122
A192: 2021-FAKT-006134-00 | B192: 2021/12/17 | C192: 211000241 | D192: 14.86 | E192: 10217 | F192: ELKAR GIPUZKOA XXI S.L. | G192: EUSKALTEGIKO EROSKETA (ZETAK * ZETAK) | H192: 17 2021-99-005393-000 | I192: 12 2021-004636-023 | J192: 1 0211.220.335.10.00 2021 | K192: 2021/12/29 | L192: 2021/12/30 | M192: 2021/12/30 | O192: 1 | P192: 1 | Q192: 2 | R192: -28 | S192: 22 | T192: 14.86 | U192: -416.08 | V192: 122
A193: 2021-FAKT-006135-00 | B193: 2021/12/17 | C193: 211000240 | D193: 134.2 | E193: 10217 | F193: ELKAR GIPUZKOA XXI S.L. | G193: EUSKALTEGIKO EROSKETAK | H193: 17 2021-99-006069-000 | I193: 12 2021-004738-002 | J193: 1 0211.220.335.10.00 2021 | K193: 2021/12/29 | L193: 2021/12/31 | M193: 2021/12/31 | O193: 2 | P193: 0 | Q193: 2 | R193: -28 | S193: 22 | T193: 0 | U193: -3757.6 | V193: 122
A194: 2021-FAKT-006044-00 | B194: 2021/12/17 | C194: F21034525 | D194: 27.66 | E194: 161 | F194: JUPER BAT, S.A.U | G194: BILTEGIRAKO ERROPA | H194: 17 2021-99-005388-002 | I194: 12 2021-004636-017 | J194: 1 0800.221.153.40.05 2021 | K194: 2021/12/22 | L194: 2021/12/30 | M194: 2021/12/30 | O194: 8 | P194: 1 | Q194: 9 | R194: -21 | S194: 22 | T194: 27.66 | U194: -580.86 | V194: 122
A195: 2021-FAKT-006126-00 | B195: 2021/12/17 | C195: 1986 | D195: 44 | E195: 9399 | F195: BUART LORADENDA | G195: BERDINTASUN SAILERAKO LANDAREA ETA 100 URTEKO OPARIA | H195: 17 2021-99-006162-002 | I195: 12 2021-004773-021 | J195: 1 0100.226.912.00.02 2021 | K195: 2021/12/29 | L195: 2021/12/31 | M195: 2021/12/31 | O195: 2 | P195: 0 | Q195: 2 | R195: -28 | S195: 22 | T195: 0 | U195: -1232 | V195: 122
A196: 2021-FAKT-006126-00 | B196: 2021/12/17 | C196: 1986 | D196: 181.25 | E196: 9399 | F196: BUART LORADENDA | G196: BERDINTASUN SAILERAKO LANDAREA ETA 100 URTEKO OPARIA | H196: 17 2021-99-006162-001 | I196: 12 2021-004773-020 | J196: 1 1330.226.231.50.00 2021 | K196: 2021/12/29 | L196: 2021/12/31 | M196: 2021/12/31 | O196: 2 | P196: 0 | Q196: 2 | R196: -28 | S196: 22 | T196: 0 | U196: -5075 | V196: =IF(P196>30,200+S196,100+S196) -> 122
A197: 2022-FAKT-000347-00 | B197: 2021/12/17 | C197: 210013 | D197: 200 | E197: 592 | F197: ARRASATE EUSKALDUN DEZAGUN | G197: IPUIN KONTAKETA MUSIKATUA ABENDUAK 17 | H197: 17 2021-99-006169-000 | I197: 12 2021-004773-028 | J197: 1 0400.226.231.82.00 2021 | K197: 2022/01/12 | L197: 2021/12/31 | M197: 2021/12/31 | O197: 0 | P197: 0 | Q197: 0 | R197: -30 | S197: 22 | T197: 0 | U197: -6000 | V197: 122
A198: 2021-FAKT-006044-00 | B198: 2021/12/17 | C198: F21034525 | D198: 82.98 | E198: 161 | F198: JUPER BAT, S.A.U | G198: BILTEGIRAKO ERROPA | H198: 17 2021-99-005388-001 | I198: 12 2021-004636-016 | J198: 1 0804.221.153.40.05 2021 | K198: 2021/12/22 | L198: 2021/12/30 | M198: 2021/12/30 | O198: 8 | P198: 1 | Q198: 9 | R198: -21 | S198: 22 | T198: 82.98 | U198: -1742.58 | V198: 122
A199: 2021-FAKT-006129-00 | B199: 2021/12/18 | C199: T-197533 | D199: 51.8 | E199: 4436 | F199: TXOKO 2 C.B. | G199: OTORDUAK (GALA LIRIKOA 2021/12/14) | H199: 17 2021-99-006027-000 | I199: 12 2021-004709-017 | J199: 1 0200.226.334.00.00 2021 | K199: 2021/12/29 | L199: 2021/12/31 | M199: 2021/12/31 | O199: 2 | P199: 0 | Q199: 2 | R199: -28 | S199: 22 | T199: 0 | U199: -1450.4 | V199: 122
A200: 2021-FAKT-006009-00 | B200: 2021/12/19 | C200: 103134 | D200: 1224 | E200: 6517 | F200: BERRIA-EUSKAL EDITOREA | G200: AGENDAK 2022 (ASTEKOAK ETA EGUNEKOAK) | H200: 17 2021-99-005394-000 | I200: 12 2021-004735-001 | J200: 1 0600.220.920.00.00 2021 | K200: 2021/12/21 | L200: 2021/12/30 | M200: 2021/12/31 | O200: 10 | P200: 0 | Q200: 10 | R200: -20 | S200: 22 | T200: 0 | U200: -24480 | V200: 122
A201: 2021-FAKT-006022-00 | B201: 2021/12/19 | C201: 210012 | D201: 1876.04 | E201: 592 | F201: ARRASATE EUSKALDUN DEZAGUN | G201: BERTSO JAIALDIA, 2021/12/19 | H201: 17 2021-99-005995-000 | I201: 12 2021-004735-042 | J201: 1 0200.226.338.00.06 2021 | K201: 2021/12/21 | L201: 2021/12/31 | M201: 2021/12/31 | O201: 10 | P201: 0 | Q201: 10 | R201: -20 | S201: 22 | T201: 0 | U201: -37520.8 | V201: 122
... 485 more rows

Sheet xehet32
A1: Hiruhilekoan O egin gabe gelditu direnak | P1: 2021/12/31
A3: Espte zkia | B3: Fra data | C3: Fra zkia | D3: Zenbatekoa | E3: Hirugar. Kodea | F3: Hirugarrena | G3: Azalpena | H3: ADO-17 | I3: ADO-12 | J3: Partida | K3: Erregto data | L3: Desz Data | M3: O-ren data | N3: P-ren data | O3: Epea R-HH buk | P3: OBBE | Q3: capit | R3: ponderazioa 1 | S3: ponderazioa 2 | T3: epean
A4: 2022-FAKT-000343-00 | B4: 2021/12/31 | C4: 2021J00815 | D4: 293.21 | E4: 8455 | F4: SABICO SEGURIDAD | G4: ABENDUKO ZERBITZUAK | H4: 17 2021-99-006399-000 | J4: 1 0200.226.338.00.06 2021 | K4: 2022/01/12 | L4: 2021/12/31 | O4: 0 | P4: -30 | Q4: 2 | R4: 0 | S4: -8796.3 | T4: =IF(O4<91,10+Q4,20+Q4) -> 12
A5: 2022-FAKT-000300-00 | B5: 2021/12/31 | C5: 10425 | D5: 11.58 | E5: 5267 | F5: ALDEDI | G5: GILTZAN KOPIAK... KULTURATE ETA KIROLDEGIA | H5: 17 2021-99-006398-003 | J5: 1 1200.211.342.10.00 2021 | K5: 2022/01/11 | L5: 2021/12/31 | O5: 0 | P5: -30 | Q5: 2 | R5: 0 | S5: -347.4 | T5: 12
A6: 2022-FAKT-000300-00 | B6: 2021/12/31 | C6: 10425 | D6: 64.09 | E6: 5267 | F6: ALDEDI | G6: GILTZAN KOPIAK... KULTURATE ETA KIROLDEGIA | H6: 17 2021-99-006398-002 | J6: 1 0201.221.332.10.00 2021 | K6: 2022/01/11 | L6: 2021/12/31 | O6: 0 | P6: -30 | Q6: 2 | R6: 0 | S6: -1922.7 | T6: 12
A7: 2022-FAKT-000300-00 | B7: 2021/12/31 | C7: 10425 | D7: 35 | E7: 5267 | F7: ALDEDI | G7: GILTZAN KOPIAK... KULTURATE ETA KIROLDEGIA | H7: 17 2021-99-006398-001 | J7: 1 0204.221.334.00.00 2021 | K7: 2022/01/11 | L7: 2021/12/31 | O7: 0 | P7: -30 | Q7: 2 | R7: 0 | S7: -1050 | T7: 12
A8: 2021-FAKT-006005-00 | B8: 2020/07/29 | C8: 1200284054 | D8: 17.16 | E8: 248 | F8: SGAE-SOCIEDAD GRAL. DE AUTORES | G8: EGILE ESKUBIDEAK | K8: 2021/12/21 | O8: 10 | P8: -20 | Q8: 9 | R8: 171.6 | S8: -343.2 | T8: 19
A9: 2021-FAKT-006008-00 | B9: 2020/07/29 | C9: 1200284055 | D9: 22.92 | E9: 248 | F9: SGAE-SOCIEDAD GRAL. DE AUTORES | G9: EGILE ESKUBIDEAK | K9: 2021/12/21 | O9: 10 | P9: -20 | Q9: 9 | R9: 229.2 | S9: -458.4 | T9: 19
A10: 2021-FAKT-005999-00 | B10: 2020/11/26 | C10: 1200443217 | D10: 25.56 | E10: 248 | F10: SGAE-SOCIEDAD GRAL. DE AUTORES | G10: EGILE ESKUBIDEAK | K10: 2021/12/21 | O10: 10 | P10: -20 | Q10: 9 | R10: 255.6 | S10: -511.2 | T10: 19
A11: 2021-FAKT-006002-00 | B11: 2020/11/26 | C11: 1200443216 | D11: 36.12 | E11: 248 | F11: SGAE-SOCIEDAD GRAL. DE AUTORES | G11: EGILE ESKUBIDEAK | K11: 2021/12/21 | O11: 10 | P11: -20 | Q11: 9 | R11: 361.2 | S11: -722.4 | T11: 19
A12: 2021-FAKT-006003-00 | B12: 2020/11/26 | C12: 1200443218 | D12: 14.63 | E12: 248 | F12: SGAE-SOCIEDAD GRAL. DE AUTORES | G12: EGILE ESKUBIDEAK | K12: 2021/12/21 | O12: 10 | P12: -20 | Q12: 9 | R12: 146.3 | S12: -292.6 | T12: 19
A13: 2021-FAKT-006004-00 | B13: 2020/11/26 | C13: 1200443220 | D13: 7.15 | E13: 248 | F13: SGAE-SOCIEDAD GRAL. DE AUTORES | G13: EGILE ESKUBIDEAK | K13: 2021/12/21 | O13: 10 | P13: -20 | Q13: 9 | R13: 71.5 | S13: -143 | T13: 19
A14: 2021-FAKT-006007-00 | B14: 2020/11/26 | C14: 1200443219 | D14: 9.41 | E14: 248 | F14: SGAE-SOCIEDAD GRAL. DE AUTORES | G14: EGILE ESKUBIDEAK | K14: 2021/12/21 | O14: 10 | P14: -20 | Q14: 9 | R14: 94.1 | S14: -188.2 | T14: 19
A15: 2021-FAKT-006001-00 | B15: 2020/12/03 | C15: 1200445792 | D15: 17.07 | E15: 248 | F15: SGAE-SOCIEDAD GRAL. DE AUTORES | G15: EGILE ESKUBIDEAK | K15: 2021/12/21 | O15: 10 | P15: -20 | Q15: 9 | R15: 170.7 | S15: -341.4 | T15: 19
A16: 2021-FAKT-005053-00 | B16: 2021/10/31 | C16: 62 | D16: 433.59 | E16: 5846 | F16: ECOGRAS RECUPERACION Y RECICLADO S.L. | G16: SERVICIO DE RECOGIDA DE CONTENEDORES--EDUKIONTZIEN BILKETA ZERBITZUA | K16: 2021/11/24 | O16: 37 | P16: 7 | Q16: 9 | R16: 16042.83 | S16: 3035.13 | T16: 19
A17: 2021-FAKT-005054-00 | B17: 2021/10/31 | C17: 61 | D17: 43.34 | E17: 5846 | F17: ECOGRAS RECUPERACION Y RECICLADO S.L. | G17: SERVICIO DE RECOGIDA DE CONTENEDORES--EDUKIONTZIEN BILKETA ZERBITZUA | K17: 2021/11/24 | O17: 37 | P17: 7 | Q17: 9 | R17: 1603.58 | S17: 303.38 | T17: 19
A18: 2021-FAKT-005125-00 | B18: 2021/11/30 | C18: 66 | D18: 433.59 | E18: 5846 | F18: ECOGRAS RECUPERACION Y RECICLADO S.L. | G18: SERVICIO DE RECOGIDA DE CONTENEDORES--EDUKIONTZIEN BILKETA ZERBITZUA | K18: 2021/11/30 | O18: 31 | P18: 1 | Q18: 9 | R18: 13441.29 | S18: 433.59 | T18: 19
A19: 2021-FAKT-005938-00 | B19: 2021/12/17 | C19: 21021 | D19: 7564.19 | E19: 7882 | F19: GIPUZKOAKO MENDIZALE FEDERAZIOA | G19: faktura 21021 - ibilbilde berria | K19: 2021/12/17 | O19: 14 | P19: -16 | Q19: 9 | R19: 105898.66 | S19: -121027.04 | T19: 19
A20: 2021-FAKT-006047-00 | B20: 2021/12/23 | C20: 449 | D20: 831.97 | E20: 10033 | F20: URKO MANTENIMIENTO SL | G20: AZAROA MANTENUA | K20: 2021/12/23 | O20: 8 | P20: -22 | Q20: 9 | R20: 6655.76 | S20: -18303.34 | T20: 19
A21: 2021-FAKT-006048-00 | B21: 2021/12/23 | C21: 450 | D21: 831.97 | E21: 10033 | F21: URKO MANTENIMIENTO SL | G21: ABENDUA MANTENUA | K21: 2021/12/23 | O21: 8 | P21: -22 | Q21: 9 | R21: 6655.76 | S21: -18303.34 | T21: 19
A22: 2021-FAKT-006049-00 | B22: 2021/12/23 | C22: 240 | D22: 10018.8 | E22: 4954 | F22: ASMATU, S.L. | G22: REDAC.PROY. TEC. IMPLANT. SISTEMA PUBLICO DE MOVILIDAD VERTICAL EN LA CALLE GALIZIA | K22: 2021/12/23 | O22: 8 | P22: -22 | Q22: 9 | R22: 80150.4 | S22: -220413.6 | T22: 19
A23: 2021-FAKT-006051-00 | B23: 2021/12/23 | C23: 31 | D23: 1449.58 | E23: 11509 | F23: ARKODI KULTUR ELKARTEA (MONDRABERRI) | G23: MONDRABERRIK ARRASATEKO UDALARENTZAT EGINDAKO PUBLIERREPORTAJEA, GABONETAKO KULTUR EGITARAUAREN INGURUAN. | K23: 2021/12/23 | O23: 8 | P23: -22 | Q23: 9 | R23: 11596.64 | S23: -31890.76 | T23: 19
A24: 2021-FAKT-006118-00 | B24: 2021/12/24 | C24: 001071 | D24: 10056.06 | E24: 14745 | F24: SUMUN EQUIPAMIENTOS SL | G24: ARROPA ETA OINETAKOAK | K24: 2021/12/28 | O24: 3 | P24: -27 | Q24: 9 | R24: 30168.18 | S24: -271513.62 | T24: 19
A25: 2021-FAKT-006167-00 | B25: 2021/12/24 | C25: 260 | D25: 605 | E25: 13617 | F25: IZAN INTERVENCION FAMILIAR Y COMUNITARIA | G25: Gizarte zerbitzuen superbisioa | K25: 2021/12/31 | O25: 0 | P25: -30 | Q25: 9 | R25: 0 | S25: -18150 | T25: 19
A26: 2021-FAKT-006085-00 | B26: 2021/12/27 | C26: 301 | D26: 56199.06 | E26: 175 | F26: DEBAGOIENEKO MANKOMUNITATEA | G26: Kapital ekarpenak (2021/01/01-2021/12/31) | K26: 2021/12/27 | O26: 4 | P26: -26 | Q26: 9 | R26: 224796.24 | S26: -1461175.56 | T26: 19
A27: 2021-FAKT-006149-00 | B27: 2021/12/27 | D27: 269.44 | E27: 11002 | F27: COMUNIDAD TXAETA 1-3 Y NAFARROA ET.4-6 | G27: TXAETA 3 1ºA LECTURA DE CALEFACCION Y AGUA CALIENTE 21/10/2021-17/12/2021 | K27: 2021/12/30 | O27: 1 | P27: -29 | Q27: 9 | R27: 269.44 | S27: -7813.76 | T27: 19
A28: 2021-FAKT-006150-00 | B28: 2021/12/27 | D28: 390.29 | E28: 11002 | F28: COMUNIDAD TXAETA 1-3 Y NAFARROA ET.4-6 | G28: TXAETA 1 2ºA LECTURA DE CALEFACCION Y AGUA CALIENTE 21/10/2021-17/12/2021 | K28: 2021/12/30 | O28: 1 | P28: -29 | Q28: 9 | R28: 390.29 | S28: -11318.41 | T28: 19
A29: 2021-FAKT-006151-00 | B29: 2021/12/27 | D29: 379.48 | E29: 11002 | F29: COMUNIDAD TXAETA 1-3 Y NAFARROA ET.4-6 | G29: TXAETA 1 3ºD LECTURA DE CALEFACCION Y AGUA CALIENTE 21/10/2021-17/12/2021 | K29: 2021/12/30 | O29: 1 | P29: -29 | Q29: 9 | R29: 379.48 | S29: -11004.92 | T29: 19
A30: 2021-FAKT-006152-00 | B30: 2021/12/27 | D30: 299.74 | E30: 11002 | F30: COMUNIDAD TXAETA 1-3 Y NAFARROA ET.4-6 | G30: NAFARROA 4 1ºE LECTURA DE CALEFACCION Y AGUA CALIENTE 21/10/2021-17/12/2021 | K30: 2021/12/30 | O30: 1 | P30: -29 | Q30: 9 | R30: 299.74 | S30: -8692.46 | T30: 19
A31: 2021-FAKT-006153-00 | B31: 2021/12/27 | D31: 309.57 | E31: 11002 | F31: COMUNIDAD TXAETA 1-3 Y NAFARROA ET.4-6 | G31: NAFARROA 6 1ºD LECTURA DE CALEFACCION Y AGUA CALIENTE 21/10/2021-17/12/2021 | K31: 2021/12/30 | O31: 1 | P31: -29 | Q31: 9 | R31: 309.57 | S31: -8977.53 | T31: 19
A32: 2021-FAKT-006097-00 | B32: 2021/12/28 | C32: 2021460 | D32: 7221.4 | E32: 17761 | F32: DARDARAK SL | G32: ILUMINACION ESCENICA EN KULTURATE (Pto. 21-3-093) | K32: 2021/12/28 | O32: 3 | P32: -27 | Q32: 9 | R32: 21664.2 | S32: -194977.8 | T32: 19
A33: 2021-FAKT-006147-00 | B33: 2021/12/29 | C33: S0000026 | D33: 5445 | E33: 14976 | F33: FEDERACION MERCANTIL DE GIPUZKOA | G33: SINGULAR DENDAK 2021 | K33: 2021/12/30 | O33: 1 | P33: -29 | Q33: 9 | R33: 5445 | S33: -157905 | T33: 19
A34: 2021-FAKT-006156-00 | B34: 2021/12/29 | C34: 20210775 | D34: 215.38 | E34: 122 | F34: ELKORO-AGUSTIN ELKORO ITURRIAGA | G34: MANTENIMIENTO BIMESTRAL 11-12 | K34: 2021/12/30 | O34: 1 | P34: -29 | Q34: 9 | R34: 215.38 | S34: -6246.02 | T34: 19
A35: 2021-FAKT-006148-00 | B35: 2021/12/30 | C35: 9003303589 | D35: 1104.19 | E35: 7494 | F35: TK ELEVADORES ESPAÑA S.L.U | G35: POR EL SERVICIO DE MANTENIMIENTO DEL NUMERO DE APARATOS INDICADOS Direccion de Instalacion: CL/HERRIKO PLAZA ,1 - Arrasate O Mondragon Periodo Facturado: 01/12/2021 31/12/2021 Total Aparatos: 21 | K35: 2021/12/30 | O35: 1 | P35: -29 | Q35: 9 | R35: 1104.19 | S35: -32021.51 | T35: 19
A36: 2021-FAKT-006154-00 | B36: 2021/12/30 | C36: 211261 | D36: 459.8 | E36: 2106 | F36: PROIMA, S. COOP. | G36: LEHENENGO LOTEA: ETXALUZE, SAN KRISTOBAL, BEDOÑABE IKASTOLA, MUSAKOLA IKASTOLA, HARRESI ARETOA ETA IRU PABEILOIA | K36: 2021/12/30 | O36: 1 | P36: -29 | Q36: 9 | R36: 459.8 | S36: -13334.2 | T36: 19
A37: 2021-FAKT-006155-00 | B37: 2021/12/30 | C37: 211262 | D37: 408.38 | E37: 2106 | F37: PROIMA, S. COOP. | G37: BIGARREN LOTEA: EMAKUMEEN TXOKOA, AMAIA ANTZOKIA, UDALETXEA ETA ERGUIN ESKOLA | K37: 2021/12/30 | O37: 1 | P37: -29 | Q37: 9 | R37: 408.38 | S37: -11843.02 | T37: 19
